{"text_format":"1","workbook":"xlsx","n_sheets":5,"sheets":["Company Master","Data Sheet for 12BA","Data Sheet for Part B","Form 16 part B","Form 12BA"],"not_rendered":{"charts":0,"images":2,"macros":1,"external_links":1,"defined_names":54,"comments":0,"pivot_tables":0},"unopened":[],"bounds":{"document_bytes":16777216,"sheet_cells":100000,"rows_first":2000,"rows_last":500,"rows_between":2000,"halvings":0,"cell_chars":16384,"cell_head_chars":4096},"cells_cut":0,"cells_raw":0,"read":"whole","date_system":"1900"}

{"sheet":"Company Master","index":0,"n_rows":21,"n_cols":3,"rows_kept":21,"cut":false,"hidden":false,"merged":[[1,0,1,2],[5,1,5,2],[15,1,15,2]]}
[]
["Form 16 part B and Form 12BA Printing Utility."]
[]
[]
[]
[null,"Employer Details"]
[null," Name of the employeer:","Excelhub.org"]
[null,"Address of employer:","No. 1, New address"]
[null,null,"New road,"]
[null,null,"New town- 560001"]
[null,"TDS Assessment Range of the employer:","BLR, 17 D"]
[null,"TAN:","BBBBB1234G"]
[null,"Financial Year:","2016-17"]
[null,"Assessment Year:","2017-18"]
[]
[null,"Signatory Details"]
[null,"Name:","My Name"]
[null,"Father Name:","Father Name"]
[null,"Designation:","Director"]
[null,"Place:","Bangalore"]
[null,"Date:","2017-05-30"]

{"sheet":"Data Sheet for 12BA","index":1,"n_rows":503,"n_cols":24,"rows_kept":503,"cut":false,"hidden":true,"merged":[[1,23,2,23],[1,12,2,12],[1,13,2,13],[1,14,2,14],[1,15,2,15],[1,16,2,16],[1,17,2,17],[1,18,2,18],[1,19,2,19],[1,20,2,20],[1,21,2,21],[1,22,2,22],[1,11,2,11],[1,0,2,0],[1,1,2,1],[1,2,2,2],[1,3,2,3],[1,4,2,4],[1,5,2,5],[1,6,2,6],[1,7,2,7],[1,8,2,8],[1,9,2,9],[1,10,2,10]]}
["Details for Form 12BA"]
["SL No:","Emp No.","Name","PAN","Income under the head “Salaries”","Accommodation","Cars/Other automotive","Sweeper, gardener, watchman or personal attendant","Gas, electricity, water","Interest free or concessional loans","Holiday expenses","Free or concessional travel","Free meals","Free education","Gifts, vouchers, etc.","Credit card expenses","Club expenses","Use of movable assets by employees","Transfer of assets to employees","Value of any other benefit / amenity / service / privilege","Stock options ( non-qualified options)","Other benefits or amenities","Total value of perquisites","Total value of Profits in lieu of salary as per section 17(3)"]
[]
[1,{"$f":"IF('Data Sheet for Part B'!B487=\"\",\"\",'Data Sheet for Part B'!B487)","v":""},{"$f":"IF('Data Sheet for Part B'!C487=\"\",\"\",'Data Sheet for Part B'!C487)","v":""},{"$f":"IF('Data Sheet for Part B'!D487=\"\",\"\",'Data Sheet for Part B'!D487)","v":""}]
[2,{"$f":"IF('Data Sheet for Part B'!B488=\"\",\"\",'Data Sheet for Part B'!B488)","v":""},{"$f":"IF('Data Sheet for Part B'!C488=\"\",\"\",'Data Sheet for Part B'!C488)","v":""},{"$f":"IF('Data Sheet for Part B'!D488=\"\",\"\",'Data Sheet for Part B'!D488)","v":""}]
[3,{"$f":"IF('Data Sheet for Part B'!B489=\"\",\"\",'Data Sheet for Part B'!B489)","v":""},{"$f":"IF('Data Sheet for Part B'!C489=\"\",\"\",'Data Sheet for Part B'!C489)","v":""},{"$f":"IF('Data Sheet for Part B'!D489=\"\",\"\",'Data Sheet for Part B'!D489)","v":""}]
[4,{"$f":"IF('Data Sheet for Part B'!B490=\"\",\"\",'Data Sheet for Part B'!B490)","v":""},{"$f":"IF('Data Sheet for Part B'!C490=\"\",\"\",'Data Sheet for Part B'!C490)","v":""},{"$f":"IF('Data Sheet for Part B'!D490=\"\",\"\",'Data Sheet for Part B'!D490)","v":""}]
[5,{"$f":"IF('Data Sheet for Part B'!B491=\"\",\"\",'Data Sheet for Part B'!B491)","v":""},{"$f":"IF('Data Sheet for Part B'!C491=\"\",\"\",'Data Sheet for Part B'!C491)","v":""},{"$f":"IF('Data Sheet for Part B'!D491=\"\",\"\",'Data Sheet for Part B'!D491)","v":""}]
[6,{"$f":"IF('Data Sheet for Part B'!B492=\"\",\"\",'Data Sheet for Part B'!B492)","v":""},{"$f":"IF('Data Sheet for Part B'!C492=\"\",\"\",'Data Sheet for Part B'!C492)","v":""},{"$f":"IF('Data Sheet for Part B'!D492=\"\",\"\",'Data Sheet for Part B'!D492)","v":""}]
[7,{"$f":"IF('Data Sheet for Part B'!B493=\"\",\"\",'Data Sheet for Part B'!B493)","v":""},{"$f":"IF('Data Sheet for Part B'!C493=\"\",\"\",'Data Sheet for Part B'!C493)","v":""},{"$f":"IF('Data Sheet for Part B'!D493=\"\",\"\",'Data Sheet for Part B'!D493)","v":""}]
[8,{"$f":"IF('Data Sheet for Part B'!B494=\"\",\"\",'Data Sheet for Part B'!B494)","v":""},{"$f":"IF('Data Sheet for Part B'!C494=\"\",\"\",'Data Sheet for Part B'!C494)","v":""},{"$f":"IF('Data Sheet for Part B'!D494=\"\",\"\",'Data Sheet for Part B'!D494)","v":""}]
[9,{"$f":"IF('Data Sheet for Part B'!B495=\"\",\"\",'Data Sheet for Part B'!B495)","v":""},{"$f":"IF('Data Sheet for Part B'!C495=\"\",\"\",'Data Sheet for Part B'!C495)","v":""},{"$f":"IF('Data Sheet for Part B'!D495=\"\",\"\",'Data Sheet for Part B'!D495)","v":""}]
[10,{"$f":"IF('Data Sheet for Part B'!B496=\"\",\"\",'Data Sheet for Part B'!B496)","v":""},{"$f":"IF('Data Sheet for Part B'!C496=\"\",\"\",'Data Sheet for Part B'!C496)","v":""},{"$f":"IF('Data Sheet for Part B'!D496=\"\",\"\",'Data Sheet for Part B'!D496)","v":""}]
[11,{"$f":"IF('Data Sheet for Part B'!B497=\"\",\"\",'Data Sheet for Part B'!B497)","v":""},{"$f":"IF('Data Sheet for Part B'!C497=\"\",\"\",'Data Sheet for Part B'!C497)","v":""},{"$f":"IF('Data Sheet for Part B'!D497=\"\",\"\",'Data Sheet for Part B'!D497)","v":""}]
[12,{"$f":"IF('Data Sheet for Part B'!B498=\"\",\"\",'Data Sheet for Part B'!B498)","v":""},{"$f":"IF('Data Sheet for Part B'!C498=\"\",\"\",'Data Sheet for Part B'!C498)","v":""},{"$f":"IF('Data Sheet for Part B'!D498=\"\",\"\",'Data Sheet for Part B'!D498)","v":""}]
[13,{"$f":"IF('Data Sheet for Part B'!B499=\"\",\"\",'Data Sheet for Part B'!B499)","v":""},{"$f":"IF('Data Sheet for Part B'!C499=\"\",\"\",'Data Sheet for Part B'!C499)","v":""},{"$f":"IF('Data Sheet for Part B'!D499=\"\",\"\",'Data Sheet for Part B'!D499)","v":""}]
[14,{"$f":"IF('Data Sheet for Part B'!B500=\"\",\"\",'Data Sheet for Part B'!B500)","v":""},{"$f":"IF('Data Sheet for Part B'!C500=\"\",\"\",'Data Sheet for Part B'!C500)","v":""},{"$f":"IF('Data Sheet for Part B'!D500=\"\",\"\",'Data Sheet for Part B'!D500)","v":""}]
[15,{"$f":"IF('Data Sheet for Part B'!B501=\"\",\"\",'Data Sheet for Part B'!B501)","v":""},{"$f":"IF('Data Sheet for Part B'!C501=\"\",\"\",'Data Sheet for Part B'!C501)","v":""},{"$f":"IF('Data Sheet for Part B'!D501=\"\",\"\",'Data Sheet for Part B'!D501)","v":""}]
[16,{"$f":"IF('Data Sheet for Part B'!B502=\"\",\"\",'Data Sheet for Part B'!B502)","v":""},{"$f":"IF('Data Sheet for Part B'!C502=\"\",\"\",'Data Sheet for Part B'!C502)","v":""},{"$f":"IF('Data Sheet for Part B'!D502=\"\",\"\",'Data Sheet for Part B'!D502)","v":""}]
[17,{"$f":"IF('Data Sheet for Part B'!B503=\"\",\"\",'Data Sheet for Part B'!B503)","v":""},{"$f":"IF('Data Sheet for Part B'!C503=\"\",\"\",'Data Sheet for Part B'!C503)","v":""},{"$f":"IF('Data Sheet for Part B'!D503=\"\",\"\",'Data Sheet for Part B'!D503)","v":""}]
[18,{"$f":"IF('Data Sheet for Part B'!B504=\"\",\"\",'Data Sheet for Part B'!B504)","v":""},{"$f":"IF('Data Sheet for Part B'!C504=\"\",\"\",'Data Sheet for Part B'!C504)","v":""},{"$f":"IF('Data Sheet for Part B'!D504=\"\",\"\",'Data Sheet for Part B'!D504)","v":""}]
[19,{"$f":"IF('Data Sheet for Part B'!B505=\"\",\"\",'Data Sheet for Part B'!B505)","v":""},{"$f":"IF('Data Sheet for Part B'!C505=\"\",\"\",'Data Sheet for Part B'!C505)","v":""},{"$f":"IF('Data Sheet for Part B'!D505=\"\",\"\",'Data Sheet for Part B'!D505)","v":""}]
[20,{"$f":"IF('Data Sheet for Part B'!B506=\"\",\"\",'Data Sheet for Part B'!B506)","v":""},{"$f":"IF('Data Sheet for Part B'!C506=\"\",\"\",'Data Sheet for Part B'!C506)","v":""},{"$f":"IF('Data Sheet for Part B'!D506=\"\",\"\",'Data Sheet for Part B'!D506)","v":""}]
[21,{"$f":"IF('Data Sheet for Part B'!B507=\"\",\"\",'Data Sheet for Part B'!B507)","v":""},{"$f":"IF('Data Sheet for Part B'!C507=\"\",\"\",'Data Sheet for Part B'!C507)","v":""},{"$f":"IF('Data Sheet for Part B'!D507=\"\",\"\",'Data Sheet for Part B'!D507)","v":""}]
[22,{"$f":"IF('Data Sheet for Part B'!B508=\"\",\"\",'Data Sheet for Part B'!B508)","v":""},{"$f":"IF('Data Sheet for Part B'!C508=\"\",\"\",'Data Sheet for Part B'!C508)","v":""},{"$f":"IF('Data Sheet for Part B'!D508=\"\",\"\",'Data Sheet for Part B'!D508)","v":""}]
[23,{"$f":"IF('Data Sheet for Part B'!B509=\"\",\"\",'Data Sheet for Part B'!B509)","v":""},{"$f":"IF('Data Sheet for Part B'!C509=\"\",\"\",'Data Sheet for Part B'!C509)","v":""},{"$f":"IF('Data Sheet for Part B'!D509=\"\",\"\",'Data Sheet for Part B'!D509)","v":""}]
[24,{"$f":"IF('Data Sheet for Part B'!B510=\"\",\"\",'Data Sheet for Part B'!B510)","v":""},{"$f":"IF('Data Sheet for Part B'!C510=\"\",\"\",'Data Sheet for Part B'!C510)","v":""},{"$f":"IF('Data Sheet for Part B'!D510=\"\",\"\",'Data Sheet for Part B'!D510)","v":""}]
[25,{"$f":"IF('Data Sheet for Part B'!B511=\"\",\"\",'Data Sheet for Part B'!B511)","v":""},{"$f":"IF('Data Sheet for Part B'!C511=\"\",\"\",'Data Sheet for Part B'!C511)","v":""},{"$f":"IF('Data Sheet for Part B'!D511=\"\",\"\",'Data Sheet for Part B'!D511)","v":""}]
[26,{"$f":"IF('Data Sheet for Part B'!B512=\"\",\"\",'Data Sheet for Part B'!B512)","v":""},{"$f":"IF('Data Sheet for Part B'!C512=\"\",\"\",'Data Sheet for Part B'!C512)","v":""},{"$f":"IF('Data Sheet for Part B'!D512=\"\",\"\",'Data Sheet for Part B'!D512)","v":""}]
[27,{"$f":"IF('Data Sheet for Part B'!B513=\"\",\"\",'Data Sheet for Part B'!B513)","v":""},{"$f":"IF('Data Sheet for Part B'!C513=\"\",\"\",'Data Sheet for Part B'!C513)","v":""},{"$f":"IF('Data Sheet for Part B'!D513=\"\",\"\",'Data Sheet for Part B'!D513)","v":""}]
[28,{"$f":"IF('Data Sheet for Part B'!B514=\"\",\"\",'Data Sheet for Part B'!B514)","v":""},{"$f":"IF('Data Sheet for Part B'!C514=\"\",\"\",'Data Sheet for Part B'!C514)","v":""},{"$f":"IF('Data Sheet for Part B'!D514=\"\",\"\",'Data Sheet for Part B'!D514)","v":""}]
[29,{"$f":"IF('Data Sheet for Part B'!B515=\"\",\"\",'Data Sheet for Part B'!B515)","v":""},{"$f":"IF('Data Sheet for Part B'!C515=\"\",\"\",'Data Sheet for Part B'!C515)","v":""},{"$f":"IF('Data Sheet for Part B'!D515=\"\",\"\",'Data Sheet for Part B'!D515)","v":""}]
[30,{"$f":"IF('Data Sheet for Part B'!B516=\"\",\"\",'Data Sheet for Part B'!B516)","v":""},{"$f":"IF('Data Sheet for Part B'!C516=\"\",\"\",'Data Sheet for Part B'!C516)","v":""},{"$f":"IF('Data Sheet for Part B'!D516=\"\",\"\",'Data Sheet for Part B'!D516)","v":""}]
[31,{"$f":"IF('Data Sheet for Part B'!B517=\"\",\"\",'Data Sheet for Part B'!B517)","v":""},{"$f":"IF('Data Sheet for Part B'!C517=\"\",\"\",'Data Sheet for Part B'!C517)","v":""},{"$f":"IF('Data Sheet for Part B'!D517=\"\",\"\",'Data Sheet for Part B'!D517)","v":""}]
[32,{"$f":"IF('Data Sheet for Part B'!B518=\"\",\"\",'Data Sheet for Part B'!B518)","v":""},{"$f":"IF('Data Sheet for Part B'!C518=\"\",\"\",'Data Sheet for Part B'!C518)","v":""},{"$f":"IF('Data Sheet for Part B'!D518=\"\",\"\",'Data Sheet for Part B'!D518)","v":""}]
[33,{"$f":"IF('Data Sheet for Part B'!B519=\"\",\"\",'Data Sheet for Part B'!B519)","v":""},{"$f":"IF('Data Sheet for Part B'!C519=\"\",\"\",'Data Sheet for Part B'!C519)","v":""},{"$f":"IF('Data Sheet for Part B'!D519=\"\",\"\",'Data Sheet for Part B'!D519)","v":""}]
[34,{"$f":"IF('Data Sheet for Part B'!B520=\"\",\"\",'Data Sheet for Part B'!B520)","v":""},{"$f":"IF('Data Sheet for Part B'!C520=\"\",\"\",'Data Sheet for Part B'!C520)","v":""},{"$f":"IF('Data Sheet for Part B'!D520=\"\",\"\",'Data Sheet for Part B'!D520)","v":""}]
[35,{"$f":"IF('Data Sheet for Part B'!B521=\"\",\"\",'Data Sheet for Part B'!B521)","v":""},{"$f":"IF('Data Sheet for Part B'!C521=\"\",\"\",'Data Sheet for Part B'!C521)","v":""},{"$f":"IF('Data Sheet for Part B'!D521=\"\",\"\",'Data Sheet for Part B'!D521)","v":""}]
[36,{"$f":"IF('Data Sheet for Part B'!B522=\"\",\"\",'Data Sheet for Part B'!B522)","v":""},{"$f":"IF('Data Sheet for Part B'!C522=\"\",\"\",'Data Sheet for Part B'!C522)","v":""},{"$f":"IF('Data Sheet for Part B'!D522=\"\",\"\",'Data Sheet for Part B'!D522)","v":""}]
[37,{"$f":"IF('Data Sheet for Part B'!B523=\"\",\"\",'Data Sheet for Part B'!B523)","v":""},{"$f":"IF('Data Sheet for Part B'!C523=\"\",\"\",'Data Sheet for Part B'!C523)","v":""},{"$f":"IF('Data Sheet for Part B'!D523=\"\",\"\",'Data Sheet for Part B'!D523)","v":""}]
[38,{"$f":"IF('Data Sheet for Part B'!B524=\"\",\"\",'Data Sheet for Part B'!B524)","v":""},{"$f":"IF('Data Sheet for Part B'!C524=\"\",\"\",'Data Sheet for Part B'!C524)","v":""},{"$f":"IF('Data Sheet for Part B'!D524=\"\",\"\",'Data Sheet for Part B'!D524)","v":""}]
[39,{"$f":"IF('Data Sheet for Part B'!B525=\"\",\"\",'Data Sheet for Part B'!B525)","v":""},{"$f":"IF('Data Sheet for Part B'!C525=\"\",\"\",'Data Sheet for Part B'!C525)","v":""},{"$f":"IF('Data Sheet for Part B'!D525=\"\",\"\",'Data Sheet for Part B'!D525)","v":""}]
[40,{"$f":"IF('Data Sheet for Part B'!B526=\"\",\"\",'Data Sheet for Part B'!B526)","v":""},{"$f":"IF('Data Sheet for Part B'!C526=\"\",\"\",'Data Sheet for Part B'!C526)","v":""},{"$f":"IF('Data Sheet for Part B'!D526=\"\",\"\",'Data Sheet for Part B'!D526)","v":""}]
[41,{"$f":"IF('Data Sheet for Part B'!B527=\"\",\"\",'Data Sheet for Part B'!B527)","v":""},{"$f":"IF('Data Sheet for Part B'!C527=\"\",\"\",'Data Sheet for Part B'!C527)","v":""},{"$f":"IF('Data Sheet for Part B'!D527=\"\",\"\",'Data Sheet for Part B'!D527)","v":""}]
[42,{"$f":"IF('Data Sheet for Part B'!B528=\"\",\"\",'Data Sheet for Part B'!B528)","v":""},{"$f":"IF('Data Sheet for Part B'!C528=\"\",\"\",'Data Sheet for Part B'!C528)","v":""},{"$f":"IF('Data Sheet for Part B'!D528=\"\",\"\",'Data Sheet for Part B'!D528)","v":""}]
[43,{"$f":"IF('Data Sheet for Part B'!B529=\"\",\"\",'Data Sheet for Part B'!B529)","v":""},{"$f":"IF('Data Sheet for Part B'!C529=\"\",\"\",'Data Sheet for Part B'!C529)","v":""},{"$f":"IF('Data Sheet for Part B'!D529=\"\",\"\",'Data Sheet for Part B'!D529)","v":""}]
[44,{"$f":"IF('Data Sheet for Part B'!B530=\"\",\"\",'Data Sheet for Part B'!B530)","v":""},{"$f":"IF('Data Sheet for Part B'!C530=\"\",\"\",'Data Sheet for Part B'!C530)","v":""},{"$f":"IF('Data Sheet for Part B'!D530=\"\",\"\",'Data Sheet for Part B'!D530)","v":""}]
[45,{"$f":"IF('Data Sheet for Part B'!B531=\"\",\"\",'Data Sheet for Part B'!B531)","v":""},{"$f":"IF('Data Sheet for Part B'!C531=\"\",\"\",'Data Sheet for Part B'!C531)","v":""},{"$f":"IF('Data Sheet for Part B'!D531=\"\",\"\",'Data Sheet for Part B'!D531)","v":""}]
[46,{"$f":"IF('Data Sheet for Part B'!B532=\"\",\"\",'Data Sheet for Part B'!B532)","v":""},{"$f":"IF('Data Sheet for Part B'!C532=\"\",\"\",'Data Sheet for Part B'!C532)","v":""},{"$f":"IF('Data Sheet for Part B'!D532=\"\",\"\",'Data Sheet for Part B'!D532)","v":""}]
[47,{"$f":"IF('Data Sheet for Part B'!B533=\"\",\"\",'Data Sheet for Part B'!B533)","v":""},{"$f":"IF('Data Sheet for Part B'!C533=\"\",\"\",'Data Sheet for Part B'!C533)","v":""},{"$f":"IF('Data Sheet for Part B'!D533=\"\",\"\",'Data Sheet for Part B'!D533)","v":""}]
[48,{"$f":"IF('Data Sheet for Part B'!B534=\"\",\"\",'Data Sheet for Part B'!B534)","v":""},{"$f":"IF('Data Sheet for Part B'!C534=\"\",\"\",'Data Sheet for Part B'!C534)","v":""},{"$f":"IF('Data Sheet for Part B'!D534=\"\",\"\",'Data Sheet for Part B'!D534)","v":""}]
[49,{"$f":"IF('Data Sheet for Part B'!B535=\"\",\"\",'Data Sheet for Part B'!B535)","v":""},{"$f":"IF('Data Sheet for Part B'!C535=\"\",\"\",'Data Sheet for Part B'!C535)","v":""},{"$f":"IF('Data Sheet for Part B'!D535=\"\",\"\",'Data Sheet for Part B'!D535)","v":""}]
[50,{"$f":"IF('Data Sheet for Part B'!B536=\"\",\"\",'Data Sheet for Part B'!B536)","v":""},{"$f":"IF('Data Sheet for Part B'!C536=\"\",\"\",'Data Sheet for Part B'!C536)","v":""},{"$f":"IF('Data Sheet for Part B'!D536=\"\",\"\",'Data Sheet for Part B'!D536)","v":""}]
[51,{"$f":"IF('Data Sheet for Part B'!B537=\"\",\"\",'Data Sheet for Part B'!B537)","v":""},{"$f":"IF('Data Sheet for Part B'!C537=\"\",\"\",'Data Sheet for Part B'!C537)","v":""},{"$f":"IF('Data Sheet for Part B'!D537=\"\",\"\",'Data Sheet for Part B'!D537)","v":""}]
[52,{"$f":"IF('Data Sheet for Part B'!B538=\"\",\"\",'Data Sheet for Part B'!B538)","v":""},{"$f":"IF('Data Sheet for Part B'!C538=\"\",\"\",'Data Sheet for Part B'!C538)","v":""},{"$f":"IF('Data Sheet for Part B'!D538=\"\",\"\",'Data Sheet for Part B'!D538)","v":""}]
[53,{"$f":"IF('Data Sheet for Part B'!B539=\"\",\"\",'Data Sheet for Part B'!B539)","v":""},{"$f":"IF('Data Sheet for Part B'!C539=\"\",\"\",'Data Sheet for Part B'!C539)","v":""},{"$f":"IF('Data Sheet for Part B'!D539=\"\",\"\",'Data Sheet for Part B'!D539)","v":""}]
[54,{"$f":"IF('Data Sheet for Part B'!B540=\"\",\"\",'Data Sheet for Part B'!B540)","v":""},{"$f":"IF('Data Sheet for Part B'!C540=\"\",\"\",'Data Sheet for Part B'!C540)","v":""},{"$f":"IF('Data Sheet for Part B'!D540=\"\",\"\",'Data Sheet for Part B'!D540)","v":""}]
[55,{"$f":"IF('Data Sheet for Part B'!B541=\"\",\"\",'Data Sheet for Part B'!B541)","v":""},{"$f":"IF('Data Sheet for Part B'!C541=\"\",\"\",'Data Sheet for Part B'!C541)","v":""},{"$f":"IF('Data Sheet for Part B'!D541=\"\",\"\",'Data Sheet for Part B'!D541)","v":""}]
[56,{"$f":"IF('Data Sheet for Part B'!B542=\"\",\"\",'Data Sheet for Part B'!B542)","v":""},{"$f":"IF('Data Sheet for Part B'!C542=\"\",\"\",'Data Sheet for Part B'!C542)","v":""},{"$f":"IF('Data Sheet for Part B'!D542=\"\",\"\",'Data Sheet for Part B'!D542)","v":""}]
[57,{"$f":"IF('Data Sheet for Part B'!B543=\"\",\"\",'Data Sheet for Part B'!B543)","v":""},{"$f":"IF('Data Sheet for Part B'!C543=\"\",\"\",'Data Sheet for Part B'!C543)","v":""},{"$f":"IF('Data Sheet for Part B'!D543=\"\",\"\",'Data Sheet for Part B'!D543)","v":""}]
[58,{"$f":"IF('Data Sheet for Part B'!B544=\"\",\"\",'Data Sheet for Part B'!B544)","v":""},{"$f":"IF('Data Sheet for Part B'!C544=\"\",\"\",'Data Sheet for Part B'!C544)","v":""},{"$f":"IF('Data Sheet for Part B'!D544=\"\",\"\",'Data Sheet for Part B'!D544)","v":""}]
[59,{"$f":"IF('Data Sheet for Part B'!B545=\"\",\"\",'Data Sheet for Part B'!B545)","v":""},{"$f":"IF('Data Sheet for Part B'!C545=\"\",\"\",'Data Sheet for Part B'!C545)","v":""},{"$f":"IF('Data Sheet for Part B'!D545=\"\",\"\",'Data Sheet for Part B'!D545)","v":""}]
[60,{"$f":"IF('Data Sheet for Part B'!B546=\"\",\"\",'Data Sheet for Part B'!B546)","v":""},{"$f":"IF('Data Sheet for Part B'!C546=\"\",\"\",'Data Sheet for Part B'!C546)","v":""},{"$f":"IF('Data Sheet for Part B'!D546=\"\",\"\",'Data Sheet for Part B'!D546)","v":""}]
[61,{"$f":"IF('Data Sheet for Part B'!B547=\"\",\"\",'Data Sheet for Part B'!B547)","v":""},{"$f":"IF('Data Sheet for Part B'!C547=\"\",\"\",'Data Sheet for Part B'!C547)","v":""},{"$f":"IF('Data Sheet for Part B'!D547=\"\",\"\",'Data Sheet for Part B'!D547)","v":""}]
[62,{"$f":"IF('Data Sheet for Part B'!B548=\"\",\"\",'Data Sheet for Part B'!B548)","v":""},{"$f":"IF('Data Sheet for Part B'!C548=\"\",\"\",'Data Sheet for Part B'!C548)","v":""},{"$f":"IF('Data Sheet for Part B'!D548=\"\",\"\",'Data Sheet for Part B'!D548)","v":""}]
[63,{"$f":"IF('Data Sheet for Part B'!B549=\"\",\"\",'Data Sheet for Part B'!B549)","v":""},{"$f":"IF('Data Sheet for Part B'!C549=\"\",\"\",'Data Sheet for Part B'!C549)","v":""},{"$f":"IF('Data Sheet for Part B'!D549=\"\",\"\",'Data Sheet for Part B'!D549)","v":""}]
[64,{"$f":"IF('Data Sheet for Part B'!B550=\"\",\"\",'Data Sheet for Part B'!B550)","v":""},{"$f":"IF('Data Sheet for Part B'!C550=\"\",\"\",'Data Sheet for Part B'!C550)","v":""},{"$f":"IF('Data Sheet for Part B'!D550=\"\",\"\",'Data Sheet for Part B'!D550)","v":""}]
[65,{"$f":"IF('Data Sheet for Part B'!B551=\"\",\"\",'Data Sheet for Part B'!B551)","v":""},{"$f":"IF('Data Sheet for Part B'!C551=\"\",\"\",'Data Sheet for Part B'!C551)","v":""},{"$f":"IF('Data Sheet for Part B'!D551=\"\",\"\",'Data Sheet for Part B'!D551)","v":""}]
[66,{"$f":"IF('Data Sheet for Part B'!B552=\"\",\"\",'Data Sheet for Part B'!B552)","v":""},{"$f":"IF('Data Sheet for Part B'!C552=\"\",\"\",'Data Sheet for Part B'!C552)","v":""},{"$f":"IF('Data Sheet for Part B'!D552=\"\",\"\",'Data Sheet for Part B'!D552)","v":""}]
[67,{"$f":"IF('Data Sheet for Part B'!B553=\"\",\"\",'Data Sheet for Part B'!B553)","v":""},{"$f":"IF('Data Sheet for Part B'!C553=\"\",\"\",'Data Sheet for Part B'!C553)","v":""},{"$f":"IF('Data Sheet for Part B'!D553=\"\",\"\",'Data Sheet for Part B'!D553)","v":""}]
[68,{"$f":"IF('Data Sheet for Part B'!B554=\"\",\"\",'Data Sheet for Part B'!B554)","v":""},{"$f":"IF('Data Sheet for Part B'!C554=\"\",\"\",'Data Sheet for Part B'!C554)","v":""},{"$f":"IF('Data Sheet for Part B'!D554=\"\",\"\",'Data Sheet for Part B'!D554)","v":""}]
[69,{"$f":"IF('Data Sheet for Part B'!B555=\"\",\"\",'Data Sheet for Part B'!B555)","v":""},{"$f":"IF('Data Sheet for Part B'!C555=\"\",\"\",'Data Sheet for Part B'!C555)","v":""},{"$f":"IF('Data Sheet for Part B'!D555=\"\",\"\",'Data Sheet for Part B'!D555)","v":""}]
[70,{"$f":"IF('Data Sheet for Part B'!B556=\"\",\"\",'Data Sheet for Part B'!B556)","v":""},{"$f":"IF('Data Sheet for Part B'!C556=\"\",\"\",'Data Sheet for Part B'!C556)","v":""},{"$f":"IF('Data Sheet for Part B'!D556=\"\",\"\",'Data Sheet for Part B'!D556)","v":""}]
[71,{"$f":"IF('Data Sheet for Part B'!B557=\"\",\"\",'Data Sheet for Part B'!B557)","v":""},{"$f":"IF('Data Sheet for Part B'!C557=\"\",\"\",'Data Sheet for Part B'!C557)","v":""},{"$f":"IF('Data Sheet for Part B'!D557=\"\",\"\",'Data Sheet for Part B'!D557)","v":""}]
[72,{"$f":"IF('Data Sheet for Part B'!B558=\"\",\"\",'Data Sheet for Part B'!B558)","v":""},{"$f":"IF('Data Sheet for Part B'!C558=\"\",\"\",'Data Sheet for Part B'!C558)","v":""},{"$f":"IF('Data Sheet for Part B'!D558=\"\",\"\",'Data Sheet for Part B'!D558)","v":""}]
[73,{"$f":"IF('Data Sheet for Part B'!B559=\"\",\"\",'Data Sheet for Part B'!B559)","v":""},{"$f":"IF('Data Sheet for Part B'!C559=\"\",\"\",'Data Sheet for Part B'!C559)","v":""},{"$f":"IF('Data Sheet for Part B'!D559=\"\",\"\",'Data Sheet for Part B'!D559)","v":""}]
[74,{"$f":"IF('Data Sheet for Part B'!B560=\"\",\"\",'Data Sheet for Part B'!B560)","v":""},{"$f":"IF('Data Sheet for Part B'!C560=\"\",\"\",'Data Sheet for Part B'!C560)","v":""},{"$f":"IF('Data Sheet for Part B'!D560=\"\",\"\",'Data Sheet for Part B'!D560)","v":""}]
[75,{"$f":"IF('Data Sheet for Part B'!B561=\"\",\"\",'Data Sheet for Part B'!B561)","v":""},{"$f":"IF('Data Sheet for Part B'!C561=\"\",\"\",'Data Sheet for Part B'!C561)","v":""},{"$f":"IF('Data Sheet for Part B'!D561=\"\",\"\",'Data Sheet for Part B'!D561)","v":""}]
[76,{"$f":"IF('Data Sheet for Part B'!B562=\"\",\"\",'Data Sheet for Part B'!B562)","v":""},{"$f":"IF('Data Sheet for Part B'!C562=\"\",\"\",'Data Sheet for Part B'!C562)","v":""},{"$f":"IF('Data Sheet for Part B'!D562=\"\",\"\",'Data Sheet for Part B'!D562)","v":""}]
[77,{"$f":"IF('Data Sheet for Part B'!B563=\"\",\"\",'Data Sheet for Part B'!B563)","v":""},{"$f":"IF('Data Sheet for Part B'!C563=\"\",\"\",'Data Sheet for Part B'!C563)","v":""},{"$f":"IF('Data Sheet for Part B'!D563=\"\",\"\",'Data Sheet for Part B'!D563)","v":""}]
[78,{"$f":"IF('Data Sheet for Part B'!B564=\"\",\"\",'Data Sheet for Part B'!B564)","v":""},{"$f":"IF('Data Sheet for Part B'!C564=\"\",\"\",'Data Sheet for Part B'!C564)","v":""},{"$f":"IF('Data Sheet for Part B'!D564=\"\",\"\",'Data Sheet for Part B'!D564)","v":""}]
[79,{"$f":"IF('Data Sheet for Part B'!B565=\"\",\"\",'Data Sheet for Part B'!B565)","v":""},{"$f":"IF('Data Sheet for Part B'!C565=\"\",\"\",'Data Sheet for Part B'!C565)","v":""},{"$f":"IF('Data Sheet for Part B'!D565=\"\",\"\",'Data Sheet for Part B'!D565)","v":""}]
[80,{"$f":"IF('Data Sheet for Part B'!B566=\"\",\"\",'Data Sheet for Part B'!B566)","v":""},{"$f":"IF('Data Sheet for Part B'!C566=\"\",\"\",'Data Sheet for Part B'!C566)","v":""},{"$f":"IF('Data Sheet for Part B'!D566=\"\",\"\",'Data Sheet for Part B'!D566)","v":""}]
[81,{"$f":"IF('Data Sheet for Part B'!B567=\"\",\"\",'Data Sheet for Part B'!B567)","v":""},{"$f":"IF('Data Sheet for Part B'!C567=\"\",\"\",'Data Sheet for Part B'!C567)","v":""},{"$f":"IF('Data Sheet for Part B'!D567=\"\",\"\",'Data Sheet for Part B'!D567)","v":""}]
[82,{"$f":"IF('Data Sheet for Part B'!B568=\"\",\"\",'Data Sheet for Part B'!B568)","v":""},{"$f":"IF('Data Sheet for Part B'!C568=\"\",\"\",'Data Sheet for Part B'!C568)","v":""},{"$f":"IF('Data Sheet for Part B'!D568=\"\",\"\",'Data Sheet for Part B'!D568)","v":""}]
[83,{"$f":"IF('Data Sheet for Part B'!B569=\"\",\"\",'Data Sheet for Part B'!B569)","v":""},{"$f":"IF('Data Sheet for Part B'!C569=\"\",\"\",'Data Sheet for Part B'!C569)","v":""},{"$f":"IF('Data Sheet for Part B'!D569=\"\",\"\",'Data Sheet for Part B'!D569)","v":""}]
[84,{"$f":"IF('Data Sheet for Part B'!B570=\"\",\"\",'Data Sheet for Part B'!B570)","v":""},{"$f":"IF('Data Sheet for Part B'!C570=\"\",\"\",'Data Sheet for Part B'!C570)","v":""},{"$f":"IF('Data Sheet for Part B'!D570=\"\",\"\",'Data Sheet for Part B'!D570)","v":""}]
[85,{"$f":"IF('Data Sheet for Part B'!B571=\"\",\"\",'Data Sheet for Part B'!B571)","v":""},{"$f":"IF('Data Sheet for Part B'!C571=\"\",\"\",'Data Sheet for Part B'!C571)","v":""},{"$f":"IF('Data Sheet for Part B'!D571=\"\",\"\",'Data Sheet for Part B'!D571)","v":""}]
[86,{"$f":"IF('Data Sheet for Part B'!B572=\"\",\"\",'Data Sheet for Part B'!B572)","v":""},{"$f":"IF('Data Sheet for Part B'!C572=\"\",\"\",'Data Sheet for Part B'!C572)","v":""},{"$f":"IF('Data Sheet for Part B'!D572=\"\",\"\",'Data Sheet for Part B'!D572)","v":""}]
[87,{"$f":"IF('Data Sheet for Part B'!B573=\"\",\"\",'Data Sheet for Part B'!B573)","v":""},{"$f":"IF('Data Sheet for Part B'!C573=\"\",\"\",'Data Sheet for Part B'!C573)","v":""},{"$f":"IF('Data Sheet for Part B'!D573=\"\",\"\",'Data Sheet for Part B'!D573)","v":""}]
[88,{"$f":"IF('Data Sheet for Part B'!B574=\"\",\"\",'Data Sheet for Part B'!B574)","v":""},{"$f":"IF('Data Sheet for Part B'!C574=\"\",\"\",'Data Sheet for Part B'!C574)","v":""},{"$f":"IF('Data Sheet for Part B'!D574=\"\",\"\",'Data Sheet for Part B'!D574)","v":""}]
[89,{"$f":"IF('Data Sheet for Part B'!B575=\"\",\"\",'Data Sheet for Part B'!B575)","v":""},{"$f":"IF('Data Sheet for Part B'!C575=\"\",\"\",'Data Sheet for Part B'!C575)","v":""},{"$f":"IF('Data Sheet for Part B'!D575=\"\",\"\",'Data Sheet for Part B'!D575)","v":""}]
[90,{"$f":"IF('Data Sheet for Part B'!B576=\"\",\"\",'Data Sheet for Part B'!B576)","v":""},{"$f":"IF('Data Sheet for Part B'!C576=\"\",\"\",'Data Sheet for Part B'!C576)","v":""},{"$f":"IF('Data Sheet for Part B'!D576=\"\",\"\",'Data Sheet for Part B'!D576)","v":""}]
[91,{"$f":"IF('Data Sheet for Part B'!B577=\"\",\"\",'Data Sheet for Part B'!B577)","v":""},{"$f":"IF('Data Sheet for Part B'!C577=\"\",\"\",'Data Sheet for Part B'!C577)","v":""},{"$f":"IF('Data Sheet for Part B'!D577=\"\",\"\",'Data Sheet for Part B'!D577)","v":""}]
[92,{"$f":"IF('Data Sheet for Part B'!B578=\"\",\"\",'Data Sheet for Part B'!B578)","v":""},{"$f":"IF('Data Sheet for Part B'!C578=\"\",\"\",'Data Sheet for Part B'!C578)","v":""},{"$f":"IF('Data Sheet for Part B'!D578=\"\",\"\",'Data Sheet for Part B'!D578)","v":""}]
[93,{"$f":"IF('Data Sheet for Part B'!B579=\"\",\"\",'Data Sheet for Part B'!B579)","v":""},{"$f":"IF('Data Sheet for Part B'!C579=\"\",\"\",'Data Sheet for Part B'!C579)","v":""},{"$f":"IF('Data Sheet for Part B'!D579=\"\",\"\",'Data Sheet for Part B'!D579)","v":""}]
[94,{"$f":"IF('Data Sheet for Part B'!B580=\"\",\"\",'Data Sheet for Part B'!B580)","v":""},{"$f":"IF('Data Sheet for Part B'!C580=\"\",\"\",'Data Sheet for Part B'!C580)","v":""},{"$f":"IF('Data Sheet for Part B'!D580=\"\",\"\",'Data Sheet for Part B'!D580)","v":""}]
[95,{"$f":"IF('Data Sheet for Part B'!B581=\"\",\"\",'Data Sheet for Part B'!B581)","v":""},{"$f":"IF('Data Sheet for Part B'!C581=\"\",\"\",'Data Sheet for Part B'!C581)","v":""},{"$f":"IF('Data Sheet for Part B'!D581=\"\",\"\",'Data Sheet for Part B'!D581)","v":""}]
[96,{"$f":"IF('Data Sheet for Part B'!B582=\"\",\"\",'Data Sheet for Part B'!B582)","v":""},{"$f":"IF('Data Sheet for Part B'!C582=\"\",\"\",'Data Sheet for Part B'!C582)","v":""},{"$f":"IF('Data Sheet for Part B'!D582=\"\",\"\",'Data Sheet for Part B'!D582)","v":""}]
[97,{"$f":"IF('Data Sheet for Part B'!B583=\"\",\"\",'Data Sheet for Part B'!B583)","v":""},{"$f":"IF('Data Sheet for Part B'!C583=\"\",\"\",'Data Sheet for Part B'!C583)","v":""},{"$f":"IF('Data Sheet for Part B'!D583=\"\",\"\",'Data Sheet for Part B'!D583)","v":""}]
[98,{"$f":"IF('Data Sheet for Part B'!B584=\"\",\"\",'Data Sheet for Part B'!B584)","v":""},{"$f":"IF('Data Sheet for Part B'!C584=\"\",\"\",'Data Sheet for Part B'!C584)","v":""},{"$f":"IF('Data Sheet for Part B'!D584=\"\",\"\",'Data Sheet for Part B'!D584)","v":""}]
[99,{"$f":"IF('Data Sheet for Part B'!B585=\"\",\"\",'Data Sheet for Part B'!B585)","v":""},{"$f":"IF('Data Sheet for Part B'!C585=\"\",\"\",'Data Sheet for Part B'!C585)","v":""},{"$f":"IF('Data Sheet for Part B'!D585=\"\",\"\",'Data Sheet for Part B'!D585)","v":""}]
[100,{"$f":"IF('Data Sheet for Part B'!B586=\"\",\"\",'Data Sheet for Part B'!B586)","v":""},{"$f":"IF('Data Sheet for Part B'!C586=\"\",\"\",'Data Sheet for Part B'!C586)","v":""},{"$f":"IF('Data Sheet for Part B'!D586=\"\",\"\",'Data Sheet for Part B'!D586)","v":""}]
[101,{"$f":"IF('Data Sheet for Part B'!B587=\"\",\"\",'Data Sheet for Part B'!B587)","v":""},{"$f":"IF('Data Sheet for Part B'!C587=\"\",\"\",'Data Sheet for Part B'!C587)","v":""},{"$f":"IF('Data Sheet for Part B'!D587=\"\",\"\",'Data Sheet for Part B'!D587)","v":""}]
[102,{"$f":"IF('Data Sheet for Part B'!B588=\"\",\"\",'Data Sheet for Part B'!B588)","v":""},{"$f":"IF('Data Sheet for Part B'!C588=\"\",\"\",'Data Sheet for Part B'!C588)","v":""},{"$f":"IF('Data Sheet for Part B'!D588=\"\",\"\",'Data Sheet for Part B'!D588)","v":""}]
[103,{"$f":"IF('Data Sheet for Part B'!B589=\"\",\"\",'Data Sheet for Part B'!B589)","v":""},{"$f":"IF('Data Sheet for Part B'!C589=\"\",\"\",'Data Sheet for Part B'!C589)","v":""},{"$f":"IF('Data Sheet for Part B'!D589=\"\",\"\",'Data Sheet for Part B'!D589)","v":""}]
[104,{"$f":"IF('Data Sheet for Part B'!B590=\"\",\"\",'Data Sheet for Part B'!B590)","v":""},{"$f":"IF('Data Sheet for Part B'!C590=\"\",\"\",'Data Sheet for Part B'!C590)","v":""},{"$f":"IF('Data Sheet for Part B'!D590=\"\",\"\",'Data Sheet for Part B'!D590)","v":""}]
[105,{"$f":"IF('Data Sheet for Part B'!B591=\"\",\"\",'Data Sheet for Part B'!B591)","v":""},{"$f":"IF('Data Sheet for Part B'!C591=\"\",\"\",'Data Sheet for Part B'!C591)","v":""},{"$f":"IF('Data Sheet for Part B'!D591=\"\",\"\",'Data Sheet for Part B'!D591)","v":""}]
[106,{"$f":"IF('Data Sheet for Part B'!B592=\"\",\"\",'Data Sheet for Part B'!B592)","v":""},{"$f":"IF('Data Sheet for Part B'!C592=\"\",\"\",'Data Sheet for Part B'!C592)","v":""},{"$f":"IF('Data Sheet for Part B'!D592=\"\",\"\",'Data Sheet for Part B'!D592)","v":""}]
[107,{"$f":"IF('Data Sheet for Part B'!B593=\"\",\"\",'Data Sheet for Part B'!B593)","v":""},{"$f":"IF('Data Sheet for Part B'!C593=\"\",\"\",'Data Sheet for Part B'!C593)","v":""},{"$f":"IF('Data Sheet for Part B'!D593=\"\",\"\",'Data Sheet for Part B'!D593)","v":""}]
[108,{"$f":"IF('Data Sheet for Part B'!B594=\"\",\"\",'Data Sheet for Part B'!B594)","v":""},{"$f":"IF('Data Sheet for Part B'!C594=\"\",\"\",'Data Sheet for Part B'!C594)","v":""},{"$f":"IF('Data Sheet for Part B'!D594=\"\",\"\",'Data Sheet for Part B'!D594)","v":""}]
[109,{"$f":"IF('Data Sheet for Part B'!B595=\"\",\"\",'Data Sheet for Part B'!B595)","v":""},{"$f":"IF('Data Sheet for Part B'!C595=\"\",\"\",'Data Sheet for Part B'!C595)","v":""},{"$f":"IF('Data Sheet for Part B'!D595=\"\",\"\",'Data Sheet for Part B'!D595)","v":""}]
[110,{"$f":"IF('Data Sheet for Part B'!B596=\"\",\"\",'Data Sheet for Part B'!B596)","v":""},{"$f":"IF('Data Sheet for Part B'!C596=\"\",\"\",'Data Sheet for Part B'!C596)","v":""},{"$f":"IF('Data Sheet for Part B'!D596=\"\",\"\",'Data Sheet for Part B'!D596)","v":""}]
[111,{"$f":"IF('Data Sheet for Part B'!B597=\"\",\"\",'Data Sheet for Part B'!B597)","v":""},{"$f":"IF('Data Sheet for Part B'!C597=\"\",\"\",'Data Sheet for Part B'!C597)","v":""},{"$f":"IF('Data Sheet for Part B'!D597=\"\",\"\",'Data Sheet for Part B'!D597)","v":""}]
[112,{"$f":"IF('Data Sheet for Part B'!B598=\"\",\"\",'Data Sheet for Part B'!B598)","v":""},{"$f":"IF('Data Sheet for Part B'!C598=\"\",\"\",'Data Sheet for Part B'!C598)","v":""},{"$f":"IF('Data Sheet for Part B'!D598=\"\",\"\",'Data Sheet for Part B'!D598)","v":""}]
[113,{"$f":"IF('Data Sheet for Part B'!B599=\"\",\"\",'Data Sheet for Part B'!B599)","v":""},{"$f":"IF('Data Sheet for Part B'!C599=\"\",\"\",'Data Sheet for Part B'!C599)","v":""},{"$f":"IF('Data Sheet for Part B'!D599=\"\",\"\",'Data Sheet for Part B'!D599)","v":""}]
[114,{"$f":"IF('Data Sheet for Part B'!B600=\"\",\"\",'Data Sheet for Part B'!B600)","v":""},{"$f":"IF('Data Sheet for Part B'!C600=\"\",\"\",'Data Sheet for Part B'!C600)","v":""},{"$f":"IF('Data Sheet for Part B'!D600=\"\",\"\",'Data Sheet for Part B'!D600)","v":""}]
[115,{"$f":"IF('Data Sheet for Part B'!B601=\"\",\"\",'Data Sheet for Part B'!B601)","v":""},{"$f":"IF('Data Sheet for Part B'!C601=\"\",\"\",'Data Sheet for Part B'!C601)","v":""},{"$f":"IF('Data Sheet for Part B'!D601=\"\",\"\",'Data Sheet for Part B'!D601)","v":""}]
[116,{"$f":"IF('Data Sheet for Part B'!B602=\"\",\"\",'Data Sheet for Part B'!B602)","v":""},{"$f":"IF('Data Sheet for Part B'!C602=\"\",\"\",'Data Sheet for Part B'!C602)","v":""},{"$f":"IF('Data Sheet for Part B'!D602=\"\",\"\",'Data Sheet for Part B'!D602)","v":""}]
[117,{"$f":"IF('Data Sheet for Part B'!B603=\"\",\"\",'Data Sheet for Part B'!B603)","v":""},{"$f":"IF('Data Sheet for Part B'!C603=\"\",\"\",'Data Sheet for Part B'!C603)","v":""},{"$f":"IF('Data Sheet for Part B'!D603=\"\",\"\",'Data Sheet for Part B'!D603)","v":""}]
[118,{"$f":"IF('Data Sheet for Part B'!B604=\"\",\"\",'Data Sheet for Part B'!B604)","v":""},{"$f":"IF('Data Sheet for Part B'!C604=\"\",\"\",'Data Sheet for Part B'!C604)","v":""},{"$f":"IF('Data Sheet for Part B'!D604=\"\",\"\",'Data Sheet for Part B'!D604)","v":""}]
[119,{"$f":"IF('Data Sheet for Part B'!B605=\"\",\"\",'Data Sheet for Part B'!B605)","v":""},{"$f":"IF('Data Sheet for Part B'!C605=\"\",\"\",'Data Sheet for Part B'!C605)","v":""},{"$f":"IF('Data Sheet for Part B'!D605=\"\",\"\",'Data Sheet for Part B'!D605)","v":""}]
[120,{"$f":"IF('Data Sheet for Part B'!B606=\"\",\"\",'Data Sheet for Part B'!B606)","v":""},{"$f":"IF('Data Sheet for Part B'!C606=\"\",\"\",'Data Sheet for Part B'!C606)","v":""},{"$f":"IF('Data Sheet for Part B'!D606=\"\",\"\",'Data Sheet for Part B'!D606)","v":""}]
[121,{"$f":"IF('Data Sheet for Part B'!B607=\"\",\"\",'Data Sheet for Part B'!B607)","v":""},{"$f":"IF('Data Sheet for Part B'!C607=\"\",\"\",'Data Sheet for Part B'!C607)","v":""},{"$f":"IF('Data Sheet for Part B'!D607=\"\",\"\",'Data Sheet for Part B'!D607)","v":""}]
[122,{"$f":"IF('Data Sheet for Part B'!B608=\"\",\"\",'Data Sheet for Part B'!B608)","v":""},{"$f":"IF('Data Sheet for Part B'!C608=\"\",\"\",'Data Sheet for Part B'!C608)","v":""},{"$f":"IF('Data Sheet for Part B'!D608=\"\",\"\",'Data Sheet for Part B'!D608)","v":""}]
[123,{"$f":"IF('Data Sheet for Part B'!B609=\"\",\"\",'Data Sheet for Part B'!B609)","v":""},{"$f":"IF('Data Sheet for Part B'!C609=\"\",\"\",'Data Sheet for Part B'!C609)","v":""},{"$f":"IF('Data Sheet for Part B'!D609=\"\",\"\",'Data Sheet for Part B'!D609)","v":""}]
[124,{"$f":"IF('Data Sheet for Part B'!B610=\"\",\"\",'Data Sheet for Part B'!B610)","v":""},{"$f":"IF('Data Sheet for Part B'!C610=\"\",\"\",'Data Sheet for Part B'!C610)","v":""},{"$f":"IF('Data Sheet for Part B'!D610=\"\",\"\",'Data Sheet for Part B'!D610)","v":""}]
[125,{"$f":"IF('Data Sheet for Part B'!B611=\"\",\"\",'Data Sheet for Part B'!B611)","v":""},{"$f":"IF('Data Sheet for Part B'!C611=\"\",\"\",'Data Sheet for Part B'!C611)","v":""},{"$f":"IF('Data Sheet for Part B'!D611=\"\",\"\",'Data Sheet for Part B'!D611)","v":""}]
[126,{"$f":"IF('Data Sheet for Part B'!B612=\"\",\"\",'Data Sheet for Part B'!B612)","v":""},{"$f":"IF('Data Sheet for Part B'!C612=\"\",\"\",'Data Sheet for Part B'!C612)","v":""},{"$f":"IF('Data Sheet for Part B'!D612=\"\",\"\",'Data Sheet for Part B'!D612)","v":""}]
[127,{"$f":"IF('Data Sheet for Part B'!B613=\"\",\"\",'Data Sheet for Part B'!B613)","v":""},{"$f":"IF('Data Sheet for Part B'!C613=\"\",\"\",'Data Sheet for Part B'!C613)","v":""},{"$f":"IF('Data Sheet for Part B'!D613=\"\",\"\",'Data Sheet for Part B'!D613)","v":""}]
[128,{"$f":"IF('Data Sheet for Part B'!B614=\"\",\"\",'Data Sheet for Part B'!B614)","v":""},{"$f":"IF('Data Sheet for Part B'!C614=\"\",\"\",'Data Sheet for Part B'!C614)","v":""},{"$f":"IF('Data Sheet for Part B'!D614=\"\",\"\",'Data Sheet for Part B'!D614)","v":""}]
[129,{"$f":"IF('Data Sheet for Part B'!B615=\"\",\"\",'Data Sheet for Part B'!B615)","v":""},{"$f":"IF('Data Sheet for Part B'!C615=\"\",\"\",'Data Sheet for Part B'!C615)","v":""},{"$f":"IF('Data Sheet for Part B'!D615=\"\",\"\",'Data Sheet for Part B'!D615)","v":""}]
[130,{"$f":"IF('Data Sheet for Part B'!B616=\"\",\"\",'Data Sheet for Part B'!B616)","v":""},{"$f":"IF('Data Sheet for Part B'!C616=\"\",\"\",'Data Sheet for Part B'!C616)","v":""},{"$f":"IF('Data Sheet for Part B'!D616=\"\",\"\",'Data Sheet for Part B'!D616)","v":""}]
[131,{"$f":"IF('Data Sheet for Part B'!B617=\"\",\"\",'Data Sheet for Part B'!B617)","v":""},{"$f":"IF('Data Sheet for Part B'!C617=\"\",\"\",'Data Sheet for Part B'!C617)","v":""},{"$f":"IF('Data Sheet for Part B'!D617=\"\",\"\",'Data Sheet for Part B'!D617)","v":""}]
[132,{"$f":"IF('Data Sheet for Part B'!B618=\"\",\"\",'Data Sheet for Part B'!B618)","v":""},{"$f":"IF('Data Sheet for Part B'!C618=\"\",\"\",'Data Sheet for Part B'!C618)","v":""},{"$f":"IF('Data Sheet for Part B'!D618=\"\",\"\",'Data Sheet for Part B'!D618)","v":""}]
[133,{"$f":"IF('Data Sheet for Part B'!B619=\"\",\"\",'Data Sheet for Part B'!B619)","v":""},{"$f":"IF('Data Sheet for Part B'!C619=\"\",\"\",'Data Sheet for Part B'!C619)","v":""},{"$f":"IF('Data Sheet for Part B'!D619=\"\",\"\",'Data Sheet for Part B'!D619)","v":""}]
[134,{"$f":"IF('Data Sheet for Part B'!B620=\"\",\"\",'Data Sheet for Part B'!B620)","v":""},{"$f":"IF('Data Sheet for Part B'!C620=\"\",\"\",'Data Sheet for Part B'!C620)","v":""},{"$f":"IF('Data Sheet for Part B'!D620=\"\",\"\",'Data Sheet for Part B'!D620)","v":""}]
[135,{"$f":"IF('Data Sheet for Part B'!B621=\"\",\"\",'Data Sheet for Part B'!B621)","v":""},{"$f":"IF('Data Sheet for Part B'!C621=\"\",\"\",'Data Sheet for Part B'!C621)","v":""},{"$f":"IF('Data Sheet for Part B'!D621=\"\",\"\",'Data Sheet for Part B'!D621)","v":""}]
[136,{"$f":"IF('Data Sheet for Part B'!B622=\"\",\"\",'Data Sheet for Part B'!B622)","v":""},{"$f":"IF('Data Sheet for Part B'!C622=\"\",\"\",'Data Sheet for Part B'!C622)","v":""},{"$f":"IF('Data Sheet for Part B'!D622=\"\",\"\",'Data Sheet for Part B'!D622)","v":""}]
[137,{"$f":"IF('Data Sheet for Part B'!B623=\"\",\"\",'Data Sheet for Part B'!B623)","v":""},{"$f":"IF('Data Sheet for Part B'!C623=\"\",\"\",'Data Sheet for Part B'!C623)","v":""},{"$f":"IF('Data Sheet for Part B'!D623=\"\",\"\",'Data Sheet for Part B'!D623)","v":""}]
[138,{"$f":"IF('Data Sheet for Part B'!B624=\"\",\"\",'Data Sheet for Part B'!B624)","v":""},{"$f":"IF('Data Sheet for Part B'!C624=\"\",\"\",'Data Sheet for Part B'!C624)","v":""},{"$f":"IF('Data Sheet for Part B'!D624=\"\",\"\",'Data Sheet for Part B'!D624)","v":""}]
[139,{"$f":"IF('Data Sheet for Part B'!B625=\"\",\"\",'Data Sheet for Part B'!B625)","v":""},{"$f":"IF('Data Sheet for Part B'!C625=\"\",\"\",'Data Sheet for Part B'!C625)","v":""},{"$f":"IF('Data Sheet for Part B'!D625=\"\",\"\",'Data Sheet for Part B'!D625)","v":""}]
[140,{"$f":"IF('Data Sheet for Part B'!B626=\"\",\"\",'Data Sheet for Part B'!B626)","v":""},{"$f":"IF('Data Sheet for Part B'!C626=\"\",\"\",'Data Sheet for Part B'!C626)","v":""},{"$f":"IF('Data Sheet for Part B'!D626=\"\",\"\",'Data Sheet for Part B'!D626)","v":""}]
[141,{"$f":"IF('Data Sheet for Part B'!B627=\"\",\"\",'Data Sheet for Part B'!B627)","v":""},{"$f":"IF('Data Sheet for Part B'!C627=\"\",\"\",'Data Sheet for Part B'!C627)","v":""},{"$f":"IF('Data Sheet for Part B'!D627=\"\",\"\",'Data Sheet for Part B'!D627)","v":""}]
[142,{"$f":"IF('Data Sheet for Part B'!B628=\"\",\"\",'Data Sheet for Part B'!B628)","v":""},{"$f":"IF('Data Sheet for Part B'!C628=\"\",\"\",'Data Sheet for Part B'!C628)","v":""},{"$f":"IF('Data Sheet for Part B'!D628=\"\",\"\",'Data Sheet for Part B'!D628)","v":""}]
[143,{"$f":"IF('Data Sheet for Part B'!B629=\"\",\"\",'Data Sheet for Part B'!B629)","v":""},{"$f":"IF('Data Sheet for Part B'!C629=\"\",\"\",'Data Sheet for Part B'!C629)","v":""},{"$f":"IF('Data Sheet for Part B'!D629=\"\",\"\",'Data Sheet for Part B'!D629)","v":""}]
[144,{"$f":"IF('Data Sheet for Part B'!B630=\"\",\"\",'Data Sheet for Part B'!B630)","v":""},{"$f":"IF('Data Sheet for Part B'!C630=\"\",\"\",'Data Sheet for Part B'!C630)","v":""},{"$f":"IF('Data Sheet for Part B'!D630=\"\",\"\",'Data Sheet for Part B'!D630)","v":""}]
[145,{"$f":"IF('Data Sheet for Part B'!B631=\"\",\"\",'Data Sheet for Part B'!B631)","v":""},{"$f":"IF('Data Sheet for Part B'!C631=\"\",\"\",'Data Sheet for Part B'!C631)","v":""},{"$f":"IF('Data Sheet for Part B'!D631=\"\",\"\",'Data Sheet for Part B'!D631)","v":""}]
[146,{"$f":"IF('Data Sheet for Part B'!B632=\"\",\"\",'Data Sheet for Part B'!B632)","v":""},{"$f":"IF('Data Sheet for Part B'!C632=\"\",\"\",'Data Sheet for Part B'!C632)","v":""},{"$f":"IF('Data Sheet for Part B'!D632=\"\",\"\",'Data Sheet for Part B'!D632)","v":""}]
[147,{"$f":"IF('Data Sheet for Part B'!B633=\"\",\"\",'Data Sheet for Part B'!B633)","v":""},{"$f":"IF('Data Sheet for Part B'!C633=\"\",\"\",'Data Sheet for Part B'!C633)","v":""},{"$f":"IF('Data Sheet for Part B'!D633=\"\",\"\",'Data Sheet for Part B'!D633)","v":""}]
[148,{"$f":"IF('Data Sheet for Part B'!B634=\"\",\"\",'Data Sheet for Part B'!B634)","v":""},{"$f":"IF('Data Sheet for Part B'!C634=\"\",\"\",'Data Sheet for Part B'!C634)","v":""},{"$f":"IF('Data Sheet for Part B'!D634=\"\",\"\",'Data Sheet for Part B'!D634)","v":""}]
[149,{"$f":"IF('Data Sheet for Part B'!B635=\"\",\"\",'Data Sheet for Part B'!B635)","v":""},{"$f":"IF('Data Sheet for Part B'!C635=\"\",\"\",'Data Sheet for Part B'!C635)","v":""},{"$f":"IF('Data Sheet for Part B'!D635=\"\",\"\",'Data Sheet for Part B'!D635)","v":""}]
[150,{"$f":"IF('Data Sheet for Part B'!B636=\"\",\"\",'Data Sheet for Part B'!B636)","v":""},{"$f":"IF('Data Sheet for Part B'!C636=\"\",\"\",'Data Sheet for Part B'!C636)","v":""},{"$f":"IF('Data Sheet for Part B'!D636=\"\",\"\",'Data Sheet for Part B'!D636)","v":""}]
[151,{"$f":"IF('Data Sheet for Part B'!B637=\"\",\"\",'Data Sheet for Part B'!B637)","v":""},{"$f":"IF('Data Sheet for Part B'!C637=\"\",\"\",'Data Sheet for Part B'!C637)","v":""},{"$f":"IF('Data Sheet for Part B'!D637=\"\",\"\",'Data Sheet for Part B'!D637)","v":""}]
[152,{"$f":"IF('Data Sheet for Part B'!B638=\"\",\"\",'Data Sheet for Part B'!B638)","v":""},{"$f":"IF('Data Sheet for Part B'!C638=\"\",\"\",'Data Sheet for Part B'!C638)","v":""},{"$f":"IF('Data Sheet for Part B'!D638=\"\",\"\",'Data Sheet for Part B'!D638)","v":""}]
[153,{"$f":"IF('Data Sheet for Part B'!B639=\"\",\"\",'Data Sheet for Part B'!B639)","v":""},{"$f":"IF('Data Sheet for Part B'!C639=\"\",\"\",'Data Sheet for Part B'!C639)","v":""},{"$f":"IF('Data Sheet for Part B'!D639=\"\",\"\",'Data Sheet for Part B'!D639)","v":""}]
[154,{"$f":"IF('Data Sheet for Part B'!B640=\"\",\"\",'Data Sheet for Part B'!B640)","v":""},{"$f":"IF('Data Sheet for Part B'!C640=\"\",\"\",'Data Sheet for Part B'!C640)","v":""},{"$f":"IF('Data Sheet for Part B'!D640=\"\",\"\",'Data Sheet for Part B'!D640)","v":""}]
[155,{"$f":"IF('Data Sheet for Part B'!B641=\"\",\"\",'Data Sheet for Part B'!B641)","v":""},{"$f":"IF('Data Sheet for Part B'!C641=\"\",\"\",'Data Sheet for Part B'!C641)","v":""},{"$f":"IF('Data Sheet for Part B'!D641=\"\",\"\",'Data Sheet for Part B'!D641)","v":""}]
[156,{"$f":"IF('Data Sheet for Part B'!B642=\"\",\"\",'Data Sheet for Part B'!B642)","v":""},{"$f":"IF('Data Sheet for Part B'!C642=\"\",\"\",'Data Sheet for Part B'!C642)","v":""},{"$f":"IF('Data Sheet for Part B'!D642=\"\",\"\",'Data Sheet for Part B'!D642)","v":""}]
[157,{"$f":"IF('Data Sheet for Part B'!B643=\"\",\"\",'Data Sheet for Part B'!B643)","v":""},{"$f":"IF('Data Sheet for Part B'!C643=\"\",\"\",'Data Sheet for Part B'!C643)","v":""},{"$f":"IF('Data Sheet for Part B'!D643=\"\",\"\",'Data Sheet for Part B'!D643)","v":""}]
[158,{"$f":"IF('Data Sheet for Part B'!B644=\"\",\"\",'Data Sheet for Part B'!B644)","v":""},{"$f":"IF('Data Sheet for Part B'!C644=\"\",\"\",'Data Sheet for Part B'!C644)","v":""},{"$f":"IF('Data Sheet for Part B'!D644=\"\",\"\",'Data Sheet for Part B'!D644)","v":""}]
[159,{"$f":"IF('Data Sheet for Part B'!B645=\"\",\"\",'Data Sheet for Part B'!B645)","v":""},{"$f":"IF('Data Sheet for Part B'!C645=\"\",\"\",'Data Sheet for Part B'!C645)","v":""},{"$f":"IF('Data Sheet for Part B'!D645=\"\",\"\",'Data Sheet for Part B'!D645)","v":""}]
[160,{"$f":"IF('Data Sheet for Part B'!B646=\"\",\"\",'Data Sheet for Part B'!B646)","v":""},{"$f":"IF('Data Sheet for Part B'!C646=\"\",\"\",'Data Sheet for Part B'!C646)","v":""},{"$f":"IF('Data Sheet for Part B'!D646=\"\",\"\",'Data Sheet for Part B'!D646)","v":""}]
[161,{"$f":"IF('Data Sheet for Part B'!B647=\"\",\"\",'Data Sheet for Part B'!B647)","v":""},{"$f":"IF('Data Sheet for Part B'!C647=\"\",\"\",'Data Sheet for Part B'!C647)","v":""},{"$f":"IF('Data Sheet for Part B'!D647=\"\",\"\",'Data Sheet for Part B'!D647)","v":""}]
[162,{"$f":"IF('Data Sheet for Part B'!B648=\"\",\"\",'Data Sheet for Part B'!B648)","v":""},{"$f":"IF('Data Sheet for Part B'!C648=\"\",\"\",'Data Sheet for Part B'!C648)","v":""},{"$f":"IF('Data Sheet for Part B'!D648=\"\",\"\",'Data Sheet for Part B'!D648)","v":""}]
[163,{"$f":"IF('Data Sheet for Part B'!B649=\"\",\"\",'Data Sheet for Part B'!B649)","v":""},{"$f":"IF('Data Sheet for Part B'!C649=\"\",\"\",'Data Sheet for Part B'!C649)","v":""},{"$f":"IF('Data Sheet for Part B'!D649=\"\",\"\",'Data Sheet for Part B'!D649)","v":""}]
[164,{"$f":"IF('Data Sheet for Part B'!B650=\"\",\"\",'Data Sheet for Part B'!B650)","v":""},{"$f":"IF('Data Sheet for Part B'!C650=\"\",\"\",'Data Sheet for Part B'!C650)","v":""},{"$f":"IF('Data Sheet for Part B'!D650=\"\",\"\",'Data Sheet for Part B'!D650)","v":""}]
[165,{"$f":"IF('Data Sheet for Part B'!B651=\"\",\"\",'Data Sheet for Part B'!B651)","v":""},{"$f":"IF('Data Sheet for Part B'!C651=\"\",\"\",'Data Sheet for Part B'!C651)","v":""},{"$f":"IF('Data Sheet for Part B'!D651=\"\",\"\",'Data Sheet for Part B'!D651)","v":""}]
[166,{"$f":"IF('Data Sheet for Part B'!B652=\"\",\"\",'Data Sheet for Part B'!B652)","v":""},{"$f":"IF('Data Sheet for Part B'!C652=\"\",\"\",'Data Sheet for Part B'!C652)","v":""},{"$f":"IF('Data Sheet for Part B'!D652=\"\",\"\",'Data Sheet for Part B'!D652)","v":""}]
[167,{"$f":"IF('Data Sheet for Part B'!B653=\"\",\"\",'Data Sheet for Part B'!B653)","v":""},{"$f":"IF('Data Sheet for Part B'!C653=\"\",\"\",'Data Sheet for Part B'!C653)","v":""},{"$f":"IF('Data Sheet for Part B'!D653=\"\",\"\",'Data Sheet for Part B'!D653)","v":""}]
[168,{"$f":"IF('Data Sheet for Part B'!B654=\"\",\"\",'Data Sheet for Part B'!B654)","v":""},{"$f":"IF('Data Sheet for Part B'!C654=\"\",\"\",'Data Sheet for Part B'!C654)","v":""},{"$f":"IF('Data Sheet for Part B'!D654=\"\",\"\",'Data Sheet for Part B'!D654)","v":""}]
[169,{"$f":"IF('Data Sheet for Part B'!B655=\"\",\"\",'Data Sheet for Part B'!B655)","v":""},{"$f":"IF('Data Sheet for Part B'!C655=\"\",\"\",'Data Sheet for Part B'!C655)","v":""},{"$f":"IF('Data Sheet for Part B'!D655=\"\",\"\",'Data Sheet for Part B'!D655)","v":""}]
[170,{"$f":"IF('Data Sheet for Part B'!B656=\"\",\"\",'Data Sheet for Part B'!B656)","v":""},{"$f":"IF('Data Sheet for Part B'!C656=\"\",\"\",'Data Sheet for Part B'!C656)","v":""},{"$f":"IF('Data Sheet for Part B'!D656=\"\",\"\",'Data Sheet for Part B'!D656)","v":""}]
[171,{"$f":"IF('Data Sheet for Part B'!B657=\"\",\"\",'Data Sheet for Part B'!B657)","v":""},{"$f":"IF('Data Sheet for Part B'!C657=\"\",\"\",'Data Sheet for Part B'!C657)","v":""},{"$f":"IF('Data Sheet for Part B'!D657=\"\",\"\",'Data Sheet for Part B'!D657)","v":""}]
[172,{"$f":"IF('Data Sheet for Part B'!B658=\"\",\"\",'Data Sheet for Part B'!B658)","v":""},{"$f":"IF('Data Sheet for Part B'!C658=\"\",\"\",'Data Sheet for Part B'!C658)","v":""},{"$f":"IF('Data Sheet for Part B'!D658=\"\",\"\",'Data Sheet for Part B'!D658)","v":""}]
[173,{"$f":"IF('Data Sheet for Part B'!B659=\"\",\"\",'Data Sheet for Part B'!B659)","v":""},{"$f":"IF('Data Sheet for Part B'!C659=\"\",\"\",'Data Sheet for Part B'!C659)","v":""},{"$f":"IF('Data Sheet for Part B'!D659=\"\",\"\",'Data Sheet for Part B'!D659)","v":""}]
[174,{"$f":"IF('Data Sheet for Part B'!B660=\"\",\"\",'Data Sheet for Part B'!B660)","v":""},{"$f":"IF('Data Sheet for Part B'!C660=\"\",\"\",'Data Sheet for Part B'!C660)","v":""},{"$f":"IF('Data Sheet for Part B'!D660=\"\",\"\",'Data Sheet for Part B'!D660)","v":""}]
[175,{"$f":"IF('Data Sheet for Part B'!B661=\"\",\"\",'Data Sheet for Part B'!B661)","v":""},{"$f":"IF('Data Sheet for Part B'!C661=\"\",\"\",'Data Sheet for Part B'!C661)","v":""},{"$f":"IF('Data Sheet for Part B'!D661=\"\",\"\",'Data Sheet for Part B'!D661)","v":""}]
[176,{"$f":"IF('Data Sheet for Part B'!B662=\"\",\"\",'Data Sheet for Part B'!B662)","v":""},{"$f":"IF('Data Sheet for Part B'!C662=\"\",\"\",'Data Sheet for Part B'!C662)","v":""},{"$f":"IF('Data Sheet for Part B'!D662=\"\",\"\",'Data Sheet for Part B'!D662)","v":""}]
[177,{"$f":"IF('Data Sheet for Part B'!B663=\"\",\"\",'Data Sheet for Part B'!B663)","v":""},{"$f":"IF('Data Sheet for Part B'!C663=\"\",\"\",'Data Sheet for Part B'!C663)","v":""},{"$f":"IF('Data Sheet for Part B'!D663=\"\",\"\",'Data Sheet for Part B'!D663)","v":""}]
[178,{"$f":"IF('Data Sheet for Part B'!B664=\"\",\"\",'Data Sheet for Part B'!B664)","v":""},{"$f":"IF('Data Sheet for Part B'!C664=\"\",\"\",'Data Sheet for Part B'!C664)","v":""},{"$f":"IF('Data Sheet for Part B'!D664=\"\",\"\",'Data Sheet for Part B'!D664)","v":""}]
[179,{"$f":"IF('Data Sheet for Part B'!B665=\"\",\"\",'Data Sheet for Part B'!B665)","v":""},{"$f":"IF('Data Sheet for Part B'!C665=\"\",\"\",'Data Sheet for Part B'!C665)","v":""},{"$f":"IF('Data Sheet for Part B'!D665=\"\",\"\",'Data Sheet for Part B'!D665)","v":""}]
[180,{"$f":"IF('Data Sheet for Part B'!B666=\"\",\"\",'Data Sheet for Part B'!B666)","v":""},{"$f":"IF('Data Sheet for Part B'!C666=\"\",\"\",'Data Sheet for Part B'!C666)","v":""},{"$f":"IF('Data Sheet for Part B'!D666=\"\",\"\",'Data Sheet for Part B'!D666)","v":""}]
[181,{"$f":"IF('Data Sheet for Part B'!B667=\"\",\"\",'Data Sheet for Part B'!B667)","v":""},{"$f":"IF('Data Sheet for Part B'!C667=\"\",\"\",'Data Sheet for Part B'!C667)","v":""},{"$f":"IF('Data Sheet for Part B'!D667=\"\",\"\",'Data Sheet for Part B'!D667)","v":""}]
[182,{"$f":"IF('Data Sheet for Part B'!B668=\"\",\"\",'Data Sheet for Part B'!B668)","v":""},{"$f":"IF('Data Sheet for Part B'!C668=\"\",\"\",'Data Sheet for Part B'!C668)","v":""},{"$f":"IF('Data Sheet for Part B'!D668=\"\",\"\",'Data Sheet for Part B'!D668)","v":""}]
[183,{"$f":"IF('Data Sheet for Part B'!B669=\"\",\"\",'Data Sheet for Part B'!B669)","v":""},{"$f":"IF('Data Sheet for Part B'!C669=\"\",\"\",'Data Sheet for Part B'!C669)","v":""},{"$f":"IF('Data Sheet for Part B'!D669=\"\",\"\",'Data Sheet for Part B'!D669)","v":""}]
[184,{"$f":"IF('Data Sheet for Part B'!B670=\"\",\"\",'Data Sheet for Part B'!B670)","v":""},{"$f":"IF('Data Sheet for Part B'!C670=\"\",\"\",'Data Sheet for Part B'!C670)","v":""},{"$f":"IF('Data Sheet for Part B'!D670=\"\",\"\",'Data Sheet for Part B'!D670)","v":""}]
[185,{"$f":"IF('Data Sheet for Part B'!B671=\"\",\"\",'Data Sheet for Part B'!B671)","v":""},{"$f":"IF('Data Sheet for Part B'!C671=\"\",\"\",'Data Sheet for Part B'!C671)","v":""},{"$f":"IF('Data Sheet for Part B'!D671=\"\",\"\",'Data Sheet for Part B'!D671)","v":""}]
[186,{"$f":"IF('Data Sheet for Part B'!B672=\"\",\"\",'Data Sheet for Part B'!B672)","v":""},{"$f":"IF('Data Sheet for Part B'!C672=\"\",\"\",'Data Sheet for Part B'!C672)","v":""},{"$f":"IF('Data Sheet for Part B'!D672=\"\",\"\",'Data Sheet for Part B'!D672)","v":""}]
[187,{"$f":"IF('Data Sheet for Part B'!B673=\"\",\"\",'Data Sheet for Part B'!B673)","v":""},{"$f":"IF('Data Sheet for Part B'!C673=\"\",\"\",'Data Sheet for Part B'!C673)","v":""},{"$f":"IF('Data Sheet for Part B'!D673=\"\",\"\",'Data Sheet for Part B'!D673)","v":""}]
[188,{"$f":"IF('Data Sheet for Part B'!B674=\"\",\"\",'Data Sheet for Part B'!B674)","v":""},{"$f":"IF('Data Sheet for Part B'!C674=\"\",\"\",'Data Sheet for Part B'!C674)","v":""},{"$f":"IF('Data Sheet for Part B'!D674=\"\",\"\",'Data Sheet for Part B'!D674)","v":""}]
[189,{"$f":"IF('Data Sheet for Part B'!B675=\"\",\"\",'Data Sheet for Part B'!B675)","v":""},{"$f":"IF('Data Sheet for Part B'!C675=\"\",\"\",'Data Sheet for Part B'!C675)","v":""},{"$f":"IF('Data Sheet for Part B'!D675=\"\",\"\",'Data Sheet for Part B'!D675)","v":""}]
[190,{"$f":"IF('Data Sheet for Part B'!B676=\"\",\"\",'Data Sheet for Part B'!B676)","v":""},{"$f":"IF('Data Sheet for Part B'!C676=\"\",\"\",'Data Sheet for Part B'!C676)","v":""},{"$f":"IF('Data Sheet for Part B'!D676=\"\",\"\",'Data Sheet for Part B'!D676)","v":""}]
[191,{"$f":"IF('Data Sheet for Part B'!B677=\"\",\"\",'Data Sheet for Part B'!B677)","v":""},{"$f":"IF('Data Sheet for Part B'!C677=\"\",\"\",'Data Sheet for Part B'!C677)","v":""},{"$f":"IF('Data Sheet for Part B'!D677=\"\",\"\",'Data Sheet for Part B'!D677)","v":""}]
[192,{"$f":"IF('Data Sheet for Part B'!B678=\"\",\"\",'Data Sheet for Part B'!B678)","v":""},{"$f":"IF('Data Sheet for Part B'!C678=\"\",\"\",'Data Sheet for Part B'!C678)","v":""},{"$f":"IF('Data Sheet for Part B'!D678=\"\",\"\",'Data Sheet for Part B'!D678)","v":""}]
[193,{"$f":"IF('Data Sheet for Part B'!B679=\"\",\"\",'Data Sheet for Part B'!B679)","v":""},{"$f":"IF('Data Sheet for Part B'!C679=\"\",\"\",'Data Sheet for Part B'!C679)","v":""},{"$f":"IF('Data Sheet for Part B'!D679=\"\",\"\",'Data Sheet for Part B'!D679)","v":""}]
[194,{"$f":"IF('Data Sheet for Part B'!B680=\"\",\"\",'Data Sheet for Part B'!B680)","v":""},{"$f":"IF('Data Sheet for Part B'!C680=\"\",\"\",'Data Sheet for Part B'!C680)","v":""},{"$f":"IF('Data Sheet for Part B'!D680=\"\",\"\",'Data Sheet for Part B'!D680)","v":""}]
[195,{"$f":"IF('Data Sheet for Part B'!B681=\"\",\"\",'Data Sheet for Part B'!B681)","v":""},{"$f":"IF('Data Sheet for Part B'!C681=\"\",\"\",'Data Sheet for Part B'!C681)","v":""},{"$f":"IF('Data Sheet for Part B'!D681=\"\",\"\",'Data Sheet for Part B'!D681)","v":""}]
[196,{"$f":"IF('Data Sheet for Part B'!B682=\"\",\"\",'Data Sheet for Part B'!B682)","v":""},{"$f":"IF('Data Sheet for Part B'!C682=\"\",\"\",'Data Sheet for Part B'!C682)","v":""},{"$f":"IF('Data Sheet for Part B'!D682=\"\",\"\",'Data Sheet for Part B'!D682)","v":""}]
[197,{"$f":"IF('Data Sheet for Part B'!B683=\"\",\"\",'Data Sheet for Part B'!B683)","v":""},{"$f":"IF('Data Sheet for Part B'!C683=\"\",\"\",'Data Sheet for Part B'!C683)","v":""},{"$f":"IF('Data Sheet for Part B'!D683=\"\",\"\",'Data Sheet for Part B'!D683)","v":""}]
[198,{"$f":"IF('Data Sheet for Part B'!B684=\"\",\"\",'Data Sheet for Part B'!B684)","v":""},{"$f":"IF('Data Sheet for Part B'!C684=\"\",\"\",'Data Sheet for Part B'!C684)","v":""},{"$f":"IF('Data Sheet for Part B'!D684=\"\",\"\",'Data Sheet for Part B'!D684)","v":""}]
[199,{"$f":"IF('Data Sheet for Part B'!B685=\"\",\"\",'Data Sheet for Part B'!B685)","v":""},{"$f":"IF('Data Sheet for Part B'!C685=\"\",\"\",'Data Sheet for Part B'!C685)","v":""},{"$f":"IF('Data Sheet for Part B'!D685=\"\",\"\",'Data Sheet for Part B'!D685)","v":""}]
[200,{"$f":"IF('Data Sheet for Part B'!B686=\"\",\"\",'Data Sheet for Part B'!B686)","v":""},{"$f":"IF('Data Sheet for Part B'!C686=\"\",\"\",'Data Sheet for Part B'!C686)","v":""},{"$f":"IF('Data Sheet for Part B'!D686=\"\",\"\",'Data Sheet for Part B'!D686)","v":""}]
[201,{"$f":"IF('Data Sheet for Part B'!B687=\"\",\"\",'Data Sheet for Part B'!B687)","v":""},{"$f":"IF('Data Sheet for Part B'!C687=\"\",\"\",'Data Sheet for Part B'!C687)","v":""},{"$f":"IF('Data Sheet for Part B'!D687=\"\",\"\",'Data Sheet for Part B'!D687)","v":""}]
[202,{"$f":"IF('Data Sheet for Part B'!B688=\"\",\"\",'Data Sheet for Part B'!B688)","v":""},{"$f":"IF('Data Sheet for Part B'!C688=\"\",\"\",'Data Sheet for Part B'!C688)","v":""},{"$f":"IF('Data Sheet for Part B'!D688=\"\",\"\",'Data Sheet for Part B'!D688)","v":""}]
[203,{"$f":"IF('Data Sheet for Part B'!B689=\"\",\"\",'Data Sheet for Part B'!B689)","v":""},{"$f":"IF('Data Sheet for Part B'!C689=\"\",\"\",'Data Sheet for Part B'!C689)","v":""},{"$f":"IF('Data Sheet for Part B'!D689=\"\",\"\",'Data Sheet for Part B'!D689)","v":""}]
[204,{"$f":"IF('Data Sheet for Part B'!B690=\"\",\"\",'Data Sheet for Part B'!B690)","v":""},{"$f":"IF('Data Sheet for Part B'!C690=\"\",\"\",'Data Sheet for Part B'!C690)","v":""},{"$f":"IF('Data Sheet for Part B'!D690=\"\",\"\",'Data Sheet for Part B'!D690)","v":""}]
[205,{"$f":"IF('Data Sheet for Part B'!B691=\"\",\"\",'Data Sheet for Part B'!B691)","v":""},{"$f":"IF('Data Sheet for Part B'!C691=\"\",\"\",'Data Sheet for Part B'!C691)","v":""},{"$f":"IF('Data Sheet for Part B'!D691=\"\",\"\",'Data Sheet for Part B'!D691)","v":""}]
[206,{"$f":"IF('Data Sheet for Part B'!B692=\"\",\"\",'Data Sheet for Part B'!B692)","v":""},{"$f":"IF('Data Sheet for Part B'!C692=\"\",\"\",'Data Sheet for Part B'!C692)","v":""},{"$f":"IF('Data Sheet for Part B'!D692=\"\",\"\",'Data Sheet for Part B'!D692)","v":""}]
[207,{"$f":"IF('Data Sheet for Part B'!B693=\"\",\"\",'Data Sheet for Part B'!B693)","v":""},{"$f":"IF('Data Sheet for Part B'!C693=\"\",\"\",'Data Sheet for Part B'!C693)","v":""},{"$f":"IF('Data Sheet for Part B'!D693=\"\",\"\",'Data Sheet for Part B'!D693)","v":""}]
[208,{"$f":"IF('Data Sheet for Part B'!B694=\"\",\"\",'Data Sheet for Part B'!B694)","v":""},{"$f":"IF('Data Sheet for Part B'!C694=\"\",\"\",'Data Sheet for Part B'!C694)","v":""},{"$f":"IF('Data Sheet for Part B'!D694=\"\",\"\",'Data Sheet for Part B'!D694)","v":""}]
[209,{"$f":"IF('Data Sheet for Part B'!B695=\"\",\"\",'Data Sheet for Part B'!B695)","v":""},{"$f":"IF('Data Sheet for Part B'!C695=\"\",\"\",'Data Sheet for Part B'!C695)","v":""},{"$f":"IF('Data Sheet for Part B'!D695=\"\",\"\",'Data Sheet for Part B'!D695)","v":""}]
[210,{"$f":"IF('Data Sheet for Part B'!B696=\"\",\"\",'Data Sheet for Part B'!B696)","v":""},{"$f":"IF('Data Sheet for Part B'!C696=\"\",\"\",'Data Sheet for Part B'!C696)","v":""},{"$f":"IF('Data Sheet for Part B'!D696=\"\",\"\",'Data Sheet for Part B'!D696)","v":""}]
[211,{"$f":"IF('Data Sheet for Part B'!B697=\"\",\"\",'Data Sheet for Part B'!B697)","v":""},{"$f":"IF('Data Sheet for Part B'!C697=\"\",\"\",'Data Sheet for Part B'!C697)","v":""},{"$f":"IF('Data Sheet for Part B'!D697=\"\",\"\",'Data Sheet for Part B'!D697)","v":""}]
[212,{"$f":"IF('Data Sheet for Part B'!B698=\"\",\"\",'Data Sheet for Part B'!B698)","v":""},{"$f":"IF('Data Sheet for Part B'!C698=\"\",\"\",'Data Sheet for Part B'!C698)","v":""},{"$f":"IF('Data Sheet for Part B'!D698=\"\",\"\",'Data Sheet for Part B'!D698)","v":""}]
[213,{"$f":"IF('Data Sheet for Part B'!B699=\"\",\"\",'Data Sheet for Part B'!B699)","v":""},{"$f":"IF('Data Sheet for Part B'!C699=\"\",\"\",'Data Sheet for Part B'!C699)","v":""},{"$f":"IF('Data Sheet for Part B'!D699=\"\",\"\",'Data Sheet for Part B'!D699)","v":""}]
[214,{"$f":"IF('Data Sheet for Part B'!B700=\"\",\"\",'Data Sheet for Part B'!B700)","v":""},{"$f":"IF('Data Sheet for Part B'!C700=\"\",\"\",'Data Sheet for Part B'!C700)","v":""},{"$f":"IF('Data Sheet for Part B'!D700=\"\",\"\",'Data Sheet for Part B'!D700)","v":""}]
[215,{"$f":"IF('Data Sheet for Part B'!B701=\"\",\"\",'Data Sheet for Part B'!B701)","v":""},{"$f":"IF('Data Sheet for Part B'!C701=\"\",\"\",'Data Sheet for Part B'!C701)","v":""},{"$f":"IF('Data Sheet for Part B'!D701=\"\",\"\",'Data Sheet for Part B'!D701)","v":""}]
[216,{"$f":"IF('Data Sheet for Part B'!B702=\"\",\"\",'Data Sheet for Part B'!B702)","v":""},{"$f":"IF('Data Sheet for Part B'!C702=\"\",\"\",'Data Sheet for Part B'!C702)","v":""},{"$f":"IF('Data Sheet for Part B'!D702=\"\",\"\",'Data Sheet for Part B'!D702)","v":""}]
[217,{"$f":"IF('Data Sheet for Part B'!B703=\"\",\"\",'Data Sheet for Part B'!B703)","v":""},{"$f":"IF('Data Sheet for Part B'!C703=\"\",\"\",'Data Sheet for Part B'!C703)","v":""},{"$f":"IF('Data Sheet for Part B'!D703=\"\",\"\",'Data Sheet for Part B'!D703)","v":""}]
[218,{"$f":"IF('Data Sheet for Part B'!B704=\"\",\"\",'Data Sheet for Part B'!B704)","v":""},{"$f":"IF('Data Sheet for Part B'!C704=\"\",\"\",'Data Sheet for Part B'!C704)","v":""},{"$f":"IF('Data Sheet for Part B'!D704=\"\",\"\",'Data Sheet for Part B'!D704)","v":""}]
[219,{"$f":"IF('Data Sheet for Part B'!B705=\"\",\"\",'Data Sheet for Part B'!B705)","v":""},{"$f":"IF('Data Sheet for Part B'!C705=\"\",\"\",'Data Sheet for Part B'!C705)","v":""},{"$f":"IF('Data Sheet for Part B'!D705=\"\",\"\",'Data Sheet for Part B'!D705)","v":""}]
[220,{"$f":"IF('Data Sheet for Part B'!B706=\"\",\"\",'Data Sheet for Part B'!B706)","v":""},{"$f":"IF('Data Sheet for Part B'!C706=\"\",\"\",'Data Sheet for Part B'!C706)","v":""},{"$f":"IF('Data Sheet for Part B'!D706=\"\",\"\",'Data Sheet for Part B'!D706)","v":""}]
[221,{"$f":"IF('Data Sheet for Part B'!B707=\"\",\"\",'Data Sheet for Part B'!B707)","v":""},{"$f":"IF('Data Sheet for Part B'!C707=\"\",\"\",'Data Sheet for Part B'!C707)","v":""},{"$f":"IF('Data Sheet for Part B'!D707=\"\",\"\",'Data Sheet for Part B'!D707)","v":""}]
[222,{"$f":"IF('Data Sheet for Part B'!B708=\"\",\"\",'Data Sheet for Part B'!B708)","v":""},{"$f":"IF('Data Sheet for Part B'!C708=\"\",\"\",'Data Sheet for Part B'!C708)","v":""},{"$f":"IF('Data Sheet for Part B'!D708=\"\",\"\",'Data Sheet for Part B'!D708)","v":""}]
[223,{"$f":"IF('Data Sheet for Part B'!B709=\"\",\"\",'Data Sheet for Part B'!B709)","v":""},{"$f":"IF('Data Sheet for Part B'!C709=\"\",\"\",'Data Sheet for Part B'!C709)","v":""},{"$f":"IF('Data Sheet for Part B'!D709=\"\",\"\",'Data Sheet for Part B'!D709)","v":""}]
[224,{"$f":"IF('Data Sheet for Part B'!B710=\"\",\"\",'Data Sheet for Part B'!B710)","v":""},{"$f":"IF('Data Sheet for Part B'!C710=\"\",\"\",'Data Sheet for Part B'!C710)","v":""},{"$f":"IF('Data Sheet for Part B'!D710=\"\",\"\",'Data Sheet for Part B'!D710)","v":""}]
[225,{"$f":"IF('Data Sheet for Part B'!B711=\"\",\"\",'Data Sheet for Part B'!B711)","v":""},{"$f":"IF('Data Sheet for Part B'!C711=\"\",\"\",'Data Sheet for Part B'!C711)","v":""},{"$f":"IF('Data Sheet for Part B'!D711=\"\",\"\",'Data Sheet for Part B'!D711)","v":""}]
[226,{"$f":"IF('Data Sheet for Part B'!B712=\"\",\"\",'Data Sheet for Part B'!B712)","v":""},{"$f":"IF('Data Sheet for Part B'!C712=\"\",\"\",'Data Sheet for Part B'!C712)","v":""},{"$f":"IF('Data Sheet for Part B'!D712=\"\",\"\",'Data Sheet for Part B'!D712)","v":""}]
[227,{"$f":"IF('Data Sheet for Part B'!B713=\"\",\"\",'Data Sheet for Part B'!B713)","v":""},{"$f":"IF('Data Sheet for Part B'!C713=\"\",\"\",'Data Sheet for Part B'!C713)","v":""},{"$f":"IF('Data Sheet for Part B'!D713=\"\",\"\",'Data Sheet for Part B'!D713)","v":""}]
[228,{"$f":"IF('Data Sheet for Part B'!B714=\"\",\"\",'Data Sheet for Part B'!B714)","v":""},{"$f":"IF('Data Sheet for Part B'!C714=\"\",\"\",'Data Sheet for Part B'!C714)","v":""},{"$f":"IF('Data Sheet for Part B'!D714=\"\",\"\",'Data Sheet for Part B'!D714)","v":""}]
[229,{"$f":"IF('Data Sheet for Part B'!B715=\"\",\"\",'Data Sheet for Part B'!B715)","v":""},{"$f":"IF('Data Sheet for Part B'!C715=\"\",\"\",'Data Sheet for Part B'!C715)","v":""},{"$f":"IF('Data Sheet for Part B'!D715=\"\",\"\",'Data Sheet for Part B'!D715)","v":""}]
[230,{"$f":"IF('Data Sheet for Part B'!B716=\"\",\"\",'Data Sheet for Part B'!B716)","v":""},{"$f":"IF('Data Sheet for Part B'!C716=\"\",\"\",'Data Sheet for Part B'!C716)","v":""},{"$f":"IF('Data Sheet for Part B'!D716=\"\",\"\",'Data Sheet for Part B'!D716)","v":""}]
[231,{"$f":"IF('Data Sheet for Part B'!B717=\"\",\"\",'Data Sheet for Part B'!B717)","v":""},{"$f":"IF('Data Sheet for Part B'!C717=\"\",\"\",'Data Sheet for Part B'!C717)","v":""},{"$f":"IF('Data Sheet for Part B'!D717=\"\",\"\",'Data Sheet for Part B'!D717)","v":""}]
[232,{"$f":"IF('Data Sheet for Part B'!B718=\"\",\"\",'Data Sheet for Part B'!B718)","v":""},{"$f":"IF('Data Sheet for Part B'!C718=\"\",\"\",'Data Sheet for Part B'!C718)","v":""},{"$f":"IF('Data Sheet for Part B'!D718=\"\",\"\",'Data Sheet for Part B'!D718)","v":""}]
[233,{"$f":"IF('Data Sheet for Part B'!B719=\"\",\"\",'Data Sheet for Part B'!B719)","v":""},{"$f":"IF('Data Sheet for Part B'!C719=\"\",\"\",'Data Sheet for Part B'!C719)","v":""},{"$f":"IF('Data Sheet for Part B'!D719=\"\",\"\",'Data Sheet for Part B'!D719)","v":""}]
[234,{"$f":"IF('Data Sheet for Part B'!B720=\"\",\"\",'Data Sheet for Part B'!B720)","v":""},{"$f":"IF('Data Sheet for Part B'!C720=\"\",\"\",'Data Sheet for Part B'!C720)","v":""},{"$f":"IF('Data Sheet for Part B'!D720=\"\",\"\",'Data Sheet for Part B'!D720)","v":""}]
[235,{"$f":"IF('Data Sheet for Part B'!B721=\"\",\"\",'Data Sheet for Part B'!B721)","v":""},{"$f":"IF('Data Sheet for Part B'!C721=\"\",\"\",'Data Sheet for Part B'!C721)","v":""},{"$f":"IF('Data Sheet for Part B'!D721=\"\",\"\",'Data Sheet for Part B'!D721)","v":""}]
[236,{"$f":"IF('Data Sheet for Part B'!B722=\"\",\"\",'Data Sheet for Part B'!B722)","v":""},{"$f":"IF('Data Sheet for Part B'!C722=\"\",\"\",'Data Sheet for Part B'!C722)","v":""},{"$f":"IF('Data Sheet for Part B'!D722=\"\",\"\",'Data Sheet for Part B'!D722)","v":""}]
[237,{"$f":"IF('Data Sheet for Part B'!B723=\"\",\"\",'Data Sheet for Part B'!B723)","v":""},{"$f":"IF('Data Sheet for Part B'!C723=\"\",\"\",'Data Sheet for Part B'!C723)","v":""},{"$f":"IF('Data Sheet for Part B'!D723=\"\",\"\",'Data Sheet for Part B'!D723)","v":""}]
[238,{"$f":"IF('Data Sheet for Part B'!B724=\"\",\"\",'Data Sheet for Part B'!B724)","v":""},{"$f":"IF('Data Sheet for Part B'!C724=\"\",\"\",'Data Sheet for Part B'!C724)","v":""},{"$f":"IF('Data Sheet for Part B'!D724=\"\",\"\",'Data Sheet for Part B'!D724)","v":""}]
[239,{"$f":"IF('Data Sheet for Part B'!B725=\"\",\"\",'Data Sheet for Part B'!B725)","v":""},{"$f":"IF('Data Sheet for Part B'!C725=\"\",\"\",'Data Sheet for Part B'!C725)","v":""},{"$f":"IF('Data Sheet for Part B'!D725=\"\",\"\",'Data Sheet for Part B'!D725)","v":""}]
[240,{"$f":"IF('Data Sheet for Part B'!B726=\"\",\"\",'Data Sheet for Part B'!B726)","v":""},{"$f":"IF('Data Sheet for Part B'!C726=\"\",\"\",'Data Sheet for Part B'!C726)","v":""},{"$f":"IF('Data Sheet for Part B'!D726=\"\",\"\",'Data Sheet for Part B'!D726)","v":""}]
[241,{"$f":"IF('Data Sheet for Part B'!B727=\"\",\"\",'Data Sheet for Part B'!B727)","v":""},{"$f":"IF('Data Sheet for Part B'!C727=\"\",\"\",'Data Sheet for Part B'!C727)","v":""},{"$f":"IF('Data Sheet for Part B'!D727=\"\",\"\",'Data Sheet for Part B'!D727)","v":""}]
[242,{"$f":"IF('Data Sheet for Part B'!B728=\"\",\"\",'Data Sheet for Part B'!B728)","v":""},{"$f":"IF('Data Sheet for Part B'!C728=\"\",\"\",'Data Sheet for Part B'!C728)","v":""},{"$f":"IF('Data Sheet for Part B'!D728=\"\",\"\",'Data Sheet for Part B'!D728)","v":""}]
[243,{"$f":"IF('Data Sheet for Part B'!B729=\"\",\"\",'Data Sheet for Part B'!B729)","v":""},{"$f":"IF('Data Sheet for Part B'!C729=\"\",\"\",'Data Sheet for Part B'!C729)","v":""},{"$f":"IF('Data Sheet for Part B'!D729=\"\",\"\",'Data Sheet for Part B'!D729)","v":""}]
[244,{"$f":"IF('Data Sheet for Part B'!B730=\"\",\"\",'Data Sheet for Part B'!B730)","v":""},{"$f":"IF('Data Sheet for Part B'!C730=\"\",\"\",'Data Sheet for Part B'!C730)","v":""},{"$f":"IF('Data Sheet for Part B'!D730=\"\",\"\",'Data Sheet for Part B'!D730)","v":""}]
[245,{"$f":"IF('Data Sheet for Part B'!B731=\"\",\"\",'Data Sheet for Part B'!B731)","v":""},{"$f":"IF('Data Sheet for Part B'!C731=\"\",\"\",'Data Sheet for Part B'!C731)","v":""},{"$f":"IF('Data Sheet for Part B'!D731=\"\",\"\",'Data Sheet for Part B'!D731)","v":""}]
[246,{"$f":"IF('Data Sheet for Part B'!B732=\"\",\"\",'Data Sheet for Part B'!B732)","v":""},{"$f":"IF('Data Sheet for Part B'!C732=\"\",\"\",'Data Sheet for Part B'!C732)","v":""},{"$f":"IF('Data Sheet for Part B'!D732=\"\",\"\",'Data Sheet for Part B'!D732)","v":""}]
[247,{"$f":"IF('Data Sheet for Part B'!B733=\"\",\"\",'Data Sheet for Part B'!B733)","v":""},{"$f":"IF('Data Sheet for Part B'!C733=\"\",\"\",'Data Sheet for Part B'!C733)","v":""},{"$f":"IF('Data Sheet for Part B'!D733=\"\",\"\",'Data Sheet for Part B'!D733)","v":""}]
[248,{"$f":"IF('Data Sheet for Part B'!B734=\"\",\"\",'Data Sheet for Part B'!B734)","v":""},{"$f":"IF('Data Sheet for Part B'!C734=\"\",\"\",'Data Sheet for Part B'!C734)","v":""},{"$f":"IF('Data Sheet for Part B'!D734=\"\",\"\",'Data Sheet for Part B'!D734)","v":""}]
[249,{"$f":"IF('Data Sheet for Part B'!B735=\"\",\"\",'Data Sheet for Part B'!B735)","v":""},{"$f":"IF('Data Sheet for Part B'!C735=\"\",\"\",'Data Sheet for Part B'!C735)","v":""},{"$f":"IF('Data Sheet for Part B'!D735=\"\",\"\",'Data Sheet for Part B'!D735)","v":""}]
[250,{"$f":"IF('Data Sheet for Part B'!B736=\"\",\"\",'Data Sheet for Part B'!B736)","v":""},{"$f":"IF('Data Sheet for Part B'!C736=\"\",\"\",'Data Sheet for Part B'!C736)","v":""},{"$f":"IF('Data Sheet for Part B'!D736=\"\",\"\",'Data Sheet for Part B'!D736)","v":""}]
[251,{"$f":"IF('Data Sheet for Part B'!B737=\"\",\"\",'Data Sheet for Part B'!B737)","v":""},{"$f":"IF('Data Sheet for Part B'!C737=\"\",\"\",'Data Sheet for Part B'!C737)","v":""},{"$f":"IF('Data Sheet for Part B'!D737=\"\",\"\",'Data Sheet for Part B'!D737)","v":""}]
[252,{"$f":"IF('Data Sheet for Part B'!B738=\"\",\"\",'Data Sheet for Part B'!B738)","v":""},{"$f":"IF('Data Sheet for Part B'!C738=\"\",\"\",'Data Sheet for Part B'!C738)","v":""},{"$f":"IF('Data Sheet for Part B'!D738=\"\",\"\",'Data Sheet for Part B'!D738)","v":""}]
[253,{"$f":"IF('Data Sheet for Part B'!B739=\"\",\"\",'Data Sheet for Part B'!B739)","v":""},{"$f":"IF('Data Sheet for Part B'!C739=\"\",\"\",'Data Sheet for Part B'!C739)","v":""},{"$f":"IF('Data Sheet for Part B'!D739=\"\",\"\",'Data Sheet for Part B'!D739)","v":""}]
[254,{"$f":"IF('Data Sheet for Part B'!B740=\"\",\"\",'Data Sheet for Part B'!B740)","v":""},{"$f":"IF('Data Sheet for Part B'!C740=\"\",\"\",'Data Sheet for Part B'!C740)","v":""},{"$f":"IF('Data Sheet for Part B'!D740=\"\",\"\",'Data Sheet for Part B'!D740)","v":""}]
[255,{"$f":"IF('Data Sheet for Part B'!B741=\"\",\"\",'Data Sheet for Part B'!B741)","v":""},{"$f":"IF('Data Sheet for Part B'!C741=\"\",\"\",'Data Sheet for Part B'!C741)","v":""},{"$f":"IF('Data Sheet for Part B'!D741=\"\",\"\",'Data Sheet for Part B'!D741)","v":""}]
[256,{"$f":"IF('Data Sheet for Part B'!B742=\"\",\"\",'Data Sheet for Part B'!B742)","v":""},{"$f":"IF('Data Sheet for Part B'!C742=\"\",\"\",'Data Sheet for Part B'!C742)","v":""},{"$f":"IF('Data Sheet for Part B'!D742=\"\",\"\",'Data Sheet for Part B'!D742)","v":""}]
[257,{"$f":"IF('Data Sheet for Part B'!B743=\"\",\"\",'Data Sheet for Part B'!B743)","v":""},{"$f":"IF('Data Sheet for Part B'!C743=\"\",\"\",'Data Sheet for Part B'!C743)","v":""},{"$f":"IF('Data Sheet for Part B'!D743=\"\",\"\",'Data Sheet for Part B'!D743)","v":""}]
[258,{"$f":"IF('Data Sheet for Part B'!B744=\"\",\"\",'Data Sheet for Part B'!B744)","v":""},{"$f":"IF('Data Sheet for Part B'!C744=\"\",\"\",'Data Sheet for Part B'!C744)","v":""},{"$f":"IF('Data Sheet for Part B'!D744=\"\",\"\",'Data Sheet for Part B'!D744)","v":""}]
[259,{"$f":"IF('Data Sheet for Part B'!B745=\"\",\"\",'Data Sheet for Part B'!B745)","v":""},{"$f":"IF('Data Sheet for Part B'!C745=\"\",\"\",'Data Sheet for Part B'!C745)","v":""},{"$f":"IF('Data Sheet for Part B'!D745=\"\",\"\",'Data Sheet for Part B'!D745)","v":""}]
[260,{"$f":"IF('Data Sheet for Part B'!B746=\"\",\"\",'Data Sheet for Part B'!B746)","v":""},{"$f":"IF('Data Sheet for Part B'!C746=\"\",\"\",'Data Sheet for Part B'!C746)","v":""},{"$f":"IF('Data Sheet for Part B'!D746=\"\",\"\",'Data Sheet for Part B'!D746)","v":""}]
[261,{"$f":"IF('Data Sheet for Part B'!B747=\"\",\"\",'Data Sheet for Part B'!B747)","v":""},{"$f":"IF('Data Sheet for Part B'!C747=\"\",\"\",'Data Sheet for Part B'!C747)","v":""},{"$f":"IF('Data Sheet for Part B'!D747=\"\",\"\",'Data Sheet for Part B'!D747)","v":""}]
[262,{"$f":"IF('Data Sheet for Part B'!B748=\"\",\"\",'Data Sheet for Part B'!B748)","v":""},{"$f":"IF('Data Sheet for Part B'!C748=\"\",\"\",'Data Sheet for Part B'!C748)","v":""},{"$f":"IF('Data Sheet for Part B'!D748=\"\",\"\",'Data Sheet for Part B'!D748)","v":""}]
[263,{"$f":"IF('Data Sheet for Part B'!B749=\"\",\"\",'Data Sheet for Part B'!B749)","v":""},{"$f":"IF('Data Sheet for Part B'!C749=\"\",\"\",'Data Sheet for Part B'!C749)","v":""},{"$f":"IF('Data Sheet for Part B'!D749=\"\",\"\",'Data Sheet for Part B'!D749)","v":""}]
[264,{"$f":"IF('Data Sheet for Part B'!B750=\"\",\"\",'Data Sheet for Part B'!B750)","v":""},{"$f":"IF('Data Sheet for Part B'!C750=\"\",\"\",'Data Sheet for Part B'!C750)","v":""},{"$f":"IF('Data Sheet for Part B'!D750=\"\",\"\",'Data Sheet for Part B'!D750)","v":""}]
[265,{"$f":"IF('Data Sheet for Part B'!B751=\"\",\"\",'Data Sheet for Part B'!B751)","v":""},{"$f":"IF('Data Sheet for Part B'!C751=\"\",\"\",'Data Sheet for Part B'!C751)","v":""},{"$f":"IF('Data Sheet for Part B'!D751=\"\",\"\",'Data Sheet for Part B'!D751)","v":""}]
[266,{"$f":"IF('Data Sheet for Part B'!B752=\"\",\"\",'Data Sheet for Part B'!B752)","v":""},{"$f":"IF('Data Sheet for Part B'!C752=\"\",\"\",'Data Sheet for Part B'!C752)","v":""},{"$f":"IF('Data Sheet for Part B'!D752=\"\",\"\",'Data Sheet for Part B'!D752)","v":""}]
[267,{"$f":"IF('Data Sheet for Part B'!B753=\"\",\"\",'Data Sheet for Part B'!B753)","v":""},{"$f":"IF('Data Sheet for Part B'!C753=\"\",\"\",'Data Sheet for Part B'!C753)","v":""},{"$f":"IF('Data Sheet for Part B'!D753=\"\",\"\",'Data Sheet for Part B'!D753)","v":""}]
[268,{"$f":"IF('Data Sheet for Part B'!B754=\"\",\"\",'Data Sheet for Part B'!B754)","v":""},{"$f":"IF('Data Sheet for Part B'!C754=\"\",\"\",'Data Sheet for Part B'!C754)","v":""},{"$f":"IF('Data Sheet for Part B'!D754=\"\",\"\",'Data Sheet for Part B'!D754)","v":""}]
[269,{"$f":"IF('Data Sheet for Part B'!B755=\"\",\"\",'Data Sheet for Part B'!B755)","v":""},{"$f":"IF('Data Sheet for Part B'!C755=\"\",\"\",'Data Sheet for Part B'!C755)","v":""},{"$f":"IF('Data Sheet for Part B'!D755=\"\",\"\",'Data Sheet for Part B'!D755)","v":""}]
[270,{"$f":"IF('Data Sheet for Part B'!B756=\"\",\"\",'Data Sheet for Part B'!B756)","v":""},{"$f":"IF('Data Sheet for Part B'!C756=\"\",\"\",'Data Sheet for Part B'!C756)","v":""},{"$f":"IF('Data Sheet for Part B'!D756=\"\",\"\",'Data Sheet for Part B'!D756)","v":""}]
[271,{"$f":"IF('Data Sheet for Part B'!B757=\"\",\"\",'Data Sheet for Part B'!B757)","v":""},{"$f":"IF('Data Sheet for Part B'!C757=\"\",\"\",'Data Sheet for Part B'!C757)","v":""},{"$f":"IF('Data Sheet for Part B'!D757=\"\",\"\",'Data Sheet for Part B'!D757)","v":""}]
[272,{"$f":"IF('Data Sheet for Part B'!B758=\"\",\"\",'Data Sheet for Part B'!B758)","v":""},{"$f":"IF('Data Sheet for Part B'!C758=\"\",\"\",'Data Sheet for Part B'!C758)","v":""},{"$f":"IF('Data Sheet for Part B'!D758=\"\",\"\",'Data Sheet for Part B'!D758)","v":""}]
[273,{"$f":"IF('Data Sheet for Part B'!B759=\"\",\"\",'Data Sheet for Part B'!B759)","v":""},{"$f":"IF('Data Sheet for Part B'!C759=\"\",\"\",'Data Sheet for Part B'!C759)","v":""},{"$f":"IF('Data Sheet for Part B'!D759=\"\",\"\",'Data Sheet for Part B'!D759)","v":""}]
[274,{"$f":"IF('Data Sheet for Part B'!B760=\"\",\"\",'Data Sheet for Part B'!B760)","v":""},{"$f":"IF('Data Sheet for Part B'!C760=\"\",\"\",'Data Sheet for Part B'!C760)","v":""},{"$f":"IF('Data Sheet for Part B'!D760=\"\",\"\",'Data Sheet for Part B'!D760)","v":""}]
[275,{"$f":"IF('Data Sheet for Part B'!B761=\"\",\"\",'Data Sheet for Part B'!B761)","v":""},{"$f":"IF('Data Sheet for Part B'!C761=\"\",\"\",'Data Sheet for Part B'!C761)","v":""},{"$f":"IF('Data Sheet for Part B'!D761=\"\",\"\",'Data Sheet for Part B'!D761)","v":""}]
[276,{"$f":"IF('Data Sheet for Part B'!B762=\"\",\"\",'Data Sheet for Part B'!B762)","v":""},{"$f":"IF('Data Sheet for Part B'!C762=\"\",\"\",'Data Sheet for Part B'!C762)","v":""},{"$f":"IF('Data Sheet for Part B'!D762=\"\",\"\",'Data Sheet for Part B'!D762)","v":""}]
[277,{"$f":"IF('Data Sheet for Part B'!B763=\"\",\"\",'Data Sheet for Part B'!B763)","v":""},{"$f":"IF('Data Sheet for Part B'!C763=\"\",\"\",'Data Sheet for Part B'!C763)","v":""},{"$f":"IF('Data Sheet for Part B'!D763=\"\",\"\",'Data Sheet for Part B'!D763)","v":""}]
[278,{"$f":"IF('Data Sheet for Part B'!B764=\"\",\"\",'Data Sheet for Part B'!B764)","v":""},{"$f":"IF('Data Sheet for Part B'!C764=\"\",\"\",'Data Sheet for Part B'!C764)","v":""},{"$f":"IF('Data Sheet for Part B'!D764=\"\",\"\",'Data Sheet for Part B'!D764)","v":""}]
[279,{"$f":"IF('Data Sheet for Part B'!B765=\"\",\"\",'Data Sheet for Part B'!B765)","v":""},{"$f":"IF('Data Sheet for Part B'!C765=\"\",\"\",'Data Sheet for Part B'!C765)","v":""},{"$f":"IF('Data Sheet for Part B'!D765=\"\",\"\",'Data Sheet for Part B'!D765)","v":""}]
[280,{"$f":"IF('Data Sheet for Part B'!B766=\"\",\"\",'Data Sheet for Part B'!B766)","v":""},{"$f":"IF('Data Sheet for Part B'!C766=\"\",\"\",'Data Sheet for Part B'!C766)","v":""},{"$f":"IF('Data Sheet for Part B'!D766=\"\",\"\",'Data Sheet for Part B'!D766)","v":""}]
[281,{"$f":"IF('Data Sheet for Part B'!B767=\"\",\"\",'Data Sheet for Part B'!B767)","v":""},{"$f":"IF('Data Sheet for Part B'!C767=\"\",\"\",'Data Sheet for Part B'!C767)","v":""},{"$f":"IF('Data Sheet for Part B'!D767=\"\",\"\",'Data Sheet for Part B'!D767)","v":""}]
[282,{"$f":"IF('Data Sheet for Part B'!B768=\"\",\"\",'Data Sheet for Part B'!B768)","v":""},{"$f":"IF('Data Sheet for Part B'!C768=\"\",\"\",'Data Sheet for Part B'!C768)","v":""},{"$f":"IF('Data Sheet for Part B'!D768=\"\",\"\",'Data Sheet for Part B'!D768)","v":""}]
[283,{"$f":"IF('Data Sheet for Part B'!B769=\"\",\"\",'Data Sheet for Part B'!B769)","v":""},{"$f":"IF('Data Sheet for Part B'!C769=\"\",\"\",'Data Sheet for Part B'!C769)","v":""},{"$f":"IF('Data Sheet for Part B'!D769=\"\",\"\",'Data Sheet for Part B'!D769)","v":""}]
[284,{"$f":"IF('Data Sheet for Part B'!B770=\"\",\"\",'Data Sheet for Part B'!B770)","v":""},{"$f":"IF('Data Sheet for Part B'!C770=\"\",\"\",'Data Sheet for Part B'!C770)","v":""},{"$f":"IF('Data Sheet for Part B'!D770=\"\",\"\",'Data Sheet for Part B'!D770)","v":""}]
[285,{"$f":"IF('Data Sheet for Part B'!B771=\"\",\"\",'Data Sheet for Part B'!B771)","v":""},{"$f":"IF('Data Sheet for Part B'!C771=\"\",\"\",'Data Sheet for Part B'!C771)","v":""},{"$f":"IF('Data Sheet for Part B'!D771=\"\",\"\",'Data Sheet for Part B'!D771)","v":""}]
[286,{"$f":"IF('Data Sheet for Part B'!B772=\"\",\"\",'Data Sheet for Part B'!B772)","v":""},{"$f":"IF('Data Sheet for Part B'!C772=\"\",\"\",'Data Sheet for Part B'!C772)","v":""},{"$f":"IF('Data Sheet for Part B'!D772=\"\",\"\",'Data Sheet for Part B'!D772)","v":""}]
[287,{"$f":"IF('Data Sheet for Part B'!B773=\"\",\"\",'Data Sheet for Part B'!B773)","v":""},{"$f":"IF('Data Sheet for Part B'!C773=\"\",\"\",'Data Sheet for Part B'!C773)","v":""},{"$f":"IF('Data Sheet for Part B'!D773=\"\",\"\",'Data Sheet for Part B'!D773)","v":""}]
[288,{"$f":"IF('Data Sheet for Part B'!B774=\"\",\"\",'Data Sheet for Part B'!B774)","v":""},{"$f":"IF('Data Sheet for Part B'!C774=\"\",\"\",'Data Sheet for Part B'!C774)","v":""},{"$f":"IF('Data Sheet for Part B'!D774=\"\",\"\",'Data Sheet for Part B'!D774)","v":""}]
[289,{"$f":"IF('Data Sheet for Part B'!B775=\"\",\"\",'Data Sheet for Part B'!B775)","v":""},{"$f":"IF('Data Sheet for Part B'!C775=\"\",\"\",'Data Sheet for Part B'!C775)","v":""},{"$f":"IF('Data Sheet for Part B'!D775=\"\",\"\",'Data Sheet for Part B'!D775)","v":""}]
[290,{"$f":"IF('Data Sheet for Part B'!B776=\"\",\"\",'Data Sheet for Part B'!B776)","v":""},{"$f":"IF('Data Sheet for Part B'!C776=\"\",\"\",'Data Sheet for Part B'!C776)","v":""},{"$f":"IF('Data Sheet for Part B'!D776=\"\",\"\",'Data Sheet for Part B'!D776)","v":""}]
[291,{"$f":"IF('Data Sheet for Part B'!B777=\"\",\"\",'Data Sheet for Part B'!B777)","v":""},{"$f":"IF('Data Sheet for Part B'!C777=\"\",\"\",'Data Sheet for Part B'!C777)","v":""},{"$f":"IF('Data Sheet for Part B'!D777=\"\",\"\",'Data Sheet for Part B'!D777)","v":""}]
[292,{"$f":"IF('Data Sheet for Part B'!B778=\"\",\"\",'Data Sheet for Part B'!B778)","v":""},{"$f":"IF('Data Sheet for Part B'!C778=\"\",\"\",'Data Sheet for Part B'!C778)","v":""},{"$f":"IF('Data Sheet for Part B'!D778=\"\",\"\",'Data Sheet for Part B'!D778)","v":""}]
[293,{"$f":"IF('Data Sheet for Part B'!B779=\"\",\"\",'Data Sheet for Part B'!B779)","v":""},{"$f":"IF('Data Sheet for Part B'!C779=\"\",\"\",'Data Sheet for Part B'!C779)","v":""},{"$f":"IF('Data Sheet for Part B'!D779=\"\",\"\",'Data Sheet for Part B'!D779)","v":""}]
[294,{"$f":"IF('Data Sheet for Part B'!B780=\"\",\"\",'Data Sheet for Part B'!B780)","v":""},{"$f":"IF('Data Sheet for Part B'!C780=\"\",\"\",'Data Sheet for Part B'!C780)","v":""},{"$f":"IF('Data Sheet for Part B'!D780=\"\",\"\",'Data Sheet for Part B'!D780)","v":""}]
[295,{"$f":"IF('Data Sheet for Part B'!B781=\"\",\"\",'Data Sheet for Part B'!B781)","v":""},{"$f":"IF('Data Sheet for Part B'!C781=\"\",\"\",'Data Sheet for Part B'!C781)","v":""},{"$f":"IF('Data Sheet for Part B'!D781=\"\",\"\",'Data Sheet for Part B'!D781)","v":""}]
[296,{"$f":"IF('Data Sheet for Part B'!B782=\"\",\"\",'Data Sheet for Part B'!B782)","v":""},{"$f":"IF('Data Sheet for Part B'!C782=\"\",\"\",'Data Sheet for Part B'!C782)","v":""},{"$f":"IF('Data Sheet for Part B'!D782=\"\",\"\",'Data Sheet for Part B'!D782)","v":""}]
[297,{"$f":"IF('Data Sheet for Part B'!B783=\"\",\"\",'Data Sheet for Part B'!B783)","v":""},{"$f":"IF('Data Sheet for Part B'!C783=\"\",\"\",'Data Sheet for Part B'!C783)","v":""},{"$f":"IF('Data Sheet for Part B'!D783=\"\",\"\",'Data Sheet for Part B'!D783)","v":""}]
[298,{"$f":"IF('Data Sheet for Part B'!B784=\"\",\"\",'Data Sheet for Part B'!B784)","v":""},{"$f":"IF('Data Sheet for Part B'!C784=\"\",\"\",'Data Sheet for Part B'!C784)","v":""},{"$f":"IF('Data Sheet for Part B'!D784=\"\",\"\",'Data Sheet for Part B'!D784)","v":""}]
[299,{"$f":"IF('Data Sheet for Part B'!B785=\"\",\"\",'Data Sheet for Part B'!B785)","v":""},{"$f":"IF('Data Sheet for Part B'!C785=\"\",\"\",'Data Sheet for Part B'!C785)","v":""},{"$f":"IF('Data Sheet for Part B'!D785=\"\",\"\",'Data Sheet for Part B'!D785)","v":""}]
[300,{"$f":"IF('Data Sheet for Part B'!B786=\"\",\"\",'Data Sheet for Part B'!B786)","v":""},{"$f":"IF('Data Sheet for Part B'!C786=\"\",\"\",'Data Sheet for Part B'!C786)","v":""},{"$f":"IF('Data Sheet for Part B'!D786=\"\",\"\",'Data Sheet for Part B'!D786)","v":""}]
[301,{"$f":"IF('Data Sheet for Part B'!B787=\"\",\"\",'Data Sheet for Part B'!B787)","v":""},{"$f":"IF('Data Sheet for Part B'!C787=\"\",\"\",'Data Sheet for Part B'!C787)","v":""},{"$f":"IF('Data Sheet for Part B'!D787=\"\",\"\",'Data Sheet for Part B'!D787)","v":""}]
[302,{"$f":"IF('Data Sheet for Part B'!B788=\"\",\"\",'Data Sheet for Part B'!B788)","v":""},{"$f":"IF('Data Sheet for Part B'!C788=\"\",\"\",'Data Sheet for Part B'!C788)","v":""},{"$f":"IF('Data Sheet for Part B'!D788=\"\",\"\",'Data Sheet for Part B'!D788)","v":""}]
[303,{"$f":"IF('Data Sheet for Part B'!B789=\"\",\"\",'Data Sheet for Part B'!B789)","v":""},{"$f":"IF('Data Sheet for Part B'!C789=\"\",\"\",'Data Sheet for Part B'!C789)","v":""},{"$f":"IF('Data Sheet for Part B'!D789=\"\",\"\",'Data Sheet for Part B'!D789)","v":""}]
[304,{"$f":"IF('Data Sheet for Part B'!B790=\"\",\"\",'Data Sheet for Part B'!B790)","v":""},{"$f":"IF('Data Sheet for Part B'!C790=\"\",\"\",'Data Sheet for Part B'!C790)","v":""},{"$f":"IF('Data Sheet for Part B'!D790=\"\",\"\",'Data Sheet for Part B'!D790)","v":""}]
[305,{"$f":"IF('Data Sheet for Part B'!B791=\"\",\"\",'Data Sheet for Part B'!B791)","v":""},{"$f":"IF('Data Sheet for Part B'!C791=\"\",\"\",'Data Sheet for Part B'!C791)","v":""},{"$f":"IF('Data Sheet for Part B'!D791=\"\",\"\",'Data Sheet for Part B'!D791)","v":""}]
[306,{"$f":"IF('Data Sheet for Part B'!B792=\"\",\"\",'Data Sheet for Part B'!B792)","v":""},{"$f":"IF('Data Sheet for Part B'!C792=\"\",\"\",'Data Sheet for Part B'!C792)","v":""},{"$f":"IF('Data Sheet for Part B'!D792=\"\",\"\",'Data Sheet for Part B'!D792)","v":""}]
[307,{"$f":"IF('Data Sheet for Part B'!B793=\"\",\"\",'Data Sheet for Part B'!B793)","v":""},{"$f":"IF('Data Sheet for Part B'!C793=\"\",\"\",'Data Sheet for Part B'!C793)","v":""},{"$f":"IF('Data Sheet for Part B'!D793=\"\",\"\",'Data Sheet for Part B'!D793)","v":""}]
[308,{"$f":"IF('Data Sheet for Part B'!B794=\"\",\"\",'Data Sheet for Part B'!B794)","v":""},{"$f":"IF('Data Sheet for Part B'!C794=\"\",\"\",'Data Sheet for Part B'!C794)","v":""},{"$f":"IF('Data Sheet for Part B'!D794=\"\",\"\",'Data Sheet for Part B'!D794)","v":""}]
[309,{"$f":"IF('Data Sheet for Part B'!B795=\"\",\"\",'Data Sheet for Part B'!B795)","v":""},{"$f":"IF('Data Sheet for Part B'!C795=\"\",\"\",'Data Sheet for Part B'!C795)","v":""},{"$f":"IF('Data Sheet for Part B'!D795=\"\",\"\",'Data Sheet for Part B'!D795)","v":""}]
[310,{"$f":"IF('Data Sheet for Part B'!B796=\"\",\"\",'Data Sheet for Part B'!B796)","v":""},{"$f":"IF('Data Sheet for Part B'!C796=\"\",\"\",'Data Sheet for Part B'!C796)","v":""},{"$f":"IF('Data Sheet for Part B'!D796=\"\",\"\",'Data Sheet for Part B'!D796)","v":""}]
[311,{"$f":"IF('Data Sheet for Part B'!B797=\"\",\"\",'Data Sheet for Part B'!B797)","v":""},{"$f":"IF('Data Sheet for Part B'!C797=\"\",\"\",'Data Sheet for Part B'!C797)","v":""},{"$f":"IF('Data Sheet for Part B'!D797=\"\",\"\",'Data Sheet for Part B'!D797)","v":""}]
[312,{"$f":"IF('Data Sheet for Part B'!B798=\"\",\"\",'Data Sheet for Part B'!B798)","v":""},{"$f":"IF('Data Sheet for Part B'!C798=\"\",\"\",'Data Sheet for Part B'!C798)","v":""},{"$f":"IF('Data Sheet for Part B'!D798=\"\",\"\",'Data Sheet for Part B'!D798)","v":""}]
[313,{"$f":"IF('Data Sheet for Part B'!B799=\"\",\"\",'Data Sheet for Part B'!B799)","v":""},{"$f":"IF('Data Sheet for Part B'!C799=\"\",\"\",'Data Sheet for Part B'!C799)","v":""},{"$f":"IF('Data Sheet for Part B'!D799=\"\",\"\",'Data Sheet for Part B'!D799)","v":""}]
[314,{"$f":"IF('Data Sheet for Part B'!B800=\"\",\"\",'Data Sheet for Part B'!B800)","v":""},{"$f":"IF('Data Sheet for Part B'!C800=\"\",\"\",'Data Sheet for Part B'!C800)","v":""},{"$f":"IF('Data Sheet for Part B'!D800=\"\",\"\",'Data Sheet for Part B'!D800)","v":""}]
[315,{"$f":"IF('Data Sheet for Part B'!B801=\"\",\"\",'Data Sheet for Part B'!B801)","v":""},{"$f":"IF('Data Sheet for Part B'!C801=\"\",\"\",'Data Sheet for Part B'!C801)","v":""},{"$f":"IF('Data Sheet for Part B'!D801=\"\",\"\",'Data Sheet for Part B'!D801)","v":""}]
[316,{"$f":"IF('Data Sheet for Part B'!B802=\"\",\"\",'Data Sheet for Part B'!B802)","v":""},{"$f":"IF('Data Sheet for Part B'!C802=\"\",\"\",'Data Sheet for Part B'!C802)","v":""},{"$f":"IF('Data Sheet for Part B'!D802=\"\",\"\",'Data Sheet for Part B'!D802)","v":""}]
[317,{"$f":"IF('Data Sheet for Part B'!B803=\"\",\"\",'Data Sheet for Part B'!B803)","v":""},{"$f":"IF('Data Sheet for Part B'!C803=\"\",\"\",'Data Sheet for Part B'!C803)","v":""},{"$f":"IF('Data Sheet for Part B'!D803=\"\",\"\",'Data Sheet for Part B'!D803)","v":""}]
[318,{"$f":"IF('Data Sheet for Part B'!B804=\"\",\"\",'Data Sheet for Part B'!B804)","v":""},{"$f":"IF('Data Sheet for Part B'!C804=\"\",\"\",'Data Sheet for Part B'!C804)","v":""},{"$f":"IF('Data Sheet for Part B'!D804=\"\",\"\",'Data Sheet for Part B'!D804)","v":""}]
[319,{"$f":"IF('Data Sheet for Part B'!B805=\"\",\"\",'Data Sheet for Part B'!B805)","v":""},{"$f":"IF('Data Sheet for Part B'!C805=\"\",\"\",'Data Sheet for Part B'!C805)","v":""},{"$f":"IF('Data Sheet for Part B'!D805=\"\",\"\",'Data Sheet for Part B'!D805)","v":""}]
[320,{"$f":"IF('Data Sheet for Part B'!B806=\"\",\"\",'Data Sheet for Part B'!B806)","v":""},{"$f":"IF('Data Sheet for Part B'!C806=\"\",\"\",'Data Sheet for Part B'!C806)","v":""},{"$f":"IF('Data Sheet for Part B'!D806=\"\",\"\",'Data Sheet for Part B'!D806)","v":""}]
[321,{"$f":"IF('Data Sheet for Part B'!B807=\"\",\"\",'Data Sheet for Part B'!B807)","v":""},{"$f":"IF('Data Sheet for Part B'!C807=\"\",\"\",'Data Sheet for Part B'!C807)","v":""},{"$f":"IF('Data Sheet for Part B'!D807=\"\",\"\",'Data Sheet for Part B'!D807)","v":""}]
[322,{"$f":"IF('Data Sheet for Part B'!B808=\"\",\"\",'Data Sheet for Part B'!B808)","v":""},{"$f":"IF('Data Sheet for Part B'!C808=\"\",\"\",'Data Sheet for Part B'!C808)","v":""},{"$f":"IF('Data Sheet for Part B'!D808=\"\",\"\",'Data Sheet for Part B'!D808)","v":""}]
[323,{"$f":"IF('Data Sheet for Part B'!B809=\"\",\"\",'Data Sheet for Part B'!B809)","v":""},{"$f":"IF('Data Sheet for Part B'!C809=\"\",\"\",'Data Sheet for Part B'!C809)","v":""},{"$f":"IF('Data Sheet for Part B'!D809=\"\",\"\",'Data Sheet for Part B'!D809)","v":""}]
[324,{"$f":"IF('Data Sheet for Part B'!B810=\"\",\"\",'Data Sheet for Part B'!B810)","v":""},{"$f":"IF('Data Sheet for Part B'!C810=\"\",\"\",'Data Sheet for Part B'!C810)","v":""},{"$f":"IF('Data Sheet for Part B'!D810=\"\",\"\",'Data Sheet for Part B'!D810)","v":""}]
[325,{"$f":"IF('Data Sheet for Part B'!B811=\"\",\"\",'Data Sheet for Part B'!B811)","v":""},{"$f":"IF('Data Sheet for Part B'!C811=\"\",\"\",'Data Sheet for Part B'!C811)","v":""},{"$f":"IF('Data Sheet for Part B'!D811=\"\",\"\",'Data Sheet for Part B'!D811)","v":""}]
[326,{"$f":"IF('Data Sheet for Part B'!B812=\"\",\"\",'Data Sheet for Part B'!B812)","v":""},{"$f":"IF('Data Sheet for Part B'!C812=\"\",\"\",'Data Sheet for Part B'!C812)","v":""},{"$f":"IF('Data Sheet for Part B'!D812=\"\",\"\",'Data Sheet for Part B'!D812)","v":""}]
[327,{"$f":"IF('Data Sheet for Part B'!B813=\"\",\"\",'Data Sheet for Part B'!B813)","v":""},{"$f":"IF('Data Sheet for Part B'!C813=\"\",\"\",'Data Sheet for Part B'!C813)","v":""},{"$f":"IF('Data Sheet for Part B'!D813=\"\",\"\",'Data Sheet for Part B'!D813)","v":""}]
[328,{"$f":"IF('Data Sheet for Part B'!B814=\"\",\"\",'Data Sheet for Part B'!B814)","v":""},{"$f":"IF('Data Sheet for Part B'!C814=\"\",\"\",'Data Sheet for Part B'!C814)","v":""},{"$f":"IF('Data Sheet for Part B'!D814=\"\",\"\",'Data Sheet for Part B'!D814)","v":""}]
[329,{"$f":"IF('Data Sheet for Part B'!B815=\"\",\"\",'Data Sheet for Part B'!B815)","v":""},{"$f":"IF('Data Sheet for Part B'!C815=\"\",\"\",'Data Sheet for Part B'!C815)","v":""},{"$f":"IF('Data Sheet for Part B'!D815=\"\",\"\",'Data Sheet for Part B'!D815)","v":""}]
[330,{"$f":"IF('Data Sheet for Part B'!B816=\"\",\"\",'Data Sheet for Part B'!B816)","v":""},{"$f":"IF('Data Sheet for Part B'!C816=\"\",\"\",'Data Sheet for Part B'!C816)","v":""},{"$f":"IF('Data Sheet for Part B'!D816=\"\",\"\",'Data Sheet for Part B'!D816)","v":""}]
[331,{"$f":"IF('Data Sheet for Part B'!B817=\"\",\"\",'Data Sheet for Part B'!B817)","v":""},{"$f":"IF('Data Sheet for Part B'!C817=\"\",\"\",'Data Sheet for Part B'!C817)","v":""},{"$f":"IF('Data Sheet for Part B'!D817=\"\",\"\",'Data Sheet for Part B'!D817)","v":""}]
[332,{"$f":"IF('Data Sheet for Part B'!B818=\"\",\"\",'Data Sheet for Part B'!B818)","v":""},{"$f":"IF('Data Sheet for Part B'!C818=\"\",\"\",'Data Sheet for Part B'!C818)","v":""},{"$f":"IF('Data Sheet for Part B'!D818=\"\",\"\",'Data Sheet for Part B'!D818)","v":""}]
[333,{"$f":"IF('Data Sheet for Part B'!B819=\"\",\"\",'Data Sheet for Part B'!B819)","v":""},{"$f":"IF('Data Sheet for Part B'!C819=\"\",\"\",'Data Sheet for Part B'!C819)","v":""},{"$f":"IF('Data Sheet for Part B'!D819=\"\",\"\",'Data Sheet for Part B'!D819)","v":""}]
[334,{"$f":"IF('Data Sheet for Part B'!B820=\"\",\"\",'Data Sheet for Part B'!B820)","v":""},{"$f":"IF('Data Sheet for Part B'!C820=\"\",\"\",'Data Sheet for Part B'!C820)","v":""},{"$f":"IF('Data Sheet for Part B'!D820=\"\",\"\",'Data Sheet for Part B'!D820)","v":""}]
[335,{"$f":"IF('Data Sheet for Part B'!B821=\"\",\"\",'Data Sheet for Part B'!B821)","v":""},{"$f":"IF('Data Sheet for Part B'!C821=\"\",\"\",'Data Sheet for Part B'!C821)","v":""},{"$f":"IF('Data Sheet for Part B'!D821=\"\",\"\",'Data Sheet for Part B'!D821)","v":""}]
[336,{"$f":"IF('Data Sheet for Part B'!B822=\"\",\"\",'Data Sheet for Part B'!B822)","v":""},{"$f":"IF('Data Sheet for Part B'!C822=\"\",\"\",'Data Sheet for Part B'!C822)","v":""},{"$f":"IF('Data Sheet for Part B'!D822=\"\",\"\",'Data Sheet for Part B'!D822)","v":""}]
[337,{"$f":"IF('Data Sheet for Part B'!B823=\"\",\"\",'Data Sheet for Part B'!B823)","v":""},{"$f":"IF('Data Sheet for Part B'!C823=\"\",\"\",'Data Sheet for Part B'!C823)","v":""},{"$f":"IF('Data Sheet for Part B'!D823=\"\",\"\",'Data Sheet for Part B'!D823)","v":""}]
[338,{"$f":"IF('Data Sheet for Part B'!B824=\"\",\"\",'Data Sheet for Part B'!B824)","v":""},{"$f":"IF('Data Sheet for Part B'!C824=\"\",\"\",'Data Sheet for Part B'!C824)","v":""},{"$f":"IF('Data Sheet for Part B'!D824=\"\",\"\",'Data Sheet for Part B'!D824)","v":""}]
[339,{"$f":"IF('Data Sheet for Part B'!B825=\"\",\"\",'Data Sheet for Part B'!B825)","v":""},{"$f":"IF('Data Sheet for Part B'!C825=\"\",\"\",'Data Sheet for Part B'!C825)","v":""},{"$f":"IF('Data Sheet for Part B'!D825=\"\",\"\",'Data Sheet for Part B'!D825)","v":""}]
[340,{"$f":"IF('Data Sheet for Part B'!B826=\"\",\"\",'Data Sheet for Part B'!B826)","v":""},{"$f":"IF('Data Sheet for Part B'!C826=\"\",\"\",'Data Sheet for Part B'!C826)","v":""},{"$f":"IF('Data Sheet for Part B'!D826=\"\",\"\",'Data Sheet for Part B'!D826)","v":""}]
[341,{"$f":"IF('Data Sheet for Part B'!B827=\"\",\"\",'Data Sheet for Part B'!B827)","v":""},{"$f":"IF('Data Sheet for Part B'!C827=\"\",\"\",'Data Sheet for Part B'!C827)","v":""},{"$f":"IF('Data Sheet for Part B'!D827=\"\",\"\",'Data Sheet for Part B'!D827)","v":""}]
[342,{"$f":"IF('Data Sheet for Part B'!B828=\"\",\"\",'Data Sheet for Part B'!B828)","v":""},{"$f":"IF('Data Sheet for Part B'!C828=\"\",\"\",'Data Sheet for Part B'!C828)","v":""},{"$f":"IF('Data Sheet for Part B'!D828=\"\",\"\",'Data Sheet for Part B'!D828)","v":""}]
[343,{"$f":"IF('Data Sheet for Part B'!B829=\"\",\"\",'Data Sheet for Part B'!B829)","v":""},{"$f":"IF('Data Sheet for Part B'!C829=\"\",\"\",'Data Sheet for Part B'!C829)","v":""},{"$f":"IF('Data Sheet for Part B'!D829=\"\",\"\",'Data Sheet for Part B'!D829)","v":""}]
[344,{"$f":"IF('Data Sheet for Part B'!B830=\"\",\"\",'Data Sheet for Part B'!B830)","v":""},{"$f":"IF('Data Sheet for Part B'!C830=\"\",\"\",'Data Sheet for Part B'!C830)","v":""},{"$f":"IF('Data Sheet for Part B'!D830=\"\",\"\",'Data Sheet for Part B'!D830)","v":""}]
[345,{"$f":"IF('Data Sheet for Part B'!B831=\"\",\"\",'Data Sheet for Part B'!B831)","v":""},{"$f":"IF('Data Sheet for Part B'!C831=\"\",\"\",'Data Sheet for Part B'!C831)","v":""},{"$f":"IF('Data Sheet for Part B'!D831=\"\",\"\",'Data Sheet for Part B'!D831)","v":""}]
[346,{"$f":"IF('Data Sheet for Part B'!B832=\"\",\"\",'Data Sheet for Part B'!B832)","v":""},{"$f":"IF('Data Sheet for Part B'!C832=\"\",\"\",'Data Sheet for Part B'!C832)","v":""},{"$f":"IF('Data Sheet for Part B'!D832=\"\",\"\",'Data Sheet for Part B'!D832)","v":""}]
[347,{"$f":"IF('Data Sheet for Part B'!B833=\"\",\"\",'Data Sheet for Part B'!B833)","v":""},{"$f":"IF('Data Sheet for Part B'!C833=\"\",\"\",'Data Sheet for Part B'!C833)","v":""},{"$f":"IF('Data Sheet for Part B'!D833=\"\",\"\",'Data Sheet for Part B'!D833)","v":""}]
[348,{"$f":"IF('Data Sheet for Part B'!B834=\"\",\"\",'Data Sheet for Part B'!B834)","v":""},{"$f":"IF('Data Sheet for Part B'!C834=\"\",\"\",'Data Sheet for Part B'!C834)","v":""},{"$f":"IF('Data Sheet for Part B'!D834=\"\",\"\",'Data Sheet for Part B'!D834)","v":""}]
[349,{"$f":"IF('Data Sheet for Part B'!B835=\"\",\"\",'Data Sheet for Part B'!B835)","v":""},{"$f":"IF('Data Sheet for Part B'!C835=\"\",\"\",'Data Sheet for Part B'!C835)","v":""},{"$f":"IF('Data Sheet for Part B'!D835=\"\",\"\",'Data Sheet for Part B'!D835)","v":""}]
[350,{"$f":"IF('Data Sheet for Part B'!B836=\"\",\"\",'Data Sheet for Part B'!B836)","v":""},{"$f":"IF('Data Sheet for Part B'!C836=\"\",\"\",'Data Sheet for Part B'!C836)","v":""},{"$f":"IF('Data Sheet for Part B'!D836=\"\",\"\",'Data Sheet for Part B'!D836)","v":""}]
[351,{"$f":"IF('Data Sheet for Part B'!B837=\"\",\"\",'Data Sheet for Part B'!B837)","v":""},{"$f":"IF('Data Sheet for Part B'!C837=\"\",\"\",'Data Sheet for Part B'!C837)","v":""},{"$f":"IF('Data Sheet for Part B'!D837=\"\",\"\",'Data Sheet for Part B'!D837)","v":""}]
[352,{"$f":"IF('Data Sheet for Part B'!B838=\"\",\"\",'Data Sheet for Part B'!B838)","v":""},{"$f":"IF('Data Sheet for Part B'!C838=\"\",\"\",'Data Sheet for Part B'!C838)","v":""},{"$f":"IF('Data Sheet for Part B'!D838=\"\",\"\",'Data Sheet for Part B'!D838)","v":""}]
[353,{"$f":"IF('Data Sheet for Part B'!B839=\"\",\"\",'Data Sheet for Part B'!B839)","v":""},{"$f":"IF('Data Sheet for Part B'!C839=\"\",\"\",'Data Sheet for Part B'!C839)","v":""},{"$f":"IF('Data Sheet for Part B'!D839=\"\",\"\",'Data Sheet for Part B'!D839)","v":""}]
[354,{"$f":"IF('Data Sheet for Part B'!B840=\"\",\"\",'Data Sheet for Part B'!B840)","v":""},{"$f":"IF('Data Sheet for Part B'!C840=\"\",\"\",'Data Sheet for Part B'!C840)","v":""},{"$f":"IF('Data Sheet for Part B'!D840=\"\",\"\",'Data Sheet for Part B'!D840)","v":""}]
[355,{"$f":"IF('Data Sheet for Part B'!B841=\"\",\"\",'Data Sheet for Part B'!B841)","v":""},{"$f":"IF('Data Sheet for Part B'!C841=\"\",\"\",'Data Sheet for Part B'!C841)","v":""},{"$f":"IF('Data Sheet for Part B'!D841=\"\",\"\",'Data Sheet for Part B'!D841)","v":""}]
[356,{"$f":"IF('Data Sheet for Part B'!B842=\"\",\"\",'Data Sheet for Part B'!B842)","v":""},{"$f":"IF('Data Sheet for Part B'!C842=\"\",\"\",'Data Sheet for Part B'!C842)","v":""},{"$f":"IF('Data Sheet for Part B'!D842=\"\",\"\",'Data Sheet for Part B'!D842)","v":""}]
[357,{"$f":"IF('Data Sheet for Part B'!B843=\"\",\"\",'Data Sheet for Part B'!B843)","v":""},{"$f":"IF('Data Sheet for Part B'!C843=\"\",\"\",'Data Sheet for Part B'!C843)","v":""},{"$f":"IF('Data Sheet for Part B'!D843=\"\",\"\",'Data Sheet for Part B'!D843)","v":""}]
[358,{"$f":"IF('Data Sheet for Part B'!B844=\"\",\"\",'Data Sheet for Part B'!B844)","v":""},{"$f":"IF('Data Sheet for Part B'!C844=\"\",\"\",'Data Sheet for Part B'!C844)","v":""},{"$f":"IF('Data Sheet for Part B'!D844=\"\",\"\",'Data Sheet for Part B'!D844)","v":""}]
[359,{"$f":"IF('Data Sheet for Part B'!B845=\"\",\"\",'Data Sheet for Part B'!B845)","v":""},{"$f":"IF('Data Sheet for Part B'!C845=\"\",\"\",'Data Sheet for Part B'!C845)","v":""},{"$f":"IF('Data Sheet for Part B'!D845=\"\",\"\",'Data Sheet for Part B'!D845)","v":""}]
[360,{"$f":"IF('Data Sheet for Part B'!B846=\"\",\"\",'Data Sheet for Part B'!B846)","v":""},{"$f":"IF('Data Sheet for Part B'!C846=\"\",\"\",'Data Sheet for Part B'!C846)","v":""},{"$f":"IF('Data Sheet for Part B'!D846=\"\",\"\",'Data Sheet for Part B'!D846)","v":""}]
[361,{"$f":"IF('Data Sheet for Part B'!B847=\"\",\"\",'Data Sheet for Part B'!B847)","v":""},{"$f":"IF('Data Sheet for Part B'!C847=\"\",\"\",'Data Sheet for Part B'!C847)","v":""},{"$f":"IF('Data Sheet for Part B'!D847=\"\",\"\",'Data Sheet for Part B'!D847)","v":""}]
[362,{"$f":"IF('Data Sheet for Part B'!B848=\"\",\"\",'Data Sheet for Part B'!B848)","v":""},{"$f":"IF('Data Sheet for Part B'!C848=\"\",\"\",'Data Sheet for Part B'!C848)","v":""},{"$f":"IF('Data Sheet for Part B'!D848=\"\",\"\",'Data Sheet for Part B'!D848)","v":""}]
[363,{"$f":"IF('Data Sheet for Part B'!B849=\"\",\"\",'Data Sheet for Part B'!B849)","v":""},{"$f":"IF('Data Sheet for Part B'!C849=\"\",\"\",'Data Sheet for Part B'!C849)","v":""},{"$f":"IF('Data Sheet for Part B'!D849=\"\",\"\",'Data Sheet for Part B'!D849)","v":""}]
[364,{"$f":"IF('Data Sheet for Part B'!B850=\"\",\"\",'Data Sheet for Part B'!B850)","v":""},{"$f":"IF('Data Sheet for Part B'!C850=\"\",\"\",'Data Sheet for Part B'!C850)","v":""},{"$f":"IF('Data Sheet for Part B'!D850=\"\",\"\",'Data Sheet for Part B'!D850)","v":""}]
[365,{"$f":"IF('Data Sheet for Part B'!B851=\"\",\"\",'Data Sheet for Part B'!B851)","v":""},{"$f":"IF('Data Sheet for Part B'!C851=\"\",\"\",'Data Sheet for Part B'!C851)","v":""},{"$f":"IF('Data Sheet for Part B'!D851=\"\",\"\",'Data Sheet for Part B'!D851)","v":""}]
[366,{"$f":"IF('Data Sheet for Part B'!B852=\"\",\"\",'Data Sheet for Part B'!B852)","v":""},{"$f":"IF('Data Sheet for Part B'!C852=\"\",\"\",'Data Sheet for Part B'!C852)","v":""},{"$f":"IF('Data Sheet for Part B'!D852=\"\",\"\",'Data Sheet for Part B'!D852)","v":""}]
[367,{"$f":"IF('Data Sheet for Part B'!B853=\"\",\"\",'Data Sheet for Part B'!B853)","v":""},{"$f":"IF('Data Sheet for Part B'!C853=\"\",\"\",'Data Sheet for Part B'!C853)","v":""},{"$f":"IF('Data Sheet for Part B'!D853=\"\",\"\",'Data Sheet for Part B'!D853)","v":""}]
[368,{"$f":"IF('Data Sheet for Part B'!B854=\"\",\"\",'Data Sheet for Part B'!B854)","v":""},{"$f":"IF('Data Sheet for Part B'!C854=\"\",\"\",'Data Sheet for Part B'!C854)","v":""},{"$f":"IF('Data Sheet for Part B'!D854=\"\",\"\",'Data Sheet for Part B'!D854)","v":""}]
[369,{"$f":"IF('Data Sheet for Part B'!B855=\"\",\"\",'Data Sheet for Part B'!B855)","v":""},{"$f":"IF('Data Sheet for Part B'!C855=\"\",\"\",'Data Sheet for Part B'!C855)","v":""},{"$f":"IF('Data Sheet for Part B'!D855=\"\",\"\",'Data Sheet for Part B'!D855)","v":""}]
[370,{"$f":"IF('Data Sheet for Part B'!B856=\"\",\"\",'Data Sheet for Part B'!B856)","v":""},{"$f":"IF('Data Sheet for Part B'!C856=\"\",\"\",'Data Sheet for Part B'!C856)","v":""},{"$f":"IF('Data Sheet for Part B'!D856=\"\",\"\",'Data Sheet for Part B'!D856)","v":""}]
[371,{"$f":"IF('Data Sheet for Part B'!B857=\"\",\"\",'Data Sheet for Part B'!B857)","v":""},{"$f":"IF('Data Sheet for Part B'!C857=\"\",\"\",'Data Sheet for Part B'!C857)","v":""},{"$f":"IF('Data Sheet for Part B'!D857=\"\",\"\",'Data Sheet for Part B'!D857)","v":""}]
[372,{"$f":"IF('Data Sheet for Part B'!B858=\"\",\"\",'Data Sheet for Part B'!B858)","v":""},{"$f":"IF('Data Sheet for Part B'!C858=\"\",\"\",'Data Sheet for Part B'!C858)","v":""},{"$f":"IF('Data Sheet for Part B'!D858=\"\",\"\",'Data Sheet for Part B'!D858)","v":""}]
[373,{"$f":"IF('Data Sheet for Part B'!B859=\"\",\"\",'Data Sheet for Part B'!B859)","v":""},{"$f":"IF('Data Sheet for Part B'!C859=\"\",\"\",'Data Sheet for Part B'!C859)","v":""},{"$f":"IF('Data Sheet for Part B'!D859=\"\",\"\",'Data Sheet for Part B'!D859)","v":""}]
[374,{"$f":"IF('Data Sheet for Part B'!B860=\"\",\"\",'Data Sheet for Part B'!B860)","v":""},{"$f":"IF('Data Sheet for Part B'!C860=\"\",\"\",'Data Sheet for Part B'!C860)","v":""},{"$f":"IF('Data Sheet for Part B'!D860=\"\",\"\",'Data Sheet for Part B'!D860)","v":""}]
[375,{"$f":"IF('Data Sheet for Part B'!B861=\"\",\"\",'Data Sheet for Part B'!B861)","v":""},{"$f":"IF('Data Sheet for Part B'!C861=\"\",\"\",'Data Sheet for Part B'!C861)","v":""},{"$f":"IF('Data Sheet for Part B'!D861=\"\",\"\",'Data Sheet for Part B'!D861)","v":""}]
[376,{"$f":"IF('Data Sheet for Part B'!B862=\"\",\"\",'Data Sheet for Part B'!B862)","v":""},{"$f":"IF('Data Sheet for Part B'!C862=\"\",\"\",'Data Sheet for Part B'!C862)","v":""},{"$f":"IF('Data Sheet for Part B'!D862=\"\",\"\",'Data Sheet for Part B'!D862)","v":""}]
[377,{"$f":"IF('Data Sheet for Part B'!B863=\"\",\"\",'Data Sheet for Part B'!B863)","v":""},{"$f":"IF('Data Sheet for Part B'!C863=\"\",\"\",'Data Sheet for Part B'!C863)","v":""},{"$f":"IF('Data Sheet for Part B'!D863=\"\",\"\",'Data Sheet for Part B'!D863)","v":""}]
[378,{"$f":"IF('Data Sheet for Part B'!B864=\"\",\"\",'Data Sheet for Part B'!B864)","v":""},{"$f":"IF('Data Sheet for Part B'!C864=\"\",\"\",'Data Sheet for Part B'!C864)","v":""},{"$f":"IF('Data Sheet for Part B'!D864=\"\",\"\",'Data Sheet for Part B'!D864)","v":""}]
[379,{"$f":"IF('Data Sheet for Part B'!B865=\"\",\"\",'Data Sheet for Part B'!B865)","v":""},{"$f":"IF('Data Sheet for Part B'!C865=\"\",\"\",'Data Sheet for Part B'!C865)","v":""},{"$f":"IF('Data Sheet for Part B'!D865=\"\",\"\",'Data Sheet for Part B'!D865)","v":""}]
[380,{"$f":"IF('Data Sheet for Part B'!B866=\"\",\"\",'Data Sheet for Part B'!B866)","v":""},{"$f":"IF('Data Sheet for Part B'!C866=\"\",\"\",'Data Sheet for Part B'!C866)","v":""},{"$f":"IF('Data Sheet for Part B'!D866=\"\",\"\",'Data Sheet for Part B'!D866)","v":""}]
[381,{"$f":"IF('Data Sheet for Part B'!B867=\"\",\"\",'Data Sheet for Part B'!B867)","v":""},{"$f":"IF('Data Sheet for Part B'!C867=\"\",\"\",'Data Sheet for Part B'!C867)","v":""},{"$f":"IF('Data Sheet for Part B'!D867=\"\",\"\",'Data Sheet for Part B'!D867)","v":""}]
[382,{"$f":"IF('Data Sheet for Part B'!B868=\"\",\"\",'Data Sheet for Part B'!B868)","v":""},{"$f":"IF('Data Sheet for Part B'!C868=\"\",\"\",'Data Sheet for Part B'!C868)","v":""},{"$f":"IF('Data Sheet for Part B'!D868=\"\",\"\",'Data Sheet for Part B'!D868)","v":""}]
[383,{"$f":"IF('Data Sheet for Part B'!B869=\"\",\"\",'Data Sheet for Part B'!B869)","v":""},{"$f":"IF('Data Sheet for Part B'!C869=\"\",\"\",'Data Sheet for Part B'!C869)","v":""},{"$f":"IF('Data Sheet for Part B'!D869=\"\",\"\",'Data Sheet for Part B'!D869)","v":""}]
[384,{"$f":"IF('Data Sheet for Part B'!B870=\"\",\"\",'Data Sheet for Part B'!B870)","v":""},{"$f":"IF('Data Sheet for Part B'!C870=\"\",\"\",'Data Sheet for Part B'!C870)","v":""},{"$f":"IF('Data Sheet for Part B'!D870=\"\",\"\",'Data Sheet for Part B'!D870)","v":""}]
[385,{"$f":"IF('Data Sheet for Part B'!B871=\"\",\"\",'Data Sheet for Part B'!B871)","v":""},{"$f":"IF('Data Sheet for Part B'!C871=\"\",\"\",'Data Sheet for Part B'!C871)","v":""},{"$f":"IF('Data Sheet for Part B'!D871=\"\",\"\",'Data Sheet for Part B'!D871)","v":""}]
[386,{"$f":"IF('Data Sheet for Part B'!B872=\"\",\"\",'Data Sheet for Part B'!B872)","v":""},{"$f":"IF('Data Sheet for Part B'!C872=\"\",\"\",'Data Sheet for Part B'!C872)","v":""},{"$f":"IF('Data Sheet for Part B'!D872=\"\",\"\",'Data Sheet for Part B'!D872)","v":""}]
[387,{"$f":"IF('Data Sheet for Part B'!B873=\"\",\"\",'Data Sheet for Part B'!B873)","v":""},{"$f":"IF('Data Sheet for Part B'!C873=\"\",\"\",'Data Sheet for Part B'!C873)","v":""},{"$f":"IF('Data Sheet for Part B'!D873=\"\",\"\",'Data Sheet for Part B'!D873)","v":""}]
[388,{"$f":"IF('Data Sheet for Part B'!B874=\"\",\"\",'Data Sheet for Part B'!B874)","v":""},{"$f":"IF('Data Sheet for Part B'!C874=\"\",\"\",'Data Sheet for Part B'!C874)","v":""},{"$f":"IF('Data Sheet for Part B'!D874=\"\",\"\",'Data Sheet for Part B'!D874)","v":""}]
[389,{"$f":"IF('Data Sheet for Part B'!B875=\"\",\"\",'Data Sheet for Part B'!B875)","v":""},{"$f":"IF('Data Sheet for Part B'!C875=\"\",\"\",'Data Sheet for Part B'!C875)","v":""},{"$f":"IF('Data Sheet for Part B'!D875=\"\",\"\",'Data Sheet for Part B'!D875)","v":""}]
[390,{"$f":"IF('Data Sheet for Part B'!B876=\"\",\"\",'Data Sheet for Part B'!B876)","v":""},{"$f":"IF('Data Sheet for Part B'!C876=\"\",\"\",'Data Sheet for Part B'!C876)","v":""},{"$f":"IF('Data Sheet for Part B'!D876=\"\",\"\",'Data Sheet for Part B'!D876)","v":""}]
[391,{"$f":"IF('Data Sheet for Part B'!B877=\"\",\"\",'Data Sheet for Part B'!B877)","v":""},{"$f":"IF('Data Sheet for Part B'!C877=\"\",\"\",'Data Sheet for Part B'!C877)","v":""},{"$f":"IF('Data Sheet for Part B'!D877=\"\",\"\",'Data Sheet for Part B'!D877)","v":""}]
[392,{"$f":"IF('Data Sheet for Part B'!B878=\"\",\"\",'Data Sheet for Part B'!B878)","v":""},{"$f":"IF('Data Sheet for Part B'!C878=\"\",\"\",'Data Sheet for Part B'!C878)","v":""},{"$f":"IF('Data Sheet for Part B'!D878=\"\",\"\",'Data Sheet for Part B'!D878)","v":""}]
[393,{"$f":"IF('Data Sheet for Part B'!B879=\"\",\"\",'Data Sheet for Part B'!B879)","v":""},{"$f":"IF('Data Sheet for Part B'!C879=\"\",\"\",'Data Sheet for Part B'!C879)","v":""},{"$f":"IF('Data Sheet for Part B'!D879=\"\",\"\",'Data Sheet for Part B'!D879)","v":""}]
[394,{"$f":"IF('Data Sheet for Part B'!B880=\"\",\"\",'Data Sheet for Part B'!B880)","v":""},{"$f":"IF('Data Sheet for Part B'!C880=\"\",\"\",'Data Sheet for Part B'!C880)","v":""},{"$f":"IF('Data Sheet for Part B'!D880=\"\",\"\",'Data Sheet for Part B'!D880)","v":""}]
[395,{"$f":"IF('Data Sheet for Part B'!B881=\"\",\"\",'Data Sheet for Part B'!B881)","v":""},{"$f":"IF('Data Sheet for Part B'!C881=\"\",\"\",'Data Sheet for Part B'!C881)","v":""},{"$f":"IF('Data Sheet for Part B'!D881=\"\",\"\",'Data Sheet for Part B'!D881)","v":""}]
[396,{"$f":"IF('Data Sheet for Part B'!B882=\"\",\"\",'Data Sheet for Part B'!B882)","v":""},{"$f":"IF('Data Sheet for Part B'!C882=\"\",\"\",'Data Sheet for Part B'!C882)","v":""},{"$f":"IF('Data Sheet for Part B'!D882=\"\",\"\",'Data Sheet for Part B'!D882)","v":""}]
[397,{"$f":"IF('Data Sheet for Part B'!B883=\"\",\"\",'Data Sheet for Part B'!B883)","v":""},{"$f":"IF('Data Sheet for Part B'!C883=\"\",\"\",'Data Sheet for Part B'!C883)","v":""},{"$f":"IF('Data Sheet for Part B'!D883=\"\",\"\",'Data Sheet for Part B'!D883)","v":""}]
[398,{"$f":"IF('Data Sheet for Part B'!B884=\"\",\"\",'Data Sheet for Part B'!B884)","v":""},{"$f":"IF('Data Sheet for Part B'!C884=\"\",\"\",'Data Sheet for Part B'!C884)","v":""},{"$f":"IF('Data Sheet for Part B'!D884=\"\",\"\",'Data Sheet for Part B'!D884)","v":""}]
[399,{"$f":"IF('Data Sheet for Part B'!B885=\"\",\"\",'Data Sheet for Part B'!B885)","v":""},{"$f":"IF('Data Sheet for Part B'!C885=\"\",\"\",'Data Sheet for Part B'!C885)","v":""},{"$f":"IF('Data Sheet for Part B'!D885=\"\",\"\",'Data Sheet for Part B'!D885)","v":""}]
[400,{"$f":"IF('Data Sheet for Part B'!B886=\"\",\"\",'Data Sheet for Part B'!B886)","v":""},{"$f":"IF('Data Sheet for Part B'!C886=\"\",\"\",'Data Sheet for Part B'!C886)","v":""},{"$f":"IF('Data Sheet for Part B'!D886=\"\",\"\",'Data Sheet for Part B'!D886)","v":""}]
[401,{"$f":"IF('Data Sheet for Part B'!B887=\"\",\"\",'Data Sheet for Part B'!B887)","v":""},{"$f":"IF('Data Sheet for Part B'!C887=\"\",\"\",'Data Sheet for Part B'!C887)","v":""},{"$f":"IF('Data Sheet for Part B'!D887=\"\",\"\",'Data Sheet for Part B'!D887)","v":""}]
[402,{"$f":"IF('Data Sheet for Part B'!B888=\"\",\"\",'Data Sheet for Part B'!B888)","v":""},{"$f":"IF('Data Sheet for Part B'!C888=\"\",\"\",'Data Sheet for Part B'!C888)","v":""},{"$f":"IF('Data Sheet for Part B'!D888=\"\",\"\",'Data Sheet for Part B'!D888)","v":""}]
[403,{"$f":"IF('Data Sheet for Part B'!B889=\"\",\"\",'Data Sheet for Part B'!B889)","v":""},{"$f":"IF('Data Sheet for Part B'!C889=\"\",\"\",'Data Sheet for Part B'!C889)","v":""},{"$f":"IF('Data Sheet for Part B'!D889=\"\",\"\",'Data Sheet for Part B'!D889)","v":""}]
[404,{"$f":"IF('Data Sheet for Part B'!B890=\"\",\"\",'Data Sheet for Part B'!B890)","v":""},{"$f":"IF('Data Sheet for Part B'!C890=\"\",\"\",'Data Sheet for Part B'!C890)","v":""},{"$f":"IF('Data Sheet for Part B'!D890=\"\",\"\",'Data Sheet for Part B'!D890)","v":""}]
[405,{"$f":"IF('Data Sheet for Part B'!B891=\"\",\"\",'Data Sheet for Part B'!B891)","v":""},{"$f":"IF('Data Sheet for Part B'!C891=\"\",\"\",'Data Sheet for Part B'!C891)","v":""},{"$f":"IF('Data Sheet for Part B'!D891=\"\",\"\",'Data Sheet for Part B'!D891)","v":""}]
[406,{"$f":"IF('Data Sheet for Part B'!B892=\"\",\"\",'Data Sheet for Part B'!B892)","v":""},{"$f":"IF('Data Sheet for Part B'!C892=\"\",\"\",'Data Sheet for Part B'!C892)","v":""},{"$f":"IF('Data Sheet for Part B'!D892=\"\",\"\",'Data Sheet for Part B'!D892)","v":""}]
[407,{"$f":"IF('Data Sheet for Part B'!B893=\"\",\"\",'Data Sheet for Part B'!B893)","v":""},{"$f":"IF('Data Sheet for Part B'!C893=\"\",\"\",'Data Sheet for Part B'!C893)","v":""},{"$f":"IF('Data Sheet for Part B'!D893=\"\",\"\",'Data Sheet for Part B'!D893)","v":""}]
[408,{"$f":"IF('Data Sheet for Part B'!B894=\"\",\"\",'Data Sheet for Part B'!B894)","v":""},{"$f":"IF('Data Sheet for Part B'!C894=\"\",\"\",'Data Sheet for Part B'!C894)","v":""},{"$f":"IF('Data Sheet for Part B'!D894=\"\",\"\",'Data Sheet for Part B'!D894)","v":""}]
[409,{"$f":"IF('Data Sheet for Part B'!B895=\"\",\"\",'Data Sheet for Part B'!B895)","v":""},{"$f":"IF('Data Sheet for Part B'!C895=\"\",\"\",'Data Sheet for Part B'!C895)","v":""},{"$f":"IF('Data Sheet for Part B'!D895=\"\",\"\",'Data Sheet for Part B'!D895)","v":""}]
[410,{"$f":"IF('Data Sheet for Part B'!B896=\"\",\"\",'Data Sheet for Part B'!B896)","v":""},{"$f":"IF('Data Sheet for Part B'!C896=\"\",\"\",'Data Sheet for Part B'!C896)","v":""},{"$f":"IF('Data Sheet for Part B'!D896=\"\",\"\",'Data Sheet for Part B'!D896)","v":""}]
[411,{"$f":"IF('Data Sheet for Part B'!B897=\"\",\"\",'Data Sheet for Part B'!B897)","v":""},{"$f":"IF('Data Sheet for Part B'!C897=\"\",\"\",'Data Sheet for Part B'!C897)","v":""},{"$f":"IF('Data Sheet for Part B'!D897=\"\",\"\",'Data Sheet for Part B'!D897)","v":""}]
[412,{"$f":"IF('Data Sheet for Part B'!B898=\"\",\"\",'Data Sheet for Part B'!B898)","v":""},{"$f":"IF('Data Sheet for Part B'!C898=\"\",\"\",'Data Sheet for Part B'!C898)","v":""},{"$f":"IF('Data Sheet for Part B'!D898=\"\",\"\",'Data Sheet for Part B'!D898)","v":""}]
[413,{"$f":"IF('Data Sheet for Part B'!B899=\"\",\"\",'Data Sheet for Part B'!B899)","v":""},{"$f":"IF('Data Sheet for Part B'!C899=\"\",\"\",'Data Sheet for Part B'!C899)","v":""},{"$f":"IF('Data Sheet for Part B'!D899=\"\",\"\",'Data Sheet for Part B'!D899)","v":""}]
[414,{"$f":"IF('Data Sheet for Part B'!B900=\"\",\"\",'Data Sheet for Part B'!B900)","v":""},{"$f":"IF('Data Sheet for Part B'!C900=\"\",\"\",'Data Sheet for Part B'!C900)","v":""},{"$f":"IF('Data Sheet for Part B'!D900=\"\",\"\",'Data Sheet for Part B'!D900)","v":""}]
[415,{"$f":"IF('Data Sheet for Part B'!B901=\"\",\"\",'Data Sheet for Part B'!B901)","v":""},{"$f":"IF('Data Sheet for Part B'!C901=\"\",\"\",'Data Sheet for Part B'!C901)","v":""},{"$f":"IF('Data Sheet for Part B'!D901=\"\",\"\",'Data Sheet for Part B'!D901)","v":""}]
[416,{"$f":"IF('Data Sheet for Part B'!B902=\"\",\"\",'Data Sheet for Part B'!B902)","v":""},{"$f":"IF('Data Sheet for Part B'!C902=\"\",\"\",'Data Sheet for Part B'!C902)","v":""},{"$f":"IF('Data Sheet for Part B'!D902=\"\",\"\",'Data Sheet for Part B'!D902)","v":""}]
[417,{"$f":"IF('Data Sheet for Part B'!B903=\"\",\"\",'Data Sheet for Part B'!B903)","v":""},{"$f":"IF('Data Sheet for Part B'!C903=\"\",\"\",'Data Sheet for Part B'!C903)","v":""},{"$f":"IF('Data Sheet for Part B'!D903=\"\",\"\",'Data Sheet for Part B'!D903)","v":""}]
[418,{"$f":"IF('Data Sheet for Part B'!B904=\"\",\"\",'Data Sheet for Part B'!B904)","v":""},{"$f":"IF('Data Sheet for Part B'!C904=\"\",\"\",'Data Sheet for Part B'!C904)","v":""},{"$f":"IF('Data Sheet for Part B'!D904=\"\",\"\",'Data Sheet for Part B'!D904)","v":""}]
[419,{"$f":"IF('Data Sheet for Part B'!B905=\"\",\"\",'Data Sheet for Part B'!B905)","v":""},{"$f":"IF('Data Sheet for Part B'!C905=\"\",\"\",'Data Sheet for Part B'!C905)","v":""},{"$f":"IF('Data Sheet for Part B'!D905=\"\",\"\",'Data Sheet for Part B'!D905)","v":""}]
[420,{"$f":"IF('Data Sheet for Part B'!B906=\"\",\"\",'Data Sheet for Part B'!B906)","v":""},{"$f":"IF('Data Sheet for Part B'!C906=\"\",\"\",'Data Sheet for Part B'!C906)","v":""},{"$f":"IF('Data Sheet for Part B'!D906=\"\",\"\",'Data Sheet for Part B'!D906)","v":""}]
[421,{"$f":"IF('Data Sheet for Part B'!B907=\"\",\"\",'Data Sheet for Part B'!B907)","v":""},{"$f":"IF('Data Sheet for Part B'!C907=\"\",\"\",'Data Sheet for Part B'!C907)","v":""},{"$f":"IF('Data Sheet for Part B'!D907=\"\",\"\",'Data Sheet for Part B'!D907)","v":""}]
[422,{"$f":"IF('Data Sheet for Part B'!B908=\"\",\"\",'Data Sheet for Part B'!B908)","v":""},{"$f":"IF('Data Sheet for Part B'!C908=\"\",\"\",'Data Sheet for Part B'!C908)","v":""},{"$f":"IF('Data Sheet for Part B'!D908=\"\",\"\",'Data Sheet for Part B'!D908)","v":""}]
[423,{"$f":"IF('Data Sheet for Part B'!B909=\"\",\"\",'Data Sheet for Part B'!B909)","v":""},{"$f":"IF('Data Sheet for Part B'!C909=\"\",\"\",'Data Sheet for Part B'!C909)","v":""},{"$f":"IF('Data Sheet for Part B'!D909=\"\",\"\",'Data Sheet for Part B'!D909)","v":""}]
[424,{"$f":"IF('Data Sheet for Part B'!B910=\"\",\"\",'Data Sheet for Part B'!B910)","v":""},{"$f":"IF('Data Sheet for Part B'!C910=\"\",\"\",'Data Sheet for Part B'!C910)","v":""},{"$f":"IF('Data Sheet for Part B'!D910=\"\",\"\",'Data Sheet for Part B'!D910)","v":""}]
[425,{"$f":"IF('Data Sheet for Part B'!B911=\"\",\"\",'Data Sheet for Part B'!B911)","v":""},{"$f":"IF('Data Sheet for Part B'!C911=\"\",\"\",'Data Sheet for Part B'!C911)","v":""},{"$f":"IF('Data Sheet for Part B'!D911=\"\",\"\",'Data Sheet for Part B'!D911)","v":""}]
[426,{"$f":"IF('Data Sheet for Part B'!B912=\"\",\"\",'Data Sheet for Part B'!B912)","v":""},{"$f":"IF('Data Sheet for Part B'!C912=\"\",\"\",'Data Sheet for Part B'!C912)","v":""},{"$f":"IF('Data Sheet for Part B'!D912=\"\",\"\",'Data Sheet for Part B'!D912)","v":""}]
[427,{"$f":"IF('Data Sheet for Part B'!B913=\"\",\"\",'Data Sheet for Part B'!B913)","v":""},{"$f":"IF('Data Sheet for Part B'!C913=\"\",\"\",'Data Sheet for Part B'!C913)","v":""},{"$f":"IF('Data Sheet for Part B'!D913=\"\",\"\",'Data Sheet for Part B'!D913)","v":""}]
[428,{"$f":"IF('Data Sheet for Part B'!B914=\"\",\"\",'Data Sheet for Part B'!B914)","v":""},{"$f":"IF('Data Sheet for Part B'!C914=\"\",\"\",'Data Sheet for Part B'!C914)","v":""},{"$f":"IF('Data Sheet for Part B'!D914=\"\",\"\",'Data Sheet for Part B'!D914)","v":""}]
[429,{"$f":"IF('Data Sheet for Part B'!B915=\"\",\"\",'Data Sheet for Part B'!B915)","v":""},{"$f":"IF('Data Sheet for Part B'!C915=\"\",\"\",'Data Sheet for Part B'!C915)","v":""},{"$f":"IF('Data Sheet for Part B'!D915=\"\",\"\",'Data Sheet for Part B'!D915)","v":""}]
[430,{"$f":"IF('Data Sheet for Part B'!B916=\"\",\"\",'Data Sheet for Part B'!B916)","v":""},{"$f":"IF('Data Sheet for Part B'!C916=\"\",\"\",'Data Sheet for Part B'!C916)","v":""},{"$f":"IF('Data Sheet for Part B'!D916=\"\",\"\",'Data Sheet for Part B'!D916)","v":""}]
[431,{"$f":"IF('Data Sheet for Part B'!B917=\"\",\"\",'Data Sheet for Part B'!B917)","v":""},{"$f":"IF('Data Sheet for Part B'!C917=\"\",\"\",'Data Sheet for Part B'!C917)","v":""},{"$f":"IF('Data Sheet for Part B'!D917=\"\",\"\",'Data Sheet for Part B'!D917)","v":""}]
[432,{"$f":"IF('Data Sheet for Part B'!B918=\"\",\"\",'Data Sheet for Part B'!B918)","v":""},{"$f":"IF('Data Sheet for Part B'!C918=\"\",\"\",'Data Sheet for Part B'!C918)","v":""},{"$f":"IF('Data Sheet for Part B'!D918=\"\",\"\",'Data Sheet for Part B'!D918)","v":""}]
[433,{"$f":"IF('Data Sheet for Part B'!B919=\"\",\"\",'Data Sheet for Part B'!B919)","v":""},{"$f":"IF('Data Sheet for Part B'!C919=\"\",\"\",'Data Sheet for Part B'!C919)","v":""},{"$f":"IF('Data Sheet for Part B'!D919=\"\",\"\",'Data Sheet for Part B'!D919)","v":""}]
[434,{"$f":"IF('Data Sheet for Part B'!B920=\"\",\"\",'Data Sheet for Part B'!B920)","v":""},{"$f":"IF('Data Sheet for Part B'!C920=\"\",\"\",'Data Sheet for Part B'!C920)","v":""},{"$f":"IF('Data Sheet for Part B'!D920=\"\",\"\",'Data Sheet for Part B'!D920)","v":""}]
[435,{"$f":"IF('Data Sheet for Part B'!B921=\"\",\"\",'Data Sheet for Part B'!B921)","v":""},{"$f":"IF('Data Sheet for Part B'!C921=\"\",\"\",'Data Sheet for Part B'!C921)","v":""},{"$f":"IF('Data Sheet for Part B'!D921=\"\",\"\",'Data Sheet for Part B'!D921)","v":""}]
[436,{"$f":"IF('Data Sheet for Part B'!B922=\"\",\"\",'Data Sheet for Part B'!B922)","v":""},{"$f":"IF('Data Sheet for Part B'!C922=\"\",\"\",'Data Sheet for Part B'!C922)","v":""},{"$f":"IF('Data Sheet for Part B'!D922=\"\",\"\",'Data Sheet for Part B'!D922)","v":""}]
[437,{"$f":"IF('Data Sheet for Part B'!B923=\"\",\"\",'Data Sheet for Part B'!B923)","v":""},{"$f":"IF('Data Sheet for Part B'!C923=\"\",\"\",'Data Sheet for Part B'!C923)","v":""},{"$f":"IF('Data Sheet for Part B'!D923=\"\",\"\",'Data Sheet for Part B'!D923)","v":""}]
[438,{"$f":"IF('Data Sheet for Part B'!B924=\"\",\"\",'Data Sheet for Part B'!B924)","v":""},{"$f":"IF('Data Sheet for Part B'!C924=\"\",\"\",'Data Sheet for Part B'!C924)","v":""},{"$f":"IF('Data Sheet for Part B'!D924=\"\",\"\",'Data Sheet for Part B'!D924)","v":""}]
[439,{"$f":"IF('Data Sheet for Part B'!B925=\"\",\"\",'Data Sheet for Part B'!B925)","v":""},{"$f":"IF('Data Sheet for Part B'!C925=\"\",\"\",'Data Sheet for Part B'!C925)","v":""},{"$f":"IF('Data Sheet for Part B'!D925=\"\",\"\",'Data Sheet for Part B'!D925)","v":""}]
[440,{"$f":"IF('Data Sheet for Part B'!B926=\"\",\"\",'Data Sheet for Part B'!B926)","v":""},{"$f":"IF('Data Sheet for Part B'!C926=\"\",\"\",'Data Sheet for Part B'!C926)","v":""},{"$f":"IF('Data Sheet for Part B'!D926=\"\",\"\",'Data Sheet for Part B'!D926)","v":""}]
[441,{"$f":"IF('Data Sheet for Part B'!B927=\"\",\"\",'Data Sheet for Part B'!B927)","v":""},{"$f":"IF('Data Sheet for Part B'!C927=\"\",\"\",'Data Sheet for Part B'!C927)","v":""},{"$f":"IF('Data Sheet for Part B'!D927=\"\",\"\",'Data Sheet for Part B'!D927)","v":""}]
[442,{"$f":"IF('Data Sheet for Part B'!B928=\"\",\"\",'Data Sheet for Part B'!B928)","v":""},{"$f":"IF('Data Sheet for Part B'!C928=\"\",\"\",'Data Sheet for Part B'!C928)","v":""},{"$f":"IF('Data Sheet for Part B'!D928=\"\",\"\",'Data Sheet for Part B'!D928)","v":""}]
[443,{"$f":"IF('Data Sheet for Part B'!B929=\"\",\"\",'Data Sheet for Part B'!B929)","v":""},{"$f":"IF('Data Sheet for Part B'!C929=\"\",\"\",'Data Sheet for Part B'!C929)","v":""},{"$f":"IF('Data Sheet for Part B'!D929=\"\",\"\",'Data Sheet for Part B'!D929)","v":""}]
[444,{"$f":"IF('Data Sheet for Part B'!B930=\"\",\"\",'Data Sheet for Part B'!B930)","v":""},{"$f":"IF('Data Sheet for Part B'!C930=\"\",\"\",'Data Sheet for Part B'!C930)","v":""},{"$f":"IF('Data Sheet for Part B'!D930=\"\",\"\",'Data Sheet for Part B'!D930)","v":""}]
[445,{"$f":"IF('Data Sheet for Part B'!B931=\"\",\"\",'Data Sheet for Part B'!B931)","v":""},{"$f":"IF('Data Sheet for Part B'!C931=\"\",\"\",'Data Sheet for Part B'!C931)","v":""},{"$f":"IF('Data Sheet for Part B'!D931=\"\",\"\",'Data Sheet for Part B'!D931)","v":""}]
[446,{"$f":"IF('Data Sheet for Part B'!B932=\"\",\"\",'Data Sheet for Part B'!B932)","v":""},{"$f":"IF('Data Sheet for Part B'!C932=\"\",\"\",'Data Sheet for Part B'!C932)","v":""},{"$f":"IF('Data Sheet for Part B'!D932=\"\",\"\",'Data Sheet for Part B'!D932)","v":""}]
[447,{"$f":"IF('Data Sheet for Part B'!B933=\"\",\"\",'Data Sheet for Part B'!B933)","v":""},{"$f":"IF('Data Sheet for Part B'!C933=\"\",\"\",'Data Sheet for Part B'!C933)","v":""},{"$f":"IF('Data Sheet for Part B'!D933=\"\",\"\",'Data Sheet for Part B'!D933)","v":""}]
[448,{"$f":"IF('Data Sheet for Part B'!B934=\"\",\"\",'Data Sheet for Part B'!B934)","v":""},{"$f":"IF('Data Sheet for Part B'!C934=\"\",\"\",'Data Sheet for Part B'!C934)","v":""},{"$f":"IF('Data Sheet for Part B'!D934=\"\",\"\",'Data Sheet for Part B'!D934)","v":""}]
[449,{"$f":"IF('Data Sheet for Part B'!B935=\"\",\"\",'Data Sheet for Part B'!B935)","v":""},{"$f":"IF('Data Sheet for Part B'!C935=\"\",\"\",'Data Sheet for Part B'!C935)","v":""},{"$f":"IF('Data Sheet for Part B'!D935=\"\",\"\",'Data Sheet for Part B'!D935)","v":""}]
[450,{"$f":"IF('Data Sheet for Part B'!B936=\"\",\"\",'Data Sheet for Part B'!B936)","v":""},{"$f":"IF('Data Sheet for Part B'!C936=\"\",\"\",'Data Sheet for Part B'!C936)","v":""},{"$f":"IF('Data Sheet for Part B'!D936=\"\",\"\",'Data Sheet for Part B'!D936)","v":""}]
[451,{"$f":"IF('Data Sheet for Part B'!B937=\"\",\"\",'Data Sheet for Part B'!B937)","v":""},{"$f":"IF('Data Sheet for Part B'!C937=\"\",\"\",'Data Sheet for Part B'!C937)","v":""},{"$f":"IF('Data Sheet for Part B'!D937=\"\",\"\",'Data Sheet for Part B'!D937)","v":""}]
[452,{"$f":"IF('Data Sheet for Part B'!B938=\"\",\"\",'Data Sheet for Part B'!B938)","v":""},{"$f":"IF('Data Sheet for Part B'!C938=\"\",\"\",'Data Sheet for Part B'!C938)","v":""},{"$f":"IF('Data Sheet for Part B'!D938=\"\",\"\",'Data Sheet for Part B'!D938)","v":""}]
[453,{"$f":"IF('Data Sheet for Part B'!B939=\"\",\"\",'Data Sheet for Part B'!B939)","v":""},{"$f":"IF('Data Sheet for Part B'!C939=\"\",\"\",'Data Sheet for Part B'!C939)","v":""},{"$f":"IF('Data Sheet for Part B'!D939=\"\",\"\",'Data Sheet for Part B'!D939)","v":""}]
[454,{"$f":"IF('Data Sheet for Part B'!B940=\"\",\"\",'Data Sheet for Part B'!B940)","v":""},{"$f":"IF('Data Sheet for Part B'!C940=\"\",\"\",'Data Sheet for Part B'!C940)","v":""},{"$f":"IF('Data Sheet for Part B'!D940=\"\",\"\",'Data Sheet for Part B'!D940)","v":""}]
[455,{"$f":"IF('Data Sheet for Part B'!B941=\"\",\"\",'Data Sheet for Part B'!B941)","v":""},{"$f":"IF('Data Sheet for Part B'!C941=\"\",\"\",'Data Sheet for Part B'!C941)","v":""},{"$f":"IF('Data Sheet for Part B'!D941=\"\",\"\",'Data Sheet for Part B'!D941)","v":""}]
[456,{"$f":"IF('Data Sheet for Part B'!B942=\"\",\"\",'Data Sheet for Part B'!B942)","v":""},{"$f":"IF('Data Sheet for Part B'!C942=\"\",\"\",'Data Sheet for Part B'!C942)","v":""},{"$f":"IF('Data Sheet for Part B'!D942=\"\",\"\",'Data Sheet for Part B'!D942)","v":""}]
[457,{"$f":"IF('Data Sheet for Part B'!B943=\"\",\"\",'Data Sheet for Part B'!B943)","v":""},{"$f":"IF('Data Sheet for Part B'!C943=\"\",\"\",'Data Sheet for Part B'!C943)","v":""},{"$f":"IF('Data Sheet for Part B'!D943=\"\",\"\",'Data Sheet for Part B'!D943)","v":""}]
[458,{"$f":"IF('Data Sheet for Part B'!B944=\"\",\"\",'Data Sheet for Part B'!B944)","v":""},{"$f":"IF('Data Sheet for Part B'!C944=\"\",\"\",'Data Sheet for Part B'!C944)","v":""},{"$f":"IF('Data Sheet for Part B'!D944=\"\",\"\",'Data Sheet for Part B'!D944)","v":""}]
[459,{"$f":"IF('Data Sheet for Part B'!B945=\"\",\"\",'Data Sheet for Part B'!B945)","v":""},{"$f":"IF('Data Sheet for Part B'!C945=\"\",\"\",'Data Sheet for Part B'!C945)","v":""},{"$f":"IF('Data Sheet for Part B'!D945=\"\",\"\",'Data Sheet for Part B'!D945)","v":""}]
[460,{"$f":"IF('Data Sheet for Part B'!B946=\"\",\"\",'Data Sheet for Part B'!B946)","v":""},{"$f":"IF('Data Sheet for Part B'!C946=\"\",\"\",'Data Sheet for Part B'!C946)","v":""},{"$f":"IF('Data Sheet for Part B'!D946=\"\",\"\",'Data Sheet for Part B'!D946)","v":""}]
[461,{"$f":"IF('Data Sheet for Part B'!B947=\"\",\"\",'Data Sheet for Part B'!B947)","v":""},{"$f":"IF('Data Sheet for Part B'!C947=\"\",\"\",'Data Sheet for Part B'!C947)","v":""},{"$f":"IF('Data Sheet for Part B'!D947=\"\",\"\",'Data Sheet for Part B'!D947)","v":""}]
[462,{"$f":"IF('Data Sheet for Part B'!B948=\"\",\"\",'Data Sheet for Part B'!B948)","v":""},{"$f":"IF('Data Sheet for Part B'!C948=\"\",\"\",'Data Sheet for Part B'!C948)","v":""},{"$f":"IF('Data Sheet for Part B'!D948=\"\",\"\",'Data Sheet for Part B'!D948)","v":""}]
[463,{"$f":"IF('Data Sheet for Part B'!B949=\"\",\"\",'Data Sheet for Part B'!B949)","v":""},{"$f":"IF('Data Sheet for Part B'!C949=\"\",\"\",'Data Sheet for Part B'!C949)","v":""},{"$f":"IF('Data Sheet for Part B'!D949=\"\",\"\",'Data Sheet for Part B'!D949)","v":""}]
[464,{"$f":"IF('Data Sheet for Part B'!B950=\"\",\"\",'Data Sheet for Part B'!B950)","v":""},{"$f":"IF('Data Sheet for Part B'!C950=\"\",\"\",'Data Sheet for Part B'!C950)","v":""},{"$f":"IF('Data Sheet for Part B'!D950=\"\",\"\",'Data Sheet for Part B'!D950)","v":""}]
[465,{"$f":"IF('Data Sheet for Part B'!B951=\"\",\"\",'Data Sheet for Part B'!B951)","v":""},{"$f":"IF('Data Sheet for Part B'!C951=\"\",\"\",'Data Sheet for Part B'!C951)","v":""},{"$f":"IF('Data Sheet for Part B'!D951=\"\",\"\",'Data Sheet for Part B'!D951)","v":""}]
[466,{"$f":"IF('Data Sheet for Part B'!B952=\"\",\"\",'Data Sheet for Part B'!B952)","v":""},{"$f":"IF('Data Sheet for Part B'!C952=\"\",\"\",'Data Sheet for Part B'!C952)","v":""},{"$f":"IF('Data Sheet for Part B'!D952=\"\",\"\",'Data Sheet for Part B'!D952)","v":""}]
[467,{"$f":"IF('Data Sheet for Part B'!B953=\"\",\"\",'Data Sheet for Part B'!B953)","v":""},{"$f":"IF('Data Sheet for Part B'!C953=\"\",\"\",'Data Sheet for Part B'!C953)","v":""},{"$f":"IF('Data Sheet for Part B'!D953=\"\",\"\",'Data Sheet for Part B'!D953)","v":""}]
[468,{"$f":"IF('Data Sheet for Part B'!B954=\"\",\"\",'Data Sheet for Part B'!B954)","v":""},{"$f":"IF('Data Sheet for Part B'!C954=\"\",\"\",'Data Sheet for Part B'!C954)","v":""},{"$f":"IF('Data Sheet for Part B'!D954=\"\",\"\",'Data Sheet for Part B'!D954)","v":""}]
[469,{"$f":"IF('Data Sheet for Part B'!B955=\"\",\"\",'Data Sheet for Part B'!B955)","v":""},{"$f":"IF('Data Sheet for Part B'!C955=\"\",\"\",'Data Sheet for Part B'!C955)","v":""},{"$f":"IF('Data Sheet for Part B'!D955=\"\",\"\",'Data Sheet for Part B'!D955)","v":""}]
[470,{"$f":"IF('Data Sheet for Part B'!B956=\"\",\"\",'Data Sheet for Part B'!B956)","v":""},{"$f":"IF('Data Sheet for Part B'!C956=\"\",\"\",'Data Sheet for Part B'!C956)","v":""},{"$f":"IF('Data Sheet for Part B'!D956=\"\",\"\",'Data Sheet for Part B'!D956)","v":""}]
[471,{"$f":"IF('Data Sheet for Part B'!B957=\"\",\"\",'Data Sheet for Part B'!B957)","v":""},{"$f":"IF('Data Sheet for Part B'!C957=\"\",\"\",'Data Sheet for Part B'!C957)","v":""},{"$f":"IF('Data Sheet for Part B'!D957=\"\",\"\",'Data Sheet for Part B'!D957)","v":""}]
[472,{"$f":"IF('Data Sheet for Part B'!B958=\"\",\"\",'Data Sheet for Part B'!B958)","v":""},{"$f":"IF('Data Sheet for Part B'!C958=\"\",\"\",'Data Sheet for Part B'!C958)","v":""},{"$f":"IF('Data Sheet for Part B'!D958=\"\",\"\",'Data Sheet for Part B'!D958)","v":""}]
[473,{"$f":"IF('Data Sheet for Part B'!B959=\"\",\"\",'Data Sheet for Part B'!B959)","v":""},{"$f":"IF('Data Sheet for Part B'!C959=\"\",\"\",'Data Sheet for Part B'!C959)","v":""},{"$f":"IF('Data Sheet for Part B'!D959=\"\",\"\",'Data Sheet for Part B'!D959)","v":""}]
[474,{"$f":"IF('Data Sheet for Part B'!B960=\"\",\"\",'Data Sheet for Part B'!B960)","v":""},{"$f":"IF('Data Sheet for Part B'!C960=\"\",\"\",'Data Sheet for Part B'!C960)","v":""},{"$f":"IF('Data Sheet for Part B'!D960=\"\",\"\",'Data Sheet for Part B'!D960)","v":""}]
[475,{"$f":"IF('Data Sheet for Part B'!B961=\"\",\"\",'Data Sheet for Part B'!B961)","v":""},{"$f":"IF('Data Sheet for Part B'!C961=\"\",\"\",'Data Sheet for Part B'!C961)","v":""},{"$f":"IF('Data Sheet for Part B'!D961=\"\",\"\",'Data Sheet for Part B'!D961)","v":""}]
[476,{"$f":"IF('Data Sheet for Part B'!B962=\"\",\"\",'Data Sheet for Part B'!B962)","v":""},{"$f":"IF('Data Sheet for Part B'!C962=\"\",\"\",'Data Sheet for Part B'!C962)","v":""},{"$f":"IF('Data Sheet for Part B'!D962=\"\",\"\",'Data Sheet for Part B'!D962)","v":""}]
[477,{"$f":"IF('Data Sheet for Part B'!B963=\"\",\"\",'Data Sheet for Part B'!B963)","v":""},{"$f":"IF('Data Sheet for Part B'!C963=\"\",\"\",'Data Sheet for Part B'!C963)","v":""},{"$f":"IF('Data Sheet for Part B'!D963=\"\",\"\",'Data Sheet for Part B'!D963)","v":""}]
[478,{"$f":"IF('Data Sheet for Part B'!B964=\"\",\"\",'Data Sheet for Part B'!B964)","v":""},{"$f":"IF('Data Sheet for Part B'!C964=\"\",\"\",'Data Sheet for Part B'!C964)","v":""},{"$f":"IF('Data Sheet for Part B'!D964=\"\",\"\",'Data Sheet for Part B'!D964)","v":""}]
[479,{"$f":"IF('Data Sheet for Part B'!B965=\"\",\"\",'Data Sheet for Part B'!B965)","v":""},{"$f":"IF('Data Sheet for Part B'!C965=\"\",\"\",'Data Sheet for Part B'!C965)","v":""},{"$f":"IF('Data Sheet for Part B'!D965=\"\",\"\",'Data Sheet for Part B'!D965)","v":""}]
[480,{"$f":"IF('Data Sheet for Part B'!B966=\"\",\"\",'Data Sheet for Part B'!B966)","v":""},{"$f":"IF('Data Sheet for Part B'!C966=\"\",\"\",'Data Sheet for Part B'!C966)","v":""},{"$f":"IF('Data Sheet for Part B'!D966=\"\",\"\",'Data Sheet for Part B'!D966)","v":""}]
[481,{"$f":"IF('Data Sheet for Part B'!B967=\"\",\"\",'Data Sheet for Part B'!B967)","v":""},{"$f":"IF('Data Sheet for Part B'!C967=\"\",\"\",'Data Sheet for Part B'!C967)","v":""},{"$f":"IF('Data Sheet for Part B'!D967=\"\",\"\",'Data Sheet for Part B'!D967)","v":""}]
[482,{"$f":"IF('Data Sheet for Part B'!B968=\"\",\"\",'Data Sheet for Part B'!B968)","v":""},{"$f":"IF('Data Sheet for Part B'!C968=\"\",\"\",'Data Sheet for Part B'!C968)","v":""},{"$f":"IF('Data Sheet for Part B'!D968=\"\",\"\",'Data Sheet for Part B'!D968)","v":""}]
[483,{"$f":"IF('Data Sheet for Part B'!B969=\"\",\"\",'Data Sheet for Part B'!B969)","v":""},{"$f":"IF('Data Sheet for Part B'!C969=\"\",\"\",'Data Sheet for Part B'!C969)","v":""},{"$f":"IF('Data Sheet for Part B'!D969=\"\",\"\",'Data Sheet for Part B'!D969)","v":""}]
[484,{"$f":"IF('Data Sheet for Part B'!B970=\"\",\"\",'Data Sheet for Part B'!B970)","v":""},{"$f":"IF('Data Sheet for Part B'!C970=\"\",\"\",'Data Sheet for Part B'!C970)","v":""},{"$f":"IF('Data Sheet for Part B'!D970=\"\",\"\",'Data Sheet for Part B'!D970)","v":""}]
[485,{"$f":"IF('Data Sheet for Part B'!B971=\"\",\"\",'Data Sheet for Part B'!B971)","v":""},{"$f":"IF('Data Sheet for Part B'!C971=\"\",\"\",'Data Sheet for Part B'!C971)","v":""},{"$f":"IF('Data Sheet for Part B'!D971=\"\",\"\",'Data Sheet for Part B'!D971)","v":""}]
[486,{"$f":"IF('Data Sheet for Part B'!B972=\"\",\"\",'Data Sheet for Part B'!B972)","v":""},{"$f":"IF('Data Sheet for Part B'!C972=\"\",\"\",'Data Sheet for Part B'!C972)","v":""},{"$f":"IF('Data Sheet for Part B'!D972=\"\",\"\",'Data Sheet for Part B'!D972)","v":""}]
[487,{"$f":"IF('Data Sheet for Part B'!B973=\"\",\"\",'Data Sheet for Part B'!B973)","v":""},{"$f":"IF('Data Sheet for Part B'!C973=\"\",\"\",'Data Sheet for Part B'!C973)","v":""},{"$f":"IF('Data Sheet for Part B'!D973=\"\",\"\",'Data Sheet for Part B'!D973)","v":""}]
[488,{"$f":"IF('Data Sheet for Part B'!B974=\"\",\"\",'Data Sheet for Part B'!B974)","v":""},{"$f":"IF('Data Sheet for Part B'!C974=\"\",\"\",'Data Sheet for Part B'!C974)","v":""},{"$f":"IF('Data Sheet for Part B'!D974=\"\",\"\",'Data Sheet for Part B'!D974)","v":""}]
[489,{"$f":"IF('Data Sheet for Part B'!B975=\"\",\"\",'Data Sheet for Part B'!B975)","v":""},{"$f":"IF('Data Sheet for Part B'!C975=\"\",\"\",'Data Sheet for Part B'!C975)","v":""},{"$f":"IF('Data Sheet for Part B'!D975=\"\",\"\",'Data Sheet for Part B'!D975)","v":""}]
[490,{"$f":"IF('Data Sheet for Part B'!B976=\"\",\"\",'Data Sheet for Part B'!B976)","v":""},{"$f":"IF('Data Sheet for Part B'!C976=\"\",\"\",'Data Sheet for Part B'!C976)","v":""},{"$f":"IF('Data Sheet for Part B'!D976=\"\",\"\",'Data Sheet for Part B'!D976)","v":""}]
[491,{"$f":"IF('Data Sheet for Part B'!B977=\"\",\"\",'Data Sheet for Part B'!B977)","v":""},{"$f":"IF('Data Sheet for Part B'!C977=\"\",\"\",'Data Sheet for Part B'!C977)","v":""},{"$f":"IF('Data Sheet for Part B'!D977=\"\",\"\",'Data Sheet for Part B'!D977)","v":""}]
[492,{"$f":"IF('Data Sheet for Part B'!B978=\"\",\"\",'Data Sheet for Part B'!B978)","v":""},{"$f":"IF('Data Sheet for Part B'!C978=\"\",\"\",'Data Sheet for Part B'!C978)","v":""},{"$f":"IF('Data Sheet for Part B'!D978=\"\",\"\",'Data Sheet for Part B'!D978)","v":""}]
[493,{"$f":"IF('Data Sheet for Part B'!B979=\"\",\"\",'Data Sheet for Part B'!B979)","v":""},{"$f":"IF('Data Sheet for Part B'!C979=\"\",\"\",'Data Sheet for Part B'!C979)","v":""},{"$f":"IF('Data Sheet for Part B'!D979=\"\",\"\",'Data Sheet for Part B'!D979)","v":""}]
[494,{"$f":"IF('Data Sheet for Part B'!B980=\"\",\"\",'Data Sheet for Part B'!B980)","v":""},{"$f":"IF('Data Sheet for Part B'!C980=\"\",\"\",'Data Sheet for Part B'!C980)","v":""},{"$f":"IF('Data Sheet for Part B'!D980=\"\",\"\",'Data Sheet for Part B'!D980)","v":""}]
[495,{"$f":"IF('Data Sheet for Part B'!B981=\"\",\"\",'Data Sheet for Part B'!B981)","v":""},{"$f":"IF('Data Sheet for Part B'!C981=\"\",\"\",'Data Sheet for Part B'!C981)","v":""},{"$f":"IF('Data Sheet for Part B'!D981=\"\",\"\",'Data Sheet for Part B'!D981)","v":""}]
[496,{"$f":"IF('Data Sheet for Part B'!B982=\"\",\"\",'Data Sheet for Part B'!B982)","v":""},{"$f":"IF('Data Sheet for Part B'!C982=\"\",\"\",'Data Sheet for Part B'!C982)","v":""},{"$f":"IF('Data Sheet for Part B'!D982=\"\",\"\",'Data Sheet for Part B'!D982)","v":""}]
[497,{"$f":"IF('Data Sheet for Part B'!B983=\"\",\"\",'Data Sheet for Part B'!B983)","v":""},{"$f":"IF('Data Sheet for Part B'!C983=\"\",\"\",'Data Sheet for Part B'!C983)","v":""},{"$f":"IF('Data Sheet for Part B'!D983=\"\",\"\",'Data Sheet for Part B'!D983)","v":""}]
[498,{"$f":"IF('Data Sheet for Part B'!B984=\"\",\"\",'Data Sheet for Part B'!B984)","v":""},{"$f":"IF('Data Sheet for Part B'!C984=\"\",\"\",'Data Sheet for Part B'!C984)","v":""},{"$f":"IF('Data Sheet for Part B'!D984=\"\",\"\",'Data Sheet for Part B'!D984)","v":""}]
[499,{"$f":"IF('Data Sheet for Part B'!B985=\"\",\"\",'Data Sheet for Part B'!B985)","v":""},{"$f":"IF('Data Sheet for Part B'!C985=\"\",\"\",'Data Sheet for Part B'!C985)","v":""},{"$f":"IF('Data Sheet for Part B'!D985=\"\",\"\",'Data Sheet for Part B'!D985)","v":""}]
[500,{"$f":"IF('Data Sheet for Part B'!B986=\"\",\"\",'Data Sheet for Part B'!B986)","v":""},{"$f":"IF('Data Sheet for Part B'!C986=\"\",\"\",'Data Sheet for Part B'!C986)","v":""},{"$f":"IF('Data Sheet for Part B'!D986=\"\",\"\",'Data Sheet for Part B'!D986)","v":""}]

{"sheet":"Data Sheet for Part B","index":2,"n_rows":503,"n_cols":49,"rows_kept":503,"cut":false,"hidden":false,"merged":[[1,3,2,3],[1,2,2,2],[1,1,2,1],[1,0,2,0],[1,43,2,43],[1,37,2,37],[1,38,2,38],[1,39,2,39],[1,40,2,40],[1,41,2,41],[1,42,2,42],[1,20,1,23],[1,28,1,35],[1,26,1,27],[1,24,2,24],[1,25,2,25],[1,44,2,44],[1,45,2,45],[1,46,2,46],[1,47,2,47],[1,48,2,48],[1,36,2,36],[1,4,1,7],[1,8,1,14],[1,16,1,17],[1,15,2,15],[1,18,2,18],[1,19,2,19]]}
["Details for Form 16 Part B"]
["SL No:","Emp No.","Name","PAN","1.  Gross Salary",null,null,null,"2. Less: Allowance to the extent exempt U/s 10",null,null,null,null,null,null,"3. Balance (1-2)","4. Deductions :",null,"5. Aggregate of 4(a) and (b)","6. Income chargebale under the head 'Salaries' (3-5)","7. Add: Any other income reported by the employee",null,null,null,"8. Gross Total income (6+7)","9. Deductions under Chapter VI A ","     (A) sections 80C, 80CCC and 80CCD",null,"    (B) other sections under Chapter VI-A",null,null,null,null,null,null,null,"10. Aggregate of deductible amount under Chapter VI A","11. Total Income (8-10)","12. Tax on total income","13. Rebate U/S 87A","14. Tax Payable after rebate","15. Education cess @ 3% ","16. Tax Payable ","17. Less: Relief under section 89 (attach details)","18. Tax Payable (15-16)","Tax deducted at current employeement","Tax deducted by others","Total tax deducted","Net tax payable /(Refundable)"]
[null,null,null,null,"(a) Salary as per provisions contained in sec. 17(1)","(b) Value of perquisites u/s 17(2)","(c) Profits in lieu of salary under section 17(3)","(d) Total","a) Conveyance Allowance","b) HRA Exemption","c) Children Education","d) Children Hostel","e) Medical Reimbursement","f) Leave travel allowance","g) Total",null,"     (a) Entertainment allowance","     (b) Tax on employment",null,null,"a) Income from Previous Employeement","b) Income from House Property","c) Income from Other Sources","d)Total",null,null,"i) PF Contribution (80C)","ii) Other Deductions under 80C, 80CCC& 80CCD","80CCD (1b) (Contribution to NPS)","80CCG (RGESS)","80D (Medical Insurance)","80DD (Rehabilitation of Handicapped Dependent)","80DDB (Medical Expenditure on Self or Dependent)","80E (Interest on Loan for Higher Studies)","80TTA (Interest on Savings account)","80U (Physical Disability)"]
[1,2225,"Mr. A","asdafq5345",1233440,1212,111,{"$f":"SUM(E4:G4)","v":1234763},11,22,33,44,55,66,{"$f":"SUM(I4:N4)","v":231},{"$f":"H4-O4","v":1234532},20,30,{"$f":"SUM(Q4:R4)","v":50},{"$f":"P4-S4","v":1234482},1111,22221,31313,{"$f":"SUM(U4:W4)","v":54645},{"$f":"T4+X4","v":1289127},null,1,2,3,4,5,6,7,8,9,10,{"$f":"SUM(AA4:AJ4)","v":55},{"$f":"Y4-AK4","v":1289072},{"$f":"IF(AL4>1000000,(125000+(AL4-1000000)*30%),IF(AL4>500000,(25000+(AL4-500000)*20%),IF(AL4>250000,((AL4-250000)*10%),0)))","v":211721.59999999998},{"$f":"IF(AL4<500001,(MIN(AM4,5000)),0)","v":0},{"$f":"+AM4-AN4","v":211721.59999999998},{"$f":"+AO4*3%","v":6351.6479999999992},{"$f":"+AO4+AP4","v":218073.24799999996},null,{"$f":"AQ4-AR4","v":218073.24799999996},null,null,{"$f":"SUM(AT4:AU4)","v":0},{"$f":"AS4-AV4","v":218073.24799999996}]
[2,null,null,null,null,null,null,{"$f":"SUM(E5:G5)","v":0},null,null,null,null,null,null,{"$f":"SUM(I5:N5)","v":0},{"$f":"H5-O5","v":0},null,null,{"$f":"SUM(Q5:R5)","v":0},{"$f":"P5-S5","v":0},null,null,null,{"$f":"SUM(U5:W5)","v":0},{"$f":"T5+X5","v":0},null,null,null,null,null,null,null,null,null,null,null,{"$f":"SUM(AA5:AJ5)","v":0},{"$f":"Y5-AK5","v":0},{"$f":"IF(AL5>1000000,(125000+(AL5-1000000)*30%),IF(AL5>500000,(25000+(AL5-500000)*20%),IF(AL5>250000,((AL5-250000)*10%),0)))","v":0},{"$f":"IF(AL5<500001,(MIN(AM5,5000)),0)","v":0},{"$f":"+AM5-AN5","v":0},{"$f":"+AO5*3%","v":0},{"$f":"+AO5+AP5","v":0},null,{"$f":"AQ5-AR5","v":0},null,null,{"$f":"SUM(AT5:AU5)","v":0},{"$f":"AS5-AV5","v":0}]
[3,null,null,null,null,null,null,0,null,null,null,null,null,null,0,0,null,null,0,0,null,null,null,0,0,null,null,null,null,null,null,null,null,null,null,null,0,0,0,0,0,0,0,null,0,null,null,0,0]
[4,null,null,null,null,null,null,0,null,null,null,null,null,null,0,0,null,null,0,0,null,null,null,0,0,null,null,null,null,null,null,null,null,null,null,null,0,0,0,0,0,0,0,null,0,null,null,0,0]
[5,null,null,null,null,null,null,0,null,null,null,null,null,null,0,0,null,null,0,0,null,null,null,0,0,null,null,null,null,null,null,null,null,null,null,null,0,0,0,0,0,0,0,null,0,null,null,0,0]
[6,null,null,null,null,null,null,0,null,null,null,null,null,null,0,0,null,null,0,0,null,null,null,0,0,null,null,null,null,null,null,null,null,null,null,null,0,0,0,0,0,0,0,null,0,null,null,0,0]
[7,null,null,null,null,null,null,0,null,null,null,null,null,null,0,0,null,null,0,0,null,null,null,0,0,null,null,null,null,null,null,null,null,null,null,null,0,0,0,0,0,0,0,null,0,null,null,0,0]
[8,null,null,null,null,null,null,0,null,null,null,null,null,null,0,0,null,null,0,0,null,null,null,0,0,null,null,null,null,null,null,null,null,null,null,null,0,0,0,0,0,0,0,null,0,null,null,0,0]
[9,null,null,null,null,null,null,0,null,null,null,null,null,null,0,0,null,null,0,0,null,null,null,0,0,null,null,null,null,null,null,null,null,null,null,null,0,0,0,0,0,0,0,null,0,null,null,0,0]
[10,null,null,null,null,null,null,0,null,null,null,null,null,null,0,0,null,null,0,0,null,null,null,0,0,null,null,null,null,null,null,null,null,null,null,null,0,0,0,0,0,0,0,null,0,null,null,0,0]
[11,null,null,null,null,null,null,0,null,null,null,null,null,null,0,0,null,null,0,0,null,null,null,0,0,null,null,null,null,null,null,null,null,null,null,null,0,0,0,0,0,0,0,null,0,null,null,0,0]
[12,null,null,null,null,null,null,0,null,null,null,null,null,null,0,0,null,null,0,0,null,null,null,0,0,null,null,null,null,null,null,null,null,null,null,null,0,0,0,0,0,0,0,null,0,null,null,0,0]
[13,null,null,null,null,null,null,0,null,null,null,null,null,null,0,0,null,null,0,0,null,null,null,0,0,null,null,null,null,null,null,null,null,null,null,null,0,0,0,0,0,0,0,null,0,null,null,0,0]
[14,null,null,null,null,null,null,0,null,null,null,null,null,null,0,0,null,null,0,0,null,null,null,0,0,null,null,null,null,null,null,null,null,null,null,null,0,0,0,0,0,0,0,null,0,null,null,0,0]
[15,null,null,null,null,null,null,0,null,null,null,null,null,null,0,0,null,null,0,0,null,null,null,0,0,null,null,null,null,null,null,null,null,null,null,null,0,0,0,0,0,0,0,null,0,null,null,0,0]
[16,null,null,null,null,null,null,0,null,null,null,null,null,null,0,0,null,null,0,0,null,null,null,0,0,null,null,null,null,null,null,null,null,null,null,null,0,0,0,0,0,0,0,null,0,null,null,0,0]
[17,null,null,null,null,null,null,0,null,null,null,null,null,null,0,0,null,null,0,0,null,null,null,0,0,null,null,null,null,null,null,null,null,null,null,null,0,0,0,0,0,0,0,null,0,null,null,0,0]
[18,null,null,null,null,null,null,0,null,null,null,null,null,null,0,0,null,null,0,0,null,null,null,0,0,null,null,null,null,null,null,null,null,null,null,null,0,0,0,0,0,0,0,null,0,null,null,0,0]
[19,null,null,null,null,null,null,0,null,null,null,null,null,null,0,0,null,null,0,0,null,null,null,0,0,null,null,null,null,null,null,null,null,null,null,null,0,0,0,0,0,0,0,null,0,null,null,0,0]
[20,null,null,null,null,null,null,0,null,null,null,null,null,null,0,0,null,null,0,0,null,null,null,0,0,null,null,null,null,null,null,null,null,null,null,null,0,0,0,0,0,0,0,null,0,null,null,0,0]
[21,null,null,null,null,null,null,0,null,null,null,null,null,null,0,0,null,null,0,0,null,null,null,0,0,null,null,null,null,null,null,null,null,null,null,null,0,0,0,0,0,0,0,null,0,null,null,0,0]
[22,null,null,null,null,null,null,0,null,null,null,null,null,null,0,0,null,null,0,0,null,null,null,0,0,null,null,null,null,null,null,null,null,null,null,null,0,0,0,0,0,0,0,null,0,null,null,0,0]
[23,null,null,null,null,null,null,0,null,null,null,null,null,null,0,0,null,null,0,0,null,null,null,0,0,null,null,null,null,null,null,null,null,null,null,null,0,0,0,0,0,0,0,null,0,null,null,0,0]
[24,null,null,null,null,null,null,0,null,null,null,null,null,null,0,0,null,null,0,0,null,null,null,0,0,null,null,null,null,null,null,null,null,null,null,null,0,0,0,0,0,0,0,null,0,null,null,0,0]
[25,null,null,null,null,null,null,0,null,null,null,null,null,null,0,0,null,null,0,0,null,null,null,0,0,null,null,null,null,null,null,null,null,null,null,null,0,0,0,0,0,0,0,null,0,null,null,0,0]
[26,null,null,null,null,null,null,0,null,null,null,null,null,null,0,0,null,null,0,0,null,null,null,0,0,null,null,null,null,null,null,null,null,null,null,null,0,0,0,0,0,0,0,null,0,null,null,0,0]
[27,null,null,null,null,null,null,0,null,null,null,null,null,null,0,0,null,null,0,0,null,null,null,0,0,null,null,null,null,null,null,null,null,null,null,null,0,0,0,0,0,0,0,null,0,null,null,0,0]
[28,null,null,null,null,null,null,0,null,null,null,null,null,null,0,0,null,null,0,0,null,null,null,0,0,null,null,null,null,null,null,null,null,null,null,null,0,0,0,0,0,0,0,null,0,null,null,0,0]
[29,null,null,null,null,null,null,0,null,null,null,null,null,null,0,0,null,null,0,0,null,null,null,0,0,null,null,null,null,null,null,null,null,null,null,null,0,0,0,0,0,0,0,null,0,null,null,0,0]
[30,null,null,null,null,null,null,0,null,null,null,null,null,null,0,0,null,null,0,0,null,null,null,0,0,null,null,null,null,null,null,null,null,null,null,null,0,0,0,0,0,0,0,null,0,null,null,0,0]
[31,null,null,null,null,null,null,0,null,null,null,null,null,null,0,0,null,null,0,0,null,null,null,0,0,null,null,null,null,null,null,null,null,null,null,null,0,0,0,0,0,0,0,null,0,null,null,0,0]
[32,null,null,null,null,null,null,0,null,null,null,null,null,null,0,0,null,null,0,0,null,null,null,0,0,null,null,null,null,null,null,null,null,null,null,null,0,0,0,0,0,0,0,null,0,null,null,0,0]
[33,null,null,null,null,null,null,0,null,null,null,null,null,null,0,0,null,null,0,0,null,null,null,0,0,null,null,null,null,null,null,null,null,null,null,null,0,0,0,0,0,0,0,null,0,null,null,0,0]
[34,null,null,null,null,null,null,0,null,null,null,null,null,null,0,0,null,null,0,0,null,null,null,0,0,null,null,null,null,null,null,null,null,null,null,null,0,0,0,0,0,0,0,null,0,null,null,0,0]
[35,null,null,null,null,null,null,0,null,null,null,null,null,null,0,0,null,null,0,0,null,null,null,0,0,null,null,null,null,null,null,null,null,null,null,null,0,0,0,0,0,0,0,null,0,null,null,0,0]
[36,null,null,null,null,null,null,0,null,null,null,null,null,null,0,0,null,null,0,0,null,null,null,0,0,null,null,null,null,null,null,null,null,null,null,null,0,0,0,0,0,0,0,null,0,null,null,0,0]
[37,null,null,null,null,null,null,0,null,null,null,null,null,null,0,0,null,null,0,0,null,null,null,0,0,null,null,null,null,null,null,null,null,null,null,null,0,0,0,0,0,0,0,null,0,null,null,0,0]
[38,null,null,null,null,null,null,0,null,null,null,null,null,null,0,0,null,null,0,0,null,null,null,0,0,null,null,null,null,null,null,null,null,null,null,null,0,0,0,0,0,0,0,null,0,null,null,0,0]
[39,null,null,null,null,null,null,0,null,null,null,null,null,null,0,0,null,null,0,0,null,null,null,0,0,null,null,null,null,null,null,null,null,null,null,null,0,0,0,0,0,0,0,null,0,null,null,0,0]
[40,null,null,null,null,null,null,0,null,null,null,null,null,null,0,0,null,null,0,0,null,null,null,0,0,null,null,null,null,null,null,null,null,null,null,null,0,0,0,0,0,0,0,null,0,null,null,0,0]
[41,null,null,null,null,null,null,0,null,null,null,null,null,null,0,0,null,null,0,0,null,null,null,0,0,null,null,null,null,null,null,null,null,null,null,null,0,0,0,0,0,0,0,null,0,null,null,0,0]
[42,null,null,null,null,null,null,0,null,null,null,null,null,null,0,0,null,null,0,0,null,null,null,0,0,null,null,null,null,null,null,null,null,null,null,null,0,0,0,0,0,0,0,null,0,null,null,0,0]
[43,null,null,null,null,null,null,0,null,null,null,null,null,null,0,0,null,null,0,0,null,null,null,0,0,null,null,null,null,null,null,null,null,null,null,null,0,0,0,0,0,0,0,null,0,null,null,0,0]
[44,null,null,null,null,null,null,0,null,null,null,null,null,null,0,0,null,null,0,0,null,null,null,0,0,null,null,null,null,null,null,null,null,null,null,null,0,0,0,0,0,0,0,null,0,null,null,0,0]
[45,null,null,null,null,null,null,0,null,null,null,null,null,null,0,0,null,null,0,0,null,null,null,0,0,null,null,null,null,null,null,null,null,null,null,null,0,0,0,0,0,0,0,null,0,null,null,0,0]
[46,null,null,null,null,null,null,0,null,null,null,null,null,null,0,0,null,null,0,0,null,null,null,0,0,null,null,null,null,null,null,null,null,null,null,null,0,0,0,0,0,0,0,null,0,null,null,0,0]
[47,null,null,null,null,null,null,0,null,null,null,null,null,null,0,0,null,null,0,0,null,null,null,0,0,null,null,null,null,null,null,null,null,null,null,null,0,0,0,0,0,0,0,null,0,null,null,0,0]
[48,null,null,null,null,null,null,0,null,null,null,null,null,null,0,0,null,null,0,0,null,null,null,0,0,null,null,null,null,null,null,null,null,null,null,null,0,0,0,0,0,0,0,null,0,null,null,0,0]
[49,null,null,null,null,null,null,0,null,null,null,null,null,null,0,0,null,null,0,0,null,null,null,0,0,null,null,null,null,null,null,null,null,null,null,null,0,0,0,0,0,0,0,null,0,null,null,0,0]
[50,null,null,null,null,null,null,0,null,null,null,null,null,null,0,0,null,null,0,0,null,null,null,0,0,null,null,null,null,null,null,null,null,null,null,null,0,0,0,0,0,0,0,null,0,null,null,0,0]
[51,null,null,null,null,null,null,0,null,null,null,null,null,null,0,0,null,null,0,0,null,null,null,0,0,null,null,null,null,null,null,null,null,null,null,null,0,0,0,0,0,0,0,null,0,null,null,0,0]
[52,null,null,null,null,null,null,0,null,null,null,null,null,null,0,0,null,null,0,0,null,null,null,0,0,null,null,null,null,null,null,null,null,null,null,null,0,0,0,0,0,0,0,null,0,null,null,0,0]
[53,null,null,null,null,null,null,0,null,null,null,null,null,null,0,0,null,null,0,0,null,null,null,0,0,null,null,null,null,null,null,null,null,null,null,null,0,0,0,0,0,0,0,null,0,null,null,0,0]
[54,null,null,null,null,null,null,0,null,null,null,null,null,null,0,0,null,null,0,0,null,null,null,0,0,null,null,null,null,null,null,null,null,null,null,null,0,0,0,0,0,0,0,null,0,null,null,0,0]
[55,null,null,null,null,null,null,0,null,null,null,null,null,null,0,0,null,null,0,0,null,null,null,0,0,null,null,null,null,null,null,null,null,null,null,null,0,0,0,0,0,0,0,null,0,null,null,0,0]
[56,null,null,null,null,null,null,0,null,null,null,null,null,null,0,0,null,null,0,0,null,null,null,0,0,null,null,null,null,null,null,null,null,null,null,null,0,0,0,0,0,0,0,null,0,null,null,0,0]
[57,null,null,null,null,null,null,0,null,null,null,null,null,null,0,0,null,null,0,0,null,null,null,0,0,null,null,null,null,null,null,null,null,null,null,null,0,0,0,0,0,0,0,null,0,null,null,0,0]
[58,null,null,null,null,null,null,0,null,null,null,null,null,null,0,0,null,null,0,0,null,null,null,0,0,null,null,null,null,null,null,null,null,null,null,null,0,0,0,0,0,0,0,null,0,null,null,0,0]
[59,null,null,null,null,null,null,0,null,null,null,null,null,null,0,0,null,null,0,0,null,null,null,0,0,null,null,null,null,null,null,null,null,null,null,null,0,0,0,0,0,0,0,null,0,null,null,0,0]
[60,null,null,null,null,null,null,0,null,null,null,null,null,null,0,0,null,null,0,0,null,null,null,0,0,null,null,null,null,null,null,null,null,null,null,null,0,0,0,0,0,0,0,null,0,null,null,0,0]
[61,null,null,null,null,null,null,0,null,null,null,null,null,null,0,0,null,null,0,0,null,null,null,0,0,null,null,null,null,null,null,null,null,null,null,null,0,0,0,0,0,0,0,null,0,null,null,0,0]
[62,null,null,null,null,null,null,0,null,null,null,null,null,null,0,0,null,null,0,0,null,null,null,0,0,null,null,null,null,null,null,null,null,null,null,null,0,0,0,0,0,0,0,null,0,null,null,0,0]
[63,null,null,null,null,null,null,0,null,null,null,null,null,null,0,0,null,null,0,0,null,null,null,0,0,null,null,null,null,null,null,null,null,null,null,null,0,0,0,0,0,0,0,null,0,null,null,0,0]
[64,null,null,null,null,null,null,0,null,null,null,null,null,null,0,0,null,null,0,0,null,null,null,0,0,null,null,null,null,null,null,null,null,null,null,null,0,0,0,0,0,0,0,null,0,null,null,0,0]
[65,null,null,null,null,null,null,0,null,null,null,null,null,null,0,0,null,null,0,0,null,null,null,0,0,null,null,null,null,null,null,null,null,null,null,null,0,0,0,0,0,0,0,null,0,null,null,0,0]
[66,null,null,null,null,null,null,{"$f":"SUM(E69:G69)","v":0},null,null,null,null,null,null,{"$f":"SUM(I69:N69)","v":0},{"$f":"H69-O69","v":0},null,null,{"$f":"SUM(Q69:R69)","v":0},{"$f":"P69-S69","v":0},null,null,null,{"$f":"SUM(U69:W69)","v":0},{"$f":"T69+X69","v":0},null,null,null,null,null,null,null,null,null,null,null,{"$f":"SUM(AA69:AJ69)","v":0},{"$f":"Y69-AK69","v":0},{"$f":"IF(AL69>1000000,(125000+(AL69-1000000)*30%),IF(AL69>500000,(25000+(AL69-500000)*20%),IF(AL69>250000,((AL69-250000)*10%),0)))","v":0},{"$f":"IF(AL69<500001,(MIN(AM69,5000)),0)","v":0},{"$f":"+AM69-AN69","v":0},{"$f":"+AO69*3%","v":0},{"$f":"+AO69+AP69","v":0},null,{"$f":"AQ69-AR69","v":0},null,null,{"$f":"SUM(AT69:AU69)","v":0},{"$f":"AS69-AV69","v":0}]
[67,null,null,null,null,null,null,0,null,null,null,null,null,null,0,0,null,null,0,0,null,null,null,0,0,null,null,null,null,null,null,null,null,null,null,null,0,0,0,0,0,0,0,null,0,null,null,0,0]
[68,null,null,null,null,null,null,0,null,null,null,null,null,null,0,0,null,null,0,0,null,null,null,0,0,null,null,null,null,null,null,null,null,null,null,null,0,0,0,0,0,0,0,null,0,null,null,0,0]
[69,null,null,null,null,null,null,0,null,null,null,null,null,null,0,0,null,null,0,0,null,null,null,0,0,null,null,null,null,null,null,null,null,null,null,null,0,0,0,0,0,0,0,null,0,null,null,0,0]
[70,null,null,null,null,null,null,0,null,null,null,null,null,null,0,0,null,null,0,0,null,null,null,0,0,null,null,null,null,null,null,null,null,null,null,null,0,0,0,0,0,0,0,null,0,null,null,0,0]
[71,null,null,null,null,null,null,0,null,null,null,null,null,null,0,0,null,null,0,0,null,null,null,0,0,null,null,null,null,null,null,null,null,null,null,null,0,0,0,0,0,0,0,null,0,null,null,0,0]
[72,null,null,null,null,null,null,0,null,null,null,null,null,null,0,0,null,null,0,0,null,null,null,0,0,null,null,null,null,null,null,null,null,null,null,null,0,0,0,0,0,0,0,null,0,null,null,0,0]
[73,null,null,null,null,null,null,0,null,null,null,null,null,null,0,0,null,null,0,0,null,null,null,0,0,null,null,null,null,null,null,null,null,null,null,null,0,0,0,0,0,0,0,null,0,null,null,0,0]
[74,null,null,null,null,null,null,0,null,null,null,null,null,null,0,0,null,null,0,0,null,null,null,0,0,null,null,null,null,null,null,null,null,null,null,null,0,0,0,0,0,0,0,null,0,null,null,0,0]
[75,null,null,null,null,null,null,0,null,null,null,null,null,null,0,0,null,null,0,0,null,null,null,0,0,null,null,null,null,null,null,null,null,null,null,null,0,0,0,0,0,0,0,null,0,null,null,0,0]
[76,null,null,null,null,null,null,0,null,null,null,null,null,null,0,0,null,null,0,0,null,null,null,0,0,null,null,null,null,null,null,null,null,null,null,null,0,0,0,0,0,0,0,null,0,null,null,0,0]
[77,null,null,null,null,null,null,0,null,null,null,null,null,null,0,0,null,null,0,0,null,null,null,0,0,null,null,null,null,null,null,null,null,null,null,null,0,0,0,0,0,0,0,null,0,null,null,0,0]
[78,null,null,null,null,null,null,0,null,null,null,null,null,null,0,0,null,null,0,0,null,null,null,0,0,null,null,null,null,null,null,null,null,null,null,null,0,0,0,0,0,0,0,null,0,null,null,0,0]
[79,null,null,null,null,null,null,0,null,null,null,null,null,null,0,0,null,null,0,0,null,null,null,0,0,null,null,null,null,null,null,null,null,null,null,null,0,0,0,0,0,0,0,null,0,null,null,0,0]
[80,null,null,null,null,null,null,0,null,null,null,null,null,null,0,0,null,null,0,0,null,null,null,0,0,null,null,null,null,null,null,null,null,null,null,null,0,0,0,0,0,0,0,null,0,null,null,0,0]
[81,null,null,null,null,null,null,0,null,null,null,null,null,null,0,0,null,null,0,0,null,null,null,0,0,null,null,null,null,null,null,null,null,null,null,null,0,0,0,0,0,0,0,null,0,null,null,0,0]
[82,null,null,null,null,null,null,0,null,null,null,null,null,null,0,0,null,null,0,0,null,null,null,0,0,null,null,null,null,null,null,null,null,null,null,null,0,0,0,0,0,0,0,null,0,null,null,0,0]
[83,null,null,null,null,null,null,0,null,null,null,null,null,null,0,0,null,null,0,0,null,null,null,0,0,null,null,null,null,null,null,null,null,null,null,null,0,0,0,0,0,0,0,null,0,null,null,0,0]
[84,null,null,null,null,null,null,0,null,null,null,null,null,null,0,0,null,null,0,0,null,null,null,0,0,null,null,null,null,null,null,null,null,null,null,null,0,0,0,0,0,0,0,null,0,null,null,0,0]
[85,null,null,null,null,null,null,0,null,null,null,null,null,null,0,0,null,null,0,0,null,null,null,0,0,null,null,null,null,null,null,null,null,null,null,null,0,0,0,0,0,0,0,null,0,null,null,0,0]
[86,null,null,null,null,null,null,0,null,null,null,null,null,null,0,0,null,null,0,0,null,null,null,0,0,null,null,null,null,null,null,null,null,null,null,null,0,0,0,0,0,0,0,null,0,null,null,0,0]
[87,null,null,null,null,null,null,0,null,null,null,null,null,null,0,0,null,null,0,0,null,null,null,0,0,null,null,null,null,null,null,null,null,null,null,null,0,0,0,0,0,0,0,null,0,null,null,0,0]
[88,null,null,null,null,null,null,0,null,null,null,null,null,null,0,0,null,null,0,0,null,null,null,0,0,null,null,null,null,null,null,null,null,null,null,null,0,0,0,0,0,0,0,null,0,null,null,0,0]
[89,null,null,null,null,null,null,0,null,null,null,null,null,null,0,0,null,null,0,0,null,null,null,0,0,null,null,null,null,null,null,null,null,null,null,null,0,0,0,0,0,0,0,null,0,null,null,0,0]
[90,null,null,null,null,null,null,0,null,null,null,null,null,null,0,0,null,null,0,0,null,null,null,0,0,null,null,null,null,null,null,null,null,null,null,null,0,0,0,0,0,0,0,null,0,null,null,0,0]
[91,null,null,null,null,null,null,0,null,null,null,null,null,null,0,0,null,null,0,0,null,null,null,0,0,null,null,null,null,null,null,null,null,null,null,null,0,0,0,0,0,0,0,null,0,null,null,0,0]
[92,null,null,null,null,null,null,0,null,null,null,null,null,null,0,0,null,null,0,0,null,null,null,0,0,null,null,null,null,null,null,null,null,null,null,null,0,0,0,0,0,0,0,null,0,null,null,0,0]
[93,null,null,null,null,null,null,0,null,null,null,null,null,null,0,0,null,null,0,0,null,null,null,0,0,null,null,null,null,null,null,null,null,null,null,null,0,0,0,0,0,0,0,null,0,null,null,0,0]
[94,null,null,null,null,null,null,0,null,null,null,null,null,null,0,0,null,null,0,0,null,null,null,0,0,null,null,null,null,null,null,null,null,null,null,null,0,0,0,0,0,0,0,null,0,null,null,0,0]
[95,null,null,null,null,null,null,0,null,null,null,null,null,null,0,0,null,null,0,0,null,null,null,0,0,null,null,null,null,null,null,null,null,null,null,null,0,0,0,0,0,0,0,null,0,null,null,0,0]
[96,null,null,null,null,null,null,0,null,null,null,null,null,null,0,0,null,null,0,0,null,null,null,0,0,null,null,null,null,null,null,null,null,null,null,null,0,0,0,0,0,0,0,null,0,null,null,0,0]
[97,null,null,null,null,null,null,0,null,null,null,null,null,null,0,0,null,null,0,0,null,null,null,0,0,null,null,null,null,null,null,null,null,null,null,null,0,0,0,0,0,0,0,null,0,null,null,0,0]
[98,null,null,null,null,null,null,0,null,null,null,null,null,null,0,0,null,null,0,0,null,null,null,0,0,null,null,null,null,null,null,null,null,null,null,null,0,0,0,0,0,0,0,null,0,null,null,0,0]
[99,null,null,null,null,null,null,0,null,null,null,null,null,null,0,0,null,null,0,0,null,null,null,0,0,null,null,null,null,null,null,null,null,null,null,null,0,0,0,0,0,0,0,null,0,null,null,0,0]
[100,null,null,null,null,null,null,0,null,null,null,null,null,null,0,0,null,null,0,0,null,null,null,0,0,null,null,null,null,null,null,null,null,null,null,null,0,0,0,0,0,0,0,null,0,null,null,0,0]
[101,null,null,null,null,null,null,0,null,null,null,null,null,null,0,0,null,null,0,0,null,null,null,0,0,null,null,null,null,null,null,null,null,null,null,null,0,0,0,0,0,0,0,null,0,null,null,0,0]
[102,null,null,null,null,null,null,0,null,null,null,null,null,null,0,0,null,null,0,0,null,null,null,0,0,null,null,null,null,null,null,null,null,null,null,null,0,0,0,0,0,0,0,null,0,null,null,0,0]
[103,null,null,null,null,null,null,0,null,null,null,null,null,null,0,0,null,null,0,0,null,null,null,0,0,null,null,null,null,null,null,null,null,null,null,null,0,0,0,0,0,0,0,null,0,null,null,0,0]
[104,null,null,null,null,null,null,0,null,null,null,null,null,null,0,0,null,null,0,0,null,null,null,0,0,null,null,null,null,null,null,null,null,null,null,null,0,0,0,0,0,0,0,null,0,null,null,0,0]
[105,null,null,null,null,null,null,0,null,null,null,null,null,null,0,0,null,null,0,0,null,null,null,0,0,null,null,null,null,null,null,null,null,null,null,null,0,0,0,0,0,0,0,null,0,null,null,0,0]
[106,null,null,null,null,null,null,0,null,null,null,null,null,null,0,0,null,null,0,0,null,null,null,0,0,null,null,null,null,null,null,null,null,null,null,null,0,0,0,0,0,0,0,null,0,null,null,0,0]
[107,null,null,null,null,null,null,0,null,null,null,null,null,null,0,0,null,null,0,0,null,null,null,0,0,null,null,null,null,null,null,null,null,null,null,null,0,0,0,0,0,0,0,null,0,null,null,0,0]
[108,null,null,null,null,null,null,0,null,null,null,null,null,null,0,0,null,null,0,0,null,null,null,0,0,null,null,null,null,null,null,null,null,null,null,null,0,0,0,0,0,0,0,null,0,null,null,0,0]
[109,null,null,null,null,null,null,0,null,null,null,null,null,null,0,0,null,null,0,0,null,null,null,0,0,null,null,null,null,null,null,null,null,null,null,null,0,0,0,0,0,0,0,null,0,null,null,0,0]
[110,null,null,null,null,null,null,0,null,null,null,null,null,null,0,0,null,null,0,0,null,null,null,0,0,null,null,null,null,null,null,null,null,null,null,null,0,0,0,0,0,0,0,null,0,null,null,0,0]
[111,null,null,null,null,null,null,0,null,null,null,null,null,null,0,0,null,null,0,0,null,null,null,0,0,null,null,null,null,null,null,null,null,null,null,null,0,0,0,0,0,0,0,null,0,null,null,0,0]
[112,null,null,null,null,null,null,0,null,null,null,null,null,null,0,0,null,null,0,0,null,null,null,0,0,null,null,null,null,null,null,null,null,null,null,null,0,0,0,0,0,0,0,null,0,null,null,0,0]
[113,null,null,null,null,null,null,0,null,null,null,null,null,null,0,0,null,null,0,0,null,null,null,0,0,null,null,null,null,null,null,null,null,null,null,null,0,0,0,0,0,0,0,null,0,null,null,0,0]
[114,null,null,null,null,null,null,0,null,null,null,null,null,null,0,0,null,null,0,0,null,null,null,0,0,null,null,null,null,null,null,null,null,null,null,null,0,0,0,0,0,0,0,null,0,null,null,0,0]
[115,null,null,null,null,null,null,0,null,null,null,null,null,null,0,0,null,null,0,0,null,null,null,0,0,null,null,null,null,null,null,null,null,null,null,null,0,0,0,0,0,0,0,null,0,null,null,0,0]
[116,null,null,null,null,null,null,0,null,null,null,null,null,null,0,0,null,null,0,0,null,null,null,0,0,null,null,null,null,null,null,null,null,null,null,null,0,0,0,0,0,0,0,null,0,null,null,0,0]
[117,null,null,null,null,null,null,0,null,null,null,null,null,null,0,0,null,null,0,0,null,null,null,0,0,null,null,null,null,null,null,null,null,null,null,null,0,0,0,0,0,0,0,null,0,null,null,0,0]
[118,null,null,null,null,null,null,0,null,null,null,null,null,null,0,0,null,null,0,0,null,null,null,0,0,null,null,null,null,null,null,null,null,null,null,null,0,0,0,0,0,0,0,null,0,null,null,0,0]
[119,null,null,null,null,null,null,0,null,null,null,null,null,null,0,0,null,null,0,0,null,null,null,0,0,null,null,null,null,null,null,null,null,null,null,null,0,0,0,0,0,0,0,null,0,null,null,0,0]
[120,null,null,null,null,null,null,0,null,null,null,null,null,null,0,0,null,null,0,0,null,null,null,0,0,null,null,null,null,null,null,null,null,null,null,null,0,0,0,0,0,0,0,null,0,null,null,0,0]
[121,null,null,null,null,null,null,0,null,null,null,null,null,null,0,0,null,null,0,0,null,null,null,0,0,null,null,null,null,null,null,null,null,null,null,null,0,0,0,0,0,0,0,null,0,null,null,0,0]
[122,null,null,null,null,null,null,0,null,null,null,null,null,null,0,0,null,null,0,0,null,null,null,0,0,null,null,null,null,null,null,null,null,null,null,null,0,0,0,0,0,0,0,null,0,null,null,0,0]
[123,null,null,null,null,null,null,0,null,null,null,null,null,null,0,0,null,null,0,0,null,null,null,0,0,null,null,null,null,null,null,null,null,null,null,null,0,0,0,0,0,0,0,null,0,null,null,0,0]
[124,null,null,null,null,null,null,0,null,null,null,null,null,null,0,0,null,null,0,0,null,null,null,0,0,null,null,null,null,null,null,null,null,null,null,null,0,0,0,0,0,0,0,null,0,null,null,0,0]
[125,null,null,null,null,null,null,0,null,null,null,null,null,null,0,0,null,null,0,0,null,null,null,0,0,null,null,null,null,null,null,null,null,null,null,null,0,0,0,0,0,0,0,null,0,null,null,0,0]
[126,null,null,null,null,null,null,0,null,null,null,null,null,null,0,0,null,null,0,0,null,null,null,0,0,null,null,null,null,null,null,null,null,null,null,null,0,0,0,0,0,0,0,null,0,null,null,0,0]
[127,null,null,null,null,null,null,0,null,null,null,null,null,null,0,0,null,null,0,0,null,null,null,0,0,null,null,null,null,null,null,null,null,null,null,null,0,0,0,0,0,0,0,null,0,null,null,0,0]
[128,null,null,null,null,null,null,0,null,null,null,null,null,null,0,0,null,null,0,0,null,null,null,0,0,null,null,null,null,null,null,null,null,null,null,null,0,0,0,0,0,0,0,null,0,null,null,0,0]
[129,null,null,null,null,null,null,0,null,null,null,null,null,null,0,0,null,null,0,0,null,null,null,0,0,null,null,null,null,null,null,null,null,null,null,null,0,0,0,0,0,0,0,null,0,null,null,0,0]
[130,null,null,null,null,null,null,{"$f":"SUM(E133:G133)","v":0},null,null,null,null,null,null,{"$f":"SUM(I133:N133)","v":0},{"$f":"H133-O133","v":0},null,null,{"$f":"SUM(Q133:R133)","v":0},{"$f":"P133-S133","v":0},null,null,null,{"$f":"SUM(U133:W133)","v":0},{"$f":"T133+X133","v":0},null,null,null,null,null,null,null,null,null,null,null,{"$f":"SUM(AA133:AJ133)","v":0},{"$f":"Y133-AK133","v":0},{"$f":"IF(AL133>1000000,(125000+(AL133-1000000)*30%),IF(AL133>500000,(25000+(AL133-500000)*20%),IF(AL133>250000,((AL133-250000)*10%),0)))","v":0},{"$f":"IF(AL133<500001,(MIN(AM133,5000)),0)","v":0},{"$f":"+AM133-AN133","v":0},{"$f":"+AO133*3%","v":0},{"$f":"+AO133+AP133","v":0},null,{"$f":"AQ133-AR133","v":0},null,null,{"$f":"SUM(AT133:AU133)","v":0},{"$f":"AS133-AV133","v":0}]
[131,null,null,null,null,null,null,0,null,null,null,null,null,null,0,0,null,null,0,0,null,null,null,0,0,null,null,null,null,null,null,null,null,null,null,null,0,0,0,0,0,0,0,null,0,null,null,0,0]
[132,null,null,null,null,null,null,0,null,null,null,null,null,null,0,0,null,null,0,0,null,null,null,0,0,null,null,null,null,null,null,null,null,null,null,null,0,0,0,0,0,0,0,null,0,null,null,0,0]
[133,null,null,null,null,null,null,0,null,null,null,null,null,null,0,0,null,null,0,0,null,null,null,0,0,null,null,null,null,null,null,null,null,null,null,null,0,0,0,0,0,0,0,null,0,null,null,0,0]
[134,null,null,null,null,null,null,0,null,null,null,null,null,null,0,0,null,null,0,0,null,null,null,0,0,null,null,null,null,null,null,null,null,null,null,null,0,0,0,0,0,0,0,null,0,null,null,0,0]
[135,null,null,null,null,null,null,0,null,null,null,null,null,null,0,0,null,null,0,0,null,null,null,0,0,null,null,null,null,null,null,null,null,null,null,null,0,0,0,0,0,0,0,null,0,null,null,0,0]
[136,null,null,null,null,null,null,0,null,null,null,null,null,null,0,0,null,null,0,0,null,null,null,0,0,null,null,null,null,null,null,null,null,null,null,null,0,0,0,0,0,0,0,null,0,null,null,0,0]
[137,null,null,null,null,null,null,0,null,null,null,null,null,null,0,0,null,null,0,0,null,null,null,0,0,null,null,null,null,null,null,null,null,null,null,null,0,0,0,0,0,0,0,null,0,null,null,0,0]
[138,null,null,null,null,null,null,0,null,null,null,null,null,null,0,0,null,null,0,0,null,null,null,0,0,null,null,null,null,null,null,null,null,null,null,null,0,0,0,0,0,0,0,null,0,null,null,0,0]
[139,null,null,null,null,null,null,0,null,null,null,null,null,null,0,0,null,null,0,0,null,null,null,0,0,null,null,null,null,null,null,null,null,null,null,null,0,0,0,0,0,0,0,null,0,null,null,0,0]
[140,null,null,null,null,null,null,0,null,null,null,null,null,null,0,0,null,null,0,0,null,null,null,0,0,null,null,null,null,null,null,null,null,null,null,null,0,0,0,0,0,0,0,null,0,null,null,0,0]
[141,null,null,null,null,null,null,0,null,null,null,null,null,null,0,0,null,null,0,0,null,null,null,0,0,null,null,null,null,null,null,null,null,null,null,null,0,0,0,0,0,0,0,null,0,null,null,0,0]
[142,null,null,null,null,null,null,0,null,null,null,null,null,null,0,0,null,null,0,0,null,null,null,0,0,null,null,null,null,null,null,null,null,null,null,null,0,0,0,0,0,0,0,null,0,null,null,0,0]
[143,null,null,null,null,null,null,0,null,null,null,null,null,null,0,0,null,null,0,0,null,null,null,0,0,null,null,null,null,null,null,null,null,null,null,null,0,0,0,0,0,0,0,null,0,null,null,0,0]
[144,null,null,null,null,null,null,0,null,null,null,null,null,null,0,0,null,null,0,0,null,null,null,0,0,null,null,null,null,null,null,null,null,null,null,null,0,0,0,0,0,0,0,null,0,null,null,0,0]
[145,null,null,null,null,null,null,0,null,null,null,null,null,null,0,0,null,null,0,0,null,null,null,0,0,null,null,null,null,null,null,null,null,null,null,null,0,0,0,0,0,0,0,null,0,null,null,0,0]
[146,null,null,null,null,null,null,0,null,null,null,null,null,null,0,0,null,null,0,0,null,null,null,0,0,null,null,null,null,null,null,null,null,null,null,null,0,0,0,0,0,0,0,null,0,null,null,0,0]
[147,null,null,null,null,null,null,0,null,null,null,null,null,null,0,0,null,null,0,0,null,null,null,0,0,null,null,null,null,null,null,null,null,null,null,null,0,0,0,0,0,0,0,null,0,null,null,0,0]
[148,null,null,null,null,null,null,0,null,null,null,null,null,null,0,0,null,null,0,0,null,null,null,0,0,null,null,null,null,null,null,null,null,null,null,null,0,0,0,0,0,0,0,null,0,null,null,0,0]
[149,null,null,null,null,null,null,0,null,null,null,null,null,null,0,0,null,null,0,0,null,null,null,0,0,null,null,null,null,null,null,null,null,null,null,null,0,0,0,0,0,0,0,null,0,null,null,0,0]
[150,null,null,null,null,null,null,0,null,null,null,null,null,null,0,0,null,null,0,0,null,null,null,0,0,null,null,null,null,null,null,null,null,null,null,null,0,0,0,0,0,0,0,null,0,null,null,0,0]
[151,null,null,null,null,null,null,0,null,null,null,null,null,null,0,0,null,null,0,0,null,null,null,0,0,null,null,null,null,null,null,null,null,null,null,null,0,0,0,0,0,0,0,null,0,null,null,0,0]
[152,null,null,null,null,null,null,0,null,null,null,null,null,null,0,0,null,null,0,0,null,null,null,0,0,null,null,null,null,null,null,null,null,null,null,null,0,0,0,0,0,0,0,null,0,null,null,0,0]
[153,null,null,null,null,null,null,0,null,null,null,null,null,null,0,0,null,null,0,0,null,null,null,0,0,null,null,null,null,null,null,null,null,null,null,null,0,0,0,0,0,0,0,null,0,null,null,0,0]
[154,null,null,null,null,null,null,0,null,null,null,null,null,null,0,0,null,null,0,0,null,null,null,0,0,null,null,null,null,null,null,null,null,null,null,null,0,0,0,0,0,0,0,null,0,null,null,0,0]
[155,null,null,null,null,null,null,0,null,null,null,null,null,null,0,0,null,null,0,0,null,null,null,0,0,null,null,null,null,null,null,null,null,null,null,null,0,0,0,0,0,0,0,null,0,null,null,0,0]
[156,null,null,null,null,null,null,0,null,null,null,null,null,null,0,0,null,null,0,0,null,null,null,0,0,null,null,null,null,null,null,null,null,null,null,null,0,0,0,0,0,0,0,null,0,null,null,0,0]
[157,null,null,null,null,null,null,0,null,null,null,null,null,null,0,0,null,null,0,0,null,null,null,0,0,null,null,null,null,null,null,null,null,null,null,null,0,0,0,0,0,0,0,null,0,null,null,0,0]
[158,null,null,null,null,null,null,0,null,null,null,null,null,null,0,0,null,null,0,0,null,null,null,0,0,null,null,null,null,null,null,null,null,null,null,null,0,0,0,0,0,0,0,null,0,null,null,0,0]
[159,null,null,null,null,null,null,0,null,null,null,null,null,null,0,0,null,null,0,0,null,null,null,0,0,null,null,null,null,null,null,null,null,null,null,null,0,0,0,0,0,0,0,null,0,null,null,0,0]
[160,null,null,null,null,null,null,0,null,null,null,null,null,null,0,0,null,null,0,0,null,null,null,0,0,null,null,null,null,null,null,null,null,null,null,null,0,0,0,0,0,0,0,null,0,null,null,0,0]
[161,null,null,null,null,null,null,0,null,null,null,null,null,null,0,0,null,null,0,0,null,null,null,0,0,null,null,null,null,null,null,null,null,null,null,null,0,0,0,0,0,0,0,null,0,null,null,0,0]
[162,null,null,null,null,null,null,0,null,null,null,null,null,null,0,0,null,null,0,0,null,null,null,0,0,null,null,null,null,null,null,null,null,null,null,null,0,0,0,0,0,0,0,null,0,null,null,0,0]
[163,null,null,null,null,null,null,0,null,null,null,null,null,null,0,0,null,null,0,0,null,null,null,0,0,null,null,null,null,null,null,null,null,null,null,null,0,0,0,0,0,0,0,null,0,null,null,0,0]
[164,null,null,null,null,null,null,0,null,null,null,null,null,null,0,0,null,null,0,0,null,null,null,0,0,null,null,null,null,null,null,null,null,null,null,null,0,0,0,0,0,0,0,null,0,null,null,0,0]
[165,null,null,null,null,null,null,0,null,null,null,null,null,null,0,0,null,null,0,0,null,null,null,0,0,null,null,null,null,null,null,null,null,null,null,null,0,0,0,0,0,0,0,null,0,null,null,0,0]
[166,null,null,null,null,null,null,0,null,null,null,null,null,null,0,0,null,null,0,0,null,null,null,0,0,null,null,null,null,null,null,null,null,null,null,null,0,0,0,0,0,0,0,null,0,null,null,0,0]
[167,null,null,null,null,null,null,0,null,null,null,null,null,null,0,0,null,null,0,0,null,null,null,0,0,null,null,null,null,null,null,null,null,null,null,null,0,0,0,0,0,0,0,null,0,null,null,0,0]
[168,null,null,null,null,null,null,0,null,null,null,null,null,null,0,0,null,null,0,0,null,null,null,0,0,null,null,null,null,null,null,null,null,null,null,null,0,0,0,0,0,0,0,null,0,null,null,0,0]
[169,null,null,null,null,null,null,0,null,null,null,null,null,null,0,0,null,null,0,0,null,null,null,0,0,null,null,null,null,null,null,null,null,null,null,null,0,0,0,0,0,0,0,null,0,null,null,0,0]
[170,null,null,null,null,null,null,0,null,null,null,null,null,null,0,0,null,null,0,0,null,null,null,0,0,null,null,null,null,null,null,null,null,null,null,null,0,0,0,0,0,0,0,null,0,null,null,0,0]
[171,null,null,null,null,null,null,0,null,null,null,null,null,null,0,0,null,null,0,0,null,null,null,0,0,null,null,null,null,null,null,null,null,null,null,null,0,0,0,0,0,0,0,null,0,null,null,0,0]
[172,null,null,null,null,null,null,0,null,null,null,null,null,null,0,0,null,null,0,0,null,null,null,0,0,null,null,null,null,null,null,null,null,null,null,null,0,0,0,0,0,0,0,null,0,null,null,0,0]
[173,null,null,null,null,null,null,0,null,null,null,null,null,null,0,0,null,null,0,0,null,null,null,0,0,null,null,null,null,null,null,null,null,null,null,null,0,0,0,0,0,0,0,null,0,null,null,0,0]
[174,null,null,null,null,null,null,0,null,null,null,null,null,null,0,0,null,null,0,0,null,null,null,0,0,null,null,null,null,null,null,null,null,null,null,null,0,0,0,0,0,0,0,null,0,null,null,0,0]
[175,null,null,null,null,null,null,0,null,null,null,null,null,null,0,0,null,null,0,0,null,null,null,0,0,null,null,null,null,null,null,null,null,null,null,null,0,0,0,0,0,0,0,null,0,null,null,0,0]
[176,null,null,null,null,null,null,0,null,null,null,null,null,null,0,0,null,null,0,0,null,null,null,0,0,null,null,null,null,null,null,null,null,null,null,null,0,0,0,0,0,0,0,null,0,null,null,0,0]
[177,null,null,null,null,null,null,0,null,null,null,null,null,null,0,0,null,null,0,0,null,null,null,0,0,null,null,null,null,null,null,null,null,null,null,null,0,0,0,0,0,0,0,null,0,null,null,0,0]
[178,null,null,null,null,null,null,0,null,null,null,null,null,null,0,0,null,null,0,0,null,null,null,0,0,null,null,null,null,null,null,null,null,null,null,null,0,0,0,0,0,0,0,null,0,null,null,0,0]
[179,null,null,null,null,null,null,0,null,null,null,null,null,null,0,0,null,null,0,0,null,null,null,0,0,null,null,null,null,null,null,null,null,null,null,null,0,0,0,0,0,0,0,null,0,null,null,0,0]
[180,null,null,null,null,null,null,0,null,null,null,null,null,null,0,0,null,null,0,0,null,null,null,0,0,null,null,null,null,null,null,null,null,null,null,null,0,0,0,0,0,0,0,null,0,null,null,0,0]
[181,null,null,null,null,null,null,0,null,null,null,null,null,null,0,0,null,null,0,0,null,null,null,0,0,null,null,null,null,null,null,null,null,null,null,null,0,0,0,0,0,0,0,null,0,null,null,0,0]
[182,null,null,null,null,null,null,0,null,null,null,null,null,null,0,0,null,null,0,0,null,null,null,0,0,null,null,null,null,null,null,null,null,null,null,null,0,0,0,0,0,0,0,null,0,null,null,0,0]
[183,null,null,null,null,null,null,0,null,null,null,null,null,null,0,0,null,null,0,0,null,null,null,0,0,null,null,null,null,null,null,null,null,null,null,null,0,0,0,0,0,0,0,null,0,null,null,0,0]
[184,null,null,null,null,null,null,0,null,null,null,null,null,null,0,0,null,null,0,0,null,null,null,0,0,null,null,null,null,null,null,null,null,null,null,null,0,0,0,0,0,0,0,null,0,null,null,0,0]
[185,null,null,null,null,null,null,0,null,null,null,null,null,null,0,0,null,null,0,0,null,null,null,0,0,null,null,null,null,null,null,null,null,null,null,null,0,0,0,0,0,0,0,null,0,null,null,0,0]
[186,null,null,null,null,null,null,0,null,null,null,null,null,null,0,0,null,null,0,0,null,null,null,0,0,null,null,null,null,null,null,null,null,null,null,null,0,0,0,0,0,0,0,null,0,null,null,0,0]
[187,null,null,null,null,null,null,0,null,null,null,null,null,null,0,0,null,null,0,0,null,null,null,0,0,null,null,null,null,null,null,null,null,null,null,null,0,0,0,0,0,0,0,null,0,null,null,0,0]
[188,null,null,null,null,null,null,0,null,null,null,null,null,null,0,0,null,null,0,0,null,null,null,0,0,null,null,null,null,null,null,null,null,null,null,null,0,0,0,0,0,0,0,null,0,null,null,0,0]
[189,null,null,null,null,null,null,0,null,null,null,null,null,null,0,0,null,null,0,0,null,null,null,0,0,null,null,null,null,null,null,null,null,null,null,null,0,0,0,0,0,0,0,null,0,null,null,0,0]
[190,null,null,null,null,null,null,0,null,null,null,null,null,null,0,0,null,null,0,0,null,null,null,0,0,null,null,null,null,null,null,null,null,null,null,null,0,0,0,0,0,0,0,null,0,null,null,0,0]
[191,null,null,null,null,null,null,0,null,null,null,null,null,null,0,0,null,null,0,0,null,null,null,0,0,null,null,null,null,null,null,null,null,null,null,null,0,0,0,0,0,0,0,null,0,null,null,0,0]
[192,null,null,null,null,null,null,0,null,null,null,null,null,null,0,0,null,null,0,0,null,null,null,0,0,null,null,null,null,null,null,null,null,null,null,null,0,0,0,0,0,0,0,null,0,null,null,0,0]
[193,null,null,null,null,null,null,0,null,null,null,null,null,null,0,0,null,null,0,0,null,null,null,0,0,null,null,null,null,null,null,null,null,null,null,null,0,0,0,0,0,0,0,null,0,null,null,0,0]
[194,null,null,null,null,null,null,{"$f":"SUM(E197:G197)","v":0},null,null,null,null,null,null,{"$f":"SUM(I197:N197)","v":0},{"$f":"H197-O197","v":0},null,null,{"$f":"SUM(Q197:R197)","v":0},{"$f":"P197-S197","v":0},null,null,null,{"$f":"SUM(U197:W197)","v":0},{"$f":"T197+X197","v":0},null,null,null,null,null,null,null,null,null,null,null,{"$f":"SUM(AA197:AJ197)","v":0},{"$f":"Y197-AK197","v":0},{"$f":"IF(AL197>1000000,(125000+(AL197-1000000)*30%),IF(AL197>500000,(25000+(AL197-500000)*20%),IF(AL197>250000,((AL197-250000)*10%),0)))","v":0},{"$f":"IF(AL197<500001,(MIN(AM197,5000)),0)","v":0},{"$f":"+AM197-AN197","v":0},{"$f":"+AO197*3%","v":0},{"$f":"+AO197+AP197","v":0},null,{"$f":"AQ197-AR197","v":0},null,null,{"$f":"SUM(AT197:AU197)","v":0},{"$f":"AS197-AV197","v":0}]
[195,null,null,null,null,null,null,0,null,null,null,null,null,null,0,0,null,null,0,0,null,null,null,0,0,null,null,null,null,null,null,null,null,null,null,null,0,0,0,0,0,0,0,null,0,null,null,0,0]
[196,null,null,null,null,null,null,0,null,null,null,null,null,null,0,0,null,null,0,0,null,null,null,0,0,null,null,null,null,null,null,null,null,null,null,null,0,0,0,0,0,0,0,null,0,null,null,0,0]
[197,null,null,null,null,null,null,0,null,null,null,null,null,null,0,0,null,null,0,0,null,null,null,0,0,null,null,null,null,null,null,null,null,null,null,null,0,0,0,0,0,0,0,null,0,null,null,0,0]
[198,null,null,null,null,null,null,0,null,null,null,null,null,null,0,0,null,null,0,0,null,null,null,0,0,null,null,null,null,null,null,null,null,null,null,null,0,0,0,0,0,0,0,null,0,null,null,0,0]
[199,null,null,null,null,null,null,0,null,null,null,null,null,null,0,0,null,null,0,0,null,null,null,0,0,null,null,null,null,null,null,null,null,null,null,null,0,0,0,0,0,0,0,null,0,null,null,0,0]
[200,null,null,null,null,null,null,0,null,null,null,null,null,null,0,0,null,null,0,0,null,null,null,0,0,null,null,null,null,null,null,null,null,null,null,null,0,0,0,0,0,0,0,null,0,null,null,0,0]
[201,null,null,null,null,null,null,0,null,null,null,null,null,null,0,0,null,null,0,0,null,null,null,0,0,null,null,null,null,null,null,null,null,null,null,null,0,0,0,0,0,0,0,null,0,null,null,0,0]
[202,null,null,null,null,null,null,0,null,null,null,null,null,null,0,0,null,null,0,0,null,null,null,0,0,null,null,null,null,null,null,null,null,null,null,null,0,0,0,0,0,0,0,null,0,null,null,0,0]
[203,null,null,null,null,null,null,0,null,null,null,null,null,null,0,0,null,null,0,0,null,null,null,0,0,null,null,null,null,null,null,null,null,null,null,null,0,0,0,0,0,0,0,null,0,null,null,0,0]
[204,null,null,null,null,null,null,0,null,null,null,null,null,null,0,0,null,null,0,0,null,null,null,0,0,null,null,null,null,null,null,null,null,null,null,null,0,0,0,0,0,0,0,null,0,null,null,0,0]
[205,null,null,null,null,null,null,0,null,null,null,null,null,null,0,0,null,null,0,0,null,null,null,0,0,null,null,null,null,null,null,null,null,null,null,null,0,0,0,0,0,0,0,null,0,null,null,0,0]
[206,null,null,null,null,null,null,0,null,null,null,null,null,null,0,0,null,null,0,0,null,null,null,0,0,null,null,null,null,null,null,null,null,null,null,null,0,0,0,0,0,0,0,null,0,null,null,0,0]
[207,null,null,null,null,null,null,0,null,null,null,null,null,null,0,0,null,null,0,0,null,null,null,0,0,null,null,null,null,null,null,null,null,null,null,null,0,0,0,0,0,0,0,null,0,null,null,0,0]
[208,null,null,null,null,null,null,0,null,null,null,null,null,null,0,0,null,null,0,0,null,null,null,0,0,null,null,null,null,null,null,null,null,null,null,null,0,0,0,0,0,0,0,null,0,null,null,0,0]
[209,null,null,null,null,null,null,0,null,null,null,null,null,null,0,0,null,null,0,0,null,null,null,0,0,null,null,null,null,null,null,null,null,null,null,null,0,0,0,0,0,0,0,null,0,null,null,0,0]
[210,null,null,null,null,null,null,0,null,null,null,null,null,null,0,0,null,null,0,0,null,null,null,0,0,null,null,null,null,null,null,null,null,null,null,null,0,0,0,0,0,0,0,null,0,null,null,0,0]
[211,null,null,null,null,null,null,0,null,null,null,null,null,null,0,0,null,null,0,0,null,null,null,0,0,null,null,null,null,null,null,null,null,null,null,null,0,0,0,0,0,0,0,null,0,null,null,0,0]
[212,null,null,null,null,null,null,0,null,null,null,null,null,null,0,0,null,null,0,0,null,null,null,0,0,null,null,null,null,null,null,null,null,null,null,null,0,0,0,0,0,0,0,null,0,null,null,0,0]
[213,null,null,null,null,null,null,0,null,null,null,null,null,null,0,0,null,null,0,0,null,null,null,0,0,null,null,null,null,null,null,null,null,null,null,null,0,0,0,0,0,0,0,null,0,null,null,0,0]
[214,null,null,null,null,null,null,0,null,null,null,null,null,null,0,0,null,null,0,0,null,null,null,0,0,null,null,null,null,null,null,null,null,null,null,null,0,0,0,0,0,0,0,null,0,null,null,0,0]
[215,null,null,null,null,null,null,0,null,null,null,null,null,null,0,0,null,null,0,0,null,null,null,0,0,null,null,null,null,null,null,null,null,null,null,null,0,0,0,0,0,0,0,null,0,null,null,0,0]
[216,null,null,null,null,null,null,0,null,null,null,null,null,null,0,0,null,null,0,0,null,null,null,0,0,null,null,null,null,null,null,null,null,null,null,null,0,0,0,0,0,0,0,null,0,null,null,0,0]
[217,null,null,null,null,null,null,0,null,null,null,null,null,null,0,0,null,null,0,0,null,null,null,0,0,null,null,null,null,null,null,null,null,null,null,null,0,0,0,0,0,0,0,null,0,null,null,0,0]
[218,null,null,null,null,null,null,0,null,null,null,null,null,null,0,0,null,null,0,0,null,null,null,0,0,null,null,null,null,null,null,null,null,null,null,null,0,0,0,0,0,0,0,null,0,null,null,0,0]
[219,null,null,null,null,null,null,0,null,null,null,null,null,null,0,0,null,null,0,0,null,null,null,0,0,null,null,null,null,null,null,null,null,null,null,null,0,0,0,0,0,0,0,null,0,null,null,0,0]
[220,null,null,null,null,null,null,0,null,null,null,null,null,null,0,0,null,null,0,0,null,null,null,0,0,null,null,null,null,null,null,null,null,null,null,null,0,0,0,0,0,0,0,null,0,null,null,0,0]
[221,null,null,null,null,null,null,0,null,null,null,null,null,null,0,0,null,null,0,0,null,null,null,0,0,null,null,null,null,null,null,null,null,null,null,null,0,0,0,0,0,0,0,null,0,null,null,0,0]
[222,null,null,null,null,null,null,0,null,null,null,null,null,null,0,0,null,null,0,0,null,null,null,0,0,null,null,null,null,null,null,null,null,null,null,null,0,0,0,0,0,0,0,null,0,null,null,0,0]
[223,null,null,null,null,null,null,0,null,null,null,null,null,null,0,0,null,null,0,0,null,null,null,0,0,null,null,null,null,null,null,null,null,null,null,null,0,0,0,0,0,0,0,null,0,null,null,0,0]
[224,null,null,null,null,null,null,0,null,null,null,null,null,null,0,0,null,null,0,0,null,null,null,0,0,null,null,null,null,null,null,null,null,null,null,null,0,0,0,0,0,0,0,null,0,null,null,0,0]
[225,null,null,null,null,null,null,0,null,null,null,null,null,null,0,0,null,null,0,0,null,null,null,0,0,null,null,null,null,null,null,null,null,null,null,null,0,0,0,0,0,0,0,null,0,null,null,0,0]
[226,null,null,null,null,null,null,0,null,null,null,null,null,null,0,0,null,null,0,0,null,null,null,0,0,null,null,null,null,null,null,null,null,null,null,null,0,0,0,0,0,0,0,null,0,null,null,0,0]
[227,null,null,null,null,null,null,0,null,null,null,null,null,null,0,0,null,null,0,0,null,null,null,0,0,null,null,null,null,null,null,null,null,null,null,null,0,0,0,0,0,0,0,null,0,null,null,0,0]
[228,null,null,null,null,null,null,0,null,null,null,null,null,null,0,0,null,null,0,0,null,null,null,0,0,null,null,null,null,null,null,null,null,null,null,null,0,0,0,0,0,0,0,null,0,null,null,0,0]
[229,null,null,null,null,null,null,0,null,null,null,null,null,null,0,0,null,null,0,0,null,null,null,0,0,null,null,null,null,null,null,null,null,null,null,null,0,0,0,0,0,0,0,null,0,null,null,0,0]
[230,null,null,null,null,null,null,0,null,null,null,null,null,null,0,0,null,null,0,0,null,null,null,0,0,null,null,null,null,null,null,null,null,null,null,null,0,0,0,0,0,0,0,null,0,null,null,0,0]
[231,null,null,null,null,null,null,0,null,null,null,null,null,null,0,0,null,null,0,0,null,null,null,0,0,null,null,null,null,null,null,null,null,null,null,null,0,0,0,0,0,0,0,null,0,null,null,0,0]
[232,null,null,null,null,null,null,0,null,null,null,null,null,null,0,0,null,null,0,0,null,null,null,0,0,null,null,null,null,null,null,null,null,null,null,null,0,0,0,0,0,0,0,null,0,null,null,0,0]
[233,null,null,null,null,null,null,0,null,null,null,null,null,null,0,0,null,null,0,0,null,null,null,0,0,null,null,null,null,null,null,null,null,null,null,null,0,0,0,0,0,0,0,null,0,null,null,0,0]
[234,null,null,null,null,null,null,0,null,null,null,null,null,null,0,0,null,null,0,0,null,null,null,0,0,null,null,null,null,null,null,null,null,null,null,null,0,0,0,0,0,0,0,null,0,null,null,0,0]
[235,null,null,null,null,null,null,0,null,null,null,null,null,null,0,0,null,null,0,0,null,null,null,0,0,null,null,null,null,null,null,null,null,null,null,null,0,0,0,0,0,0,0,null,0,null,null,0,0]
[236,null,null,null,null,null,null,0,null,null,null,null,null,null,0,0,null,null,0,0,null,null,null,0,0,null,null,null,null,null,null,null,null,null,null,null,0,0,0,0,0,0,0,null,0,null,null,0,0]
[237,null,null,null,null,null,null,0,null,null,null,null,null,null,0,0,null,null,0,0,null,null,null,0,0,null,null,null,null,null,null,null,null,null,null,null,0,0,0,0,0,0,0,null,0,null,null,0,0]
[238,null,null,null,null,null,null,0,null,null,null,null,null,null,0,0,null,null,0,0,null,null,null,0,0,null,null,null,null,null,null,null,null,null,null,null,0,0,0,0,0,0,0,null,0,null,null,0,0]
[239,null,null,null,null,null,null,0,null,null,null,null,null,null,0,0,null,null,0,0,null,null,null,0,0,null,null,null,null,null,null,null,null,null,null,null,0,0,0,0,0,0,0,null,0,null,null,0,0]
[240,null,null,null,null,null,null,0,null,null,null,null,null,null,0,0,null,null,0,0,null,null,null,0,0,null,null,null,null,null,null,null,null,null,null,null,0,0,0,0,0,0,0,null,0,null,null,0,0]
[241,null,null,null,null,null,null,0,null,null,null,null,null,null,0,0,null,null,0,0,null,null,null,0,0,null,null,null,null,null,null,null,null,null,null,null,0,0,0,0,0,0,0,null,0,null,null,0,0]
[242,null,null,null,null,null,null,0,null,null,null,null,null,null,0,0,null,null,0,0,null,null,null,0,0,null,null,null,null,null,null,null,null,null,null,null,0,0,0,0,0,0,0,null,0,null,null,0,0]
[243,null,null,null,null,null,null,0,null,null,null,null,null,null,0,0,null,null,0,0,null,null,null,0,0,null,null,null,null,null,null,null,null,null,null,null,0,0,0,0,0,0,0,null,0,null,null,0,0]
[244,null,null,null,null,null,null,0,null,null,null,null,null,null,0,0,null,null,0,0,null,null,null,0,0,null,null,null,null,null,null,null,null,null,null,null,0,0,0,0,0,0,0,null,0,null,null,0,0]
[245,null,null,null,null,null,null,0,null,null,null,null,null,null,0,0,null,null,0,0,null,null,null,0,0,null,null,null,null,null,null,null,null,null,null,null,0,0,0,0,0,0,0,null,0,null,null,0,0]
[246,null,null,null,null,null,null,0,null,null,null,null,null,null,0,0,null,null,0,0,null,null,null,0,0,null,null,null,null,null,null,null,null,null,null,null,0,0,0,0,0,0,0,null,0,null,null,0,0]
[247,null,null,null,null,null,null,0,null,null,null,null,null,null,0,0,null,null,0,0,null,null,null,0,0,null,null,null,null,null,null,null,null,null,null,null,0,0,0,0,0,0,0,null,0,null,null,0,0]
[248,null,null,null,null,null,null,0,null,null,null,null,null,null,0,0,null,null,0,0,null,null,null,0,0,null,null,null,null,null,null,null,null,null,null,null,0,0,0,0,0,0,0,null,0,null,null,0,0]
[249,null,null,null,null,null,null,0,null,null,null,null,null,null,0,0,null,null,0,0,null,null,null,0,0,null,null,null,null,null,null,null,null,null,null,null,0,0,0,0,0,0,0,null,0,null,null,0,0]
[250,null,null,null,null,null,null,0,null,null,null,null,null,null,0,0,null,null,0,0,null,null,null,0,0,null,null,null,null,null,null,null,null,null,null,null,0,0,0,0,0,0,0,null,0,null,null,0,0]
[251,null,null,null,null,null,null,0,null,null,null,null,null,null,0,0,null,null,0,0,null,null,null,0,0,null,null,null,null,null,null,null,null,null,null,null,0,0,0,0,0,0,0,null,0,null,null,0,0]
[252,null,null,null,null,null,null,0,null,null,null,null,null,null,0,0,null,null,0,0,null,null,null,0,0,null,null,null,null,null,null,null,null,null,null,null,0,0,0,0,0,0,0,null,0,null,null,0,0]
[253,null,null,null,null,null,null,0,null,null,null,null,null,null,0,0,null,null,0,0,null,null,null,0,0,null,null,null,null,null,null,null,null,null,null,null,0,0,0,0,0,0,0,null,0,null,null,0,0]
[254,null,null,null,null,null,null,0,null,null,null,null,null,null,0,0,null,null,0,0,null,null,null,0,0,null,null,null,null,null,null,null,null,null,null,null,0,0,0,0,0,0,0,null,0,null,null,0,0]
[255,null,null,null,null,null,null,0,null,null,null,null,null,null,0,0,null,null,0,0,null,null,null,0,0,null,null,null,null,null,null,null,null,null,null,null,0,0,0,0,0,0,0,null,0,null,null,0,0]
[256,null,null,null,null,null,null,0,null,null,null,null,null,null,0,0,null,null,0,0,null,null,null,0,0,null,null,null,null,null,null,null,null,null,null,null,0,0,0,0,0,0,0,null,0,null,null,0,0]
[257,null,null,null,null,null,null,0,null,null,null,null,null,null,0,0,null,null,0,0,null,null,null,0,0,null,null,null,null,null,null,null,null,null,null,null,0,0,0,0,0,0,0,null,0,null,null,0,0]
[258,null,null,null,null,null,null,{"$f":"SUM(E261:G261)","v":0},null,null,null,null,null,null,{"$f":"SUM(I261:N261)","v":0},{"$f":"H261-O261","v":0},null,null,{"$f":"SUM(Q261:R261)","v":0},{"$f":"P261-S261","v":0},null,null,null,{"$f":"SUM(U261:W261)","v":0},{"$f":"T261+X261","v":0},null,null,null,null,null,null,null,null,null,null,null,{"$f":"SUM(AA261:AJ261)","v":0},{"$f":"Y261-AK261","v":0},{"$f":"IF(AL261>1000000,(125000+(AL261-1000000)*30%),IF(AL261>500000,(25000+(AL261-500000)*20%),IF(AL261>250000,((AL261-250000)*10%),0)))","v":0},{"$f":"IF(AL261<500001,(MIN(AM261,5000)),0)","v":0},{"$f":"+AM261-AN261","v":0},{"$f":"+AO261*3%","v":0},{"$f":"+AO261+AP261","v":0},null,{"$f":"AQ261-AR261","v":0},null,null,{"$f":"SUM(AT261:AU261)","v":0},{"$f":"AS261-AV261","v":0}]
[259,null,null,null,null,null,null,0,null,null,null,null,null,null,0,0,null,null,0,0,null,null,null,0,0,null,null,null,null,null,null,null,null,null,null,null,0,0,0,0,0,0,0,null,0,null,null,0,0]
[260,null,null,null,null,null,null,0,null,null,null,null,null,null,0,0,null,null,0,0,null,null,null,0,0,null,null,null,null,null,null,null,null,null,null,null,0,0,0,0,0,0,0,null,0,null,null,0,0]
[261,null,null,null,null,null,null,0,null,null,null,null,null,null,0,0,null,null,0,0,null,null,null,0,0,null,null,null,null,null,null,null,null,null,null,null,0,0,0,0,0,0,0,null,0,null,null,0,0]
[262,null,null,null,null,null,null,0,null,null,null,null,null,null,0,0,null,null,0,0,null,null,null,0,0,null,null,null,null,null,null,null,null,null,null,null,0,0,0,0,0,0,0,null,0,null,null,0,0]
[263,null,null,null,null,null,null,0,null,null,null,null,null,null,0,0,null,null,0,0,null,null,null,0,0,null,null,null,null,null,null,null,null,null,null,null,0,0,0,0,0,0,0,null,0,null,null,0,0]
[264,null,null,null,null,null,null,0,null,null,null,null,null,null,0,0,null,null,0,0,null,null,null,0,0,null,null,null,null,null,null,null,null,null,null,null,0,0,0,0,0,0,0,null,0,null,null,0,0]
[265,null,null,null,null,null,null,0,null,null,null,null,null,null,0,0,null,null,0,0,null,null,null,0,0,null,null,null,null,null,null,null,null,null,null,null,0,0,0,0,0,0,0,null,0,null,null,0,0]
[266,null,null,null,null,null,null,0,null,null,null,null,null,null,0,0,null,null,0,0,null,null,null,0,0,null,null,null,null,null,null,null,null,null,null,null,0,0,0,0,0,0,0,null,0,null,null,0,0]
[267,null,null,null,null,null,null,0,null,null,null,null,null,null,0,0,null,null,0,0,null,null,null,0,0,null,null,null,null,null,null,null,null,null,null,null,0,0,0,0,0,0,0,null,0,null,null,0,0]
[268,null,null,null,null,null,null,0,null,null,null,null,null,null,0,0,null,null,0,0,null,null,null,0,0,null,null,null,null,null,null,null,null,null,null,null,0,0,0,0,0,0,0,null,0,null,null,0,0]
[269,null,null,null,null,null,null,0,null,null,null,null,null,null,0,0,null,null,0,0,null,null,null,0,0,null,null,null,null,null,null,null,null,null,null,null,0,0,0,0,0,0,0,null,0,null,null,0,0]
[270,null,null,null,null,null,null,0,null,null,null,null,null,null,0,0,null,null,0,0,null,null,null,0,0,null,null,null,null,null,null,null,null,null,null,null,0,0,0,0,0,0,0,null,0,null,null,0,0]
[271,null,null,null,null,null,null,0,null,null,null,null,null,null,0,0,null,null,0,0,null,null,null,0,0,null,null,null,null,null,null,null,null,null,null,null,0,0,0,0,0,0,0,null,0,null,null,0,0]
[272,null,null,null,null,null,null,0,null,null,null,null,null,null,0,0,null,null,0,0,null,null,null,0,0,null,null,null,null,null,null,null,null,null,null,null,0,0,0,0,0,0,0,null,0,null,null,0,0]
[273,null,null,null,null,null,null,0,null,null,null,null,null,null,0,0,null,null,0,0,null,null,null,0,0,null,null,null,null,null,null,null,null,null,null,null,0,0,0,0,0,0,0,null,0,null,null,0,0]
[274,null,null,null,null,null,null,0,null,null,null,null,null,null,0,0,null,null,0,0,null,null,null,0,0,null,null,null,null,null,null,null,null,null,null,null,0,0,0,0,0,0,0,null,0,null,null,0,0]
[275,null,null,null,null,null,null,0,null,null,null,null,null,null,0,0,null,null,0,0,null,null,null,0,0,null,null,null,null,null,null,null,null,null,null,null,0,0,0,0,0,0,0,null,0,null,null,0,0]
[276,null,null,null,null,null,null,0,null,null,null,null,null,null,0,0,null,null,0,0,null,null,null,0,0,null,null,null,null,null,null,null,null,null,null,null,0,0,0,0,0,0,0,null,0,null,null,0,0]
[277,null,null,null,null,null,null,0,null,null,null,null,null,null,0,0,null,null,0,0,null,null,null,0,0,null,null,null,null,null,null,null,null,null,null,null,0,0,0,0,0,0,0,null,0,null,null,0,0]
[278,null,null,null,null,null,null,0,null,null,null,null,null,null,0,0,null,null,0,0,null,null,null,0,0,null,null,null,null,null,null,null,null,null,null,null,0,0,0,0,0,0,0,null,0,null,null,0,0]
[279,null,null,null,null,null,null,0,null,null,null,null,null,null,0,0,null,null,0,0,null,null,null,0,0,null,null,null,null,null,null,null,null,null,null,null,0,0,0,0,0,0,0,null,0,null,null,0,0]
[280,null,null,null,null,null,null,0,null,null,null,null,null,null,0,0,null,null,0,0,null,null,null,0,0,null,null,null,null,null,null,null,null,null,null,null,0,0,0,0,0,0,0,null,0,null,null,0,0]
[281,null,null,null,null,null,null,0,null,null,null,null,null,null,0,0,null,null,0,0,null,null,null,0,0,null,null,null,null,null,null,null,null,null,null,null,0,0,0,0,0,0,0,null,0,null,null,0,0]
[282,null,null,null,null,null,null,0,null,null,null,null,null,null,0,0,null,null,0,0,null,null,null,0,0,null,null,null,null,null,null,null,null,null,null,null,0,0,0,0,0,0,0,null,0,null,null,0,0]
[283,null,null,null,null,null,null,0,null,null,null,null,null,null,0,0,null,null,0,0,null,null,null,0,0,null,null,null,null,null,null,null,null,null,null,null,0,0,0,0,0,0,0,null,0,null,null,0,0]
[284,null,null,null,null,null,null,0,null,null,null,null,null,null,0,0,null,null,0,0,null,null,null,0,0,null,null,null,null,null,null,null,null,null,null,null,0,0,0,0,0,0,0,null,0,null,null,0,0]
[285,null,null,null,null,null,null,0,null,null,null,null,null,null,0,0,null,null,0,0,null,null,null,0,0,null,null,null,null,null,null,null,null,null,null,null,0,0,0,0,0,0,0,null,0,null,null,0,0]
[286,null,null,null,null,null,null,0,null,null,null,null,null,null,0,0,null,null,0,0,null,null,null,0,0,null,null,null,null,null,null,null,null,null,null,null,0,0,0,0,0,0,0,null,0,null,null,0,0]
[287,null,null,null,null,null,null,0,null,null,null,null,null,null,0,0,null,null,0,0,null,null,null,0,0,null,null,null,null,null,null,null,null,null,null,null,0,0,0,0,0,0,0,null,0,null,null,0,0]
[288,null,null,null,null,null,null,0,null,null,null,null,null,null,0,0,null,null,0,0,null,null,null,0,0,null,null,null,null,null,null,null,null,null,null,null,0,0,0,0,0,0,0,null,0,null,null,0,0]
[289,null,null,null,null,null,null,0,null,null,null,null,null,null,0,0,null,null,0,0,null,null,null,0,0,null,null,null,null,null,null,null,null,null,null,null,0,0,0,0,0,0,0,null,0,null,null,0,0]
[290,null,null,null,null,null,null,0,null,null,null,null,null,null,0,0,null,null,0,0,null,null,null,0,0,null,null,null,null,null,null,null,null,null,null,null,0,0,0,0,0,0,0,null,0,null,null,0,0]
[291,null,null,null,null,null,null,0,null,null,null,null,null,null,0,0,null,null,0,0,null,null,null,0,0,null,null,null,null,null,null,null,null,null,null,null,0,0,0,0,0,0,0,null,0,null,null,0,0]
[292,null,null,null,null,null,null,0,null,null,null,null,null,null,0,0,null,null,0,0,null,null,null,0,0,null,null,null,null,null,null,null,null,null,null,null,0,0,0,0,0,0,0,null,0,null,null,0,0]
[293,null,null,null,null,null,null,0,null,null,null,null,null,null,0,0,null,null,0,0,null,null,null,0,0,null,null,null,null,null,null,null,null,null,null,null,0,0,0,0,0,0,0,null,0,null,null,0,0]
[294,null,null,null,null,null,null,0,null,null,null,null,null,null,0,0,null,null,0,0,null,null,null,0,0,null,null,null,null,null,null,null,null,null,null,null,0,0,0,0,0,0,0,null,0,null,null,0,0]
[295,null,null,null,null,null,null,0,null,null,null,null,null,null,0,0,null,null,0,0,null,null,null,0,0,null,null,null,null,null,null,null,null,null,null,null,0,0,0,0,0,0,0,null,0,null,null,0,0]
[296,null,null,null,null,null,null,0,null,null,null,null,null,null,0,0,null,null,0,0,null,null,null,0,0,null,null,null,null,null,null,null,null,null,null,null,0,0,0,0,0,0,0,null,0,null,null,0,0]
[297,null,null,null,null,null,null,0,null,null,null,null,null,null,0,0,null,null,0,0,null,null,null,0,0,null,null,null,null,null,null,null,null,null,null,null,0,0,0,0,0,0,0,null,0,null,null,0,0]
[298,null,null,null,null,null,null,0,null,null,null,null,null,null,0,0,null,null,0,0,null,null,null,0,0,null,null,null,null,null,null,null,null,null,null,null,0,0,0,0,0,0,0,null,0,null,null,0,0]
[299,null,null,null,null,null,null,0,null,null,null,null,null,null,0,0,null,null,0,0,null,null,null,0,0,null,null,null,null,null,null,null,null,null,null,null,0,0,0,0,0,0,0,null,0,null,null,0,0]
[300,null,null,null,null,null,null,0,null,null,null,null,null,null,0,0,null,null,0,0,null,null,null,0,0,null,null,null,null,null,null,null,null,null,null,null,0,0,0,0,0,0,0,null,0,null,null,0,0]
[301,null,null,null,null,null,null,0,null,null,null,null,null,null,0,0,null,null,0,0,null,null,null,0,0,null,null,null,null,null,null,null,null,null,null,null,0,0,0,0,0,0,0,null,0,null,null,0,0]
[302,null,null,null,null,null,null,0,null,null,null,null,null,null,0,0,null,null,0,0,null,null,null,0,0,null,null,null,null,null,null,null,null,null,null,null,0,0,0,0,0,0,0,null,0,null,null,0,0]
[303,null,null,null,null,null,null,0,null,null,null,null,null,null,0,0,null,null,0,0,null,null,null,0,0,null,null,null,null,null,null,null,null,null,null,null,0,0,0,0,0,0,0,null,0,null,null,0,0]
[304,null,null,null,null,null,null,0,null,null,null,null,null,null,0,0,null,null,0,0,null,null,null,0,0,null,null,null,null,null,null,null,null,null,null,null,0,0,0,0,0,0,0,null,0,null,null,0,0]
[305,null,null,null,null,null,null,0,null,null,null,null,null,null,0,0,null,null,0,0,null,null,null,0,0,null,null,null,null,null,null,null,null,null,null,null,0,0,0,0,0,0,0,null,0,null,null,0,0]
[306,null,null,null,null,null,null,0,null,null,null,null,null,null,0,0,null,null,0,0,null,null,null,0,0,null,null,null,null,null,null,null,null,null,null,null,0,0,0,0,0,0,0,null,0,null,null,0,0]
[307,null,null,null,null,null,null,0,null,null,null,null,null,null,0,0,null,null,0,0,null,null,null,0,0,null,null,null,null,null,null,null,null,null,null,null,0,0,0,0,0,0,0,null,0,null,null,0,0]
[308,null,null,null,null,null,null,0,null,null,null,null,null,null,0,0,null,null,0,0,null,null,null,0,0,null,null,null,null,null,null,null,null,null,null,null,0,0,0,0,0,0,0,null,0,null,null,0,0]
[309,null,null,null,null,null,null,0,null,null,null,null,null,null,0,0,null,null,0,0,null,null,null,0,0,null,null,null,null,null,null,null,null,null,null,null,0,0,0,0,0,0,0,null,0,null,null,0,0]
[310,null,null,null,null,null,null,0,null,null,null,null,null,null,0,0,null,null,0,0,null,null,null,0,0,null,null,null,null,null,null,null,null,null,null,null,0,0,0,0,0,0,0,null,0,null,null,0,0]
[311,null,null,null,null,null,null,0,null,null,null,null,null,null,0,0,null,null,0,0,null,null,null,0,0,null,null,null,null,null,null,null,null,null,null,null,0,0,0,0,0,0,0,null,0,null,null,0,0]
[312,null,null,null,null,null,null,0,null,null,null,null,null,null,0,0,null,null,0,0,null,null,null,0,0,null,null,null,null,null,null,null,null,null,null,null,0,0,0,0,0,0,0,null,0,null,null,0,0]
[313,null,null,null,null,null,null,0,null,null,null,null,null,null,0,0,null,null,0,0,null,null,null,0,0,null,null,null,null,null,null,null,null,null,null,null,0,0,0,0,0,0,0,null,0,null,null,0,0]
[314,null,null,null,null,null,null,0,null,null,null,null,null,null,0,0,null,null,0,0,null,null,null,0,0,null,null,null,null,null,null,null,null,null,null,null,0,0,0,0,0,0,0,null,0,null,null,0,0]
[315,null,null,null,null,null,null,0,null,null,null,null,null,null,0,0,null,null,0,0,null,null,null,0,0,null,null,null,null,null,null,null,null,null,null,null,0,0,0,0,0,0,0,null,0,null,null,0,0]
[316,null,null,null,null,null,null,0,null,null,null,null,null,null,0,0,null,null,0,0,null,null,null,0,0,null,null,null,null,null,null,null,null,null,null,null,0,0,0,0,0,0,0,null,0,null,null,0,0]
[317,null,null,null,null,null,null,0,null,null,null,null,null,null,0,0,null,null,0,0,null,null,null,0,0,null,null,null,null,null,null,null,null,null,null,null,0,0,0,0,0,0,0,null,0,null,null,0,0]
[318,null,null,null,null,null,null,0,null,null,null,null,null,null,0,0,null,null,0,0,null,null,null,0,0,null,null,null,null,null,null,null,null,null,null,null,0,0,0,0,0,0,0,null,0,null,null,0,0]
[319,null,null,null,null,null,null,0,null,null,null,null,null,null,0,0,null,null,0,0,null,null,null,0,0,null,null,null,null,null,null,null,null,null,null,null,0,0,0,0,0,0,0,null,0,null,null,0,0]
[320,null,null,null,null,null,null,0,null,null,null,null,null,null,0,0,null,null,0,0,null,null,null,0,0,null,null,null,null,null,null,null,null,null,null,null,0,0,0,0,0,0,0,null,0,null,null,0,0]
[321,null,null,null,null,null,null,0,null,null,null,null,null,null,0,0,null,null,0,0,null,null,null,0,0,null,null,null,null,null,null,null,null,null,null,null,0,0,0,0,0,0,0,null,0,null,null,0,0]
[322,null,null,null,null,null,null,{"$f":"SUM(E325:G325)","v":0},null,null,null,null,null,null,{"$f":"SUM(I325:N325)","v":0},{"$f":"H325-O325","v":0},null,null,{"$f":"SUM(Q325:R325)","v":0},{"$f":"P325-S325","v":0},null,null,null,{"$f":"SUM(U325:W325)","v":0},{"$f":"T325+X325","v":0},null,null,null,null,null,null,null,null,null,null,null,{"$f":"SUM(AA325:AJ325)","v":0},{"$f":"Y325-AK325","v":0},{"$f":"IF(AL325>1000000,(125000+(AL325-1000000)*30%),IF(AL325>500000,(25000+(AL325-500000)*20%),IF(AL325>250000,((AL325-250000)*10%),0)))","v":0},{"$f":"IF(AL325<500001,(MIN(AM325,5000)),0)","v":0},{"$f":"+AM325-AN325","v":0},{"$f":"+AO325*3%","v":0},{"$f":"+AO325+AP325","v":0},null,{"$f":"AQ325-AR325","v":0},null,null,{"$f":"SUM(AT325:AU325)","v":0},{"$f":"AS325-AV325","v":0}]
[323,null,null,null,null,null,null,0,null,null,null,null,null,null,0,0,null,null,0,0,null,null,null,0,0,null,null,null,null,null,null,null,null,null,null,null,0,0,0,0,0,0,0,null,0,null,null,0,0]
[324,null,null,null,null,null,null,0,null,null,null,null,null,null,0,0,null,null,0,0,null,null,null,0,0,null,null,null,null,null,null,null,null,null,null,null,0,0,0,0,0,0,0,null,0,null,null,0,0]
[325,null,null,null,null,null,null,0,null,null,null,null,null,null,0,0,null,null,0,0,null,null,null,0,0,null,null,null,null,null,null,null,null,null,null,null,0,0,0,0,0,0,0,null,0,null,null,0,0]
[326,null,null,null,null,null,null,0,null,null,null,null,null,null,0,0,null,null,0,0,null,null,null,0,0,null,null,null,null,null,null,null,null,null,null,null,0,0,0,0,0,0,0,null,0,null,null,0,0]
[327,null,null,null,null,null,null,0,null,null,null,null,null,null,0,0,null,null,0,0,null,null,null,0,0,null,null,null,null,null,null,null,null,null,null,null,0,0,0,0,0,0,0,null,0,null,null,0,0]
[328,null,null,null,null,null,null,0,null,null,null,null,null,null,0,0,null,null,0,0,null,null,null,0,0,null,null,null,null,null,null,null,null,null,null,null,0,0,0,0,0,0,0,null,0,null,null,0,0]
[329,null,null,null,null,null,null,0,null,null,null,null,null,null,0,0,null,null,0,0,null,null,null,0,0,null,null,null,null,null,null,null,null,null,null,null,0,0,0,0,0,0,0,null,0,null,null,0,0]
[330,null,null,null,null,null,null,0,null,null,null,null,null,null,0,0,null,null,0,0,null,null,null,0,0,null,null,null,null,null,null,null,null,null,null,null,0,0,0,0,0,0,0,null,0,null,null,0,0]
[331,null,null,null,null,null,null,0,null,null,null,null,null,null,0,0,null,null,0,0,null,null,null,0,0,null,null,null,null,null,null,null,null,null,null,null,0,0,0,0,0,0,0,null,0,null,null,0,0]
[332,null,null,null,null,null,null,0,null,null,null,null,null,null,0,0,null,null,0,0,null,null,null,0,0,null,null,null,null,null,null,null,null,null,null,null,0,0,0,0,0,0,0,null,0,null,null,0,0]
[333,null,null,null,null,null,null,0,null,null,null,null,null,null,0,0,null,null,0,0,null,null,null,0,0,null,null,null,null,null,null,null,null,null,null,null,0,0,0,0,0,0,0,null,0,null,null,0,0]
[334,null,null,null,null,null,null,0,null,null,null,null,null,null,0,0,null,null,0,0,null,null,null,0,0,null,null,null,null,null,null,null,null,null,null,null,0,0,0,0,0,0,0,null,0,null,null,0,0]
[335,null,null,null,null,null,null,0,null,null,null,null,null,null,0,0,null,null,0,0,null,null,null,0,0,null,null,null,null,null,null,null,null,null,null,null,0,0,0,0,0,0,0,null,0,null,null,0,0]
[336,null,null,null,null,null,null,0,null,null,null,null,null,null,0,0,null,null,0,0,null,null,null,0,0,null,null,null,null,null,null,null,null,null,null,null,0,0,0,0,0,0,0,null,0,null,null,0,0]
[337,null,null,null,null,null,null,0,null,null,null,null,null,null,0,0,null,null,0,0,null,null,null,0,0,null,null,null,null,null,null,null,null,null,null,null,0,0,0,0,0,0,0,null,0,null,null,0,0]
[338,null,null,null,null,null,null,0,null,null,null,null,null,null,0,0,null,null,0,0,null,null,null,0,0,null,null,null,null,null,null,null,null,null,null,null,0,0,0,0,0,0,0,null,0,null,null,0,0]
[339,null,null,null,null,null,null,0,null,null,null,null,null,null,0,0,null,null,0,0,null,null,null,0,0,null,null,null,null,null,null,null,null,null,null,null,0,0,0,0,0,0,0,null,0,null,null,0,0]
[340,null,null,null,null,null,null,0,null,null,null,null,null,null,0,0,null,null,0,0,null,null,null,0,0,null,null,null,null,null,null,null,null,null,null,null,0,0,0,0,0,0,0,null,0,null,null,0,0]
[341,null,null,null,null,null,null,0,null,null,null,null,null,null,0,0,null,null,0,0,null,null,null,0,0,null,null,null,null,null,null,null,null,null,null,null,0,0,0,0,0,0,0,null,0,null,null,0,0]
[342,null,null,null,null,null,null,0,null,null,null,null,null,null,0,0,null,null,0,0,null,null,null,0,0,null,null,null,null,null,null,null,null,null,null,null,0,0,0,0,0,0,0,null,0,null,null,0,0]
[343,null,null,null,null,null,null,0,null,null,null,null,null,null,0,0,null,null,0,0,null,null,null,0,0,null,null,null,null,null,null,null,null,null,null,null,0,0,0,0,0,0,0,null,0,null,null,0,0]
[344,null,null,null,null,null,null,0,null,null,null,null,null,null,0,0,null,null,0,0,null,null,null,0,0,null,null,null,null,null,null,null,null,null,null,null,0,0,0,0,0,0,0,null,0,null,null,0,0]
[345,null,null,null,null,null,null,0,null,null,null,null,null,null,0,0,null,null,0,0,null,null,null,0,0,null,null,null,null,null,null,null,null,null,null,null,0,0,0,0,0,0,0,null,0,null,null,0,0]
[346,null,null,null,null,null,null,0,null,null,null,null,null,null,0,0,null,null,0,0,null,null,null,0,0,null,null,null,null,null,null,null,null,null,null,null,0,0,0,0,0,0,0,null,0,null,null,0,0]
[347,null,null,null,null,null,null,0,null,null,null,null,null,null,0,0,null,null,0,0,null,null,null,0,0,null,null,null,null,null,null,null,null,null,null,null,0,0,0,0,0,0,0,null,0,null,null,0,0]
[348,null,null,null,null,null,null,0,null,null,null,null,null,null,0,0,null,null,0,0,null,null,null,0,0,null,null,null,null,null,null,null,null,null,null,null,0,0,0,0,0,0,0,null,0,null,null,0,0]
[349,null,null,null,null,null,null,0,null,null,null,null,null,null,0,0,null,null,0,0,null,null,null,0,0,null,null,null,null,null,null,null,null,null,null,null,0,0,0,0,0,0,0,null,0,null,null,0,0]
[350,null,null,null,null,null,null,0,null,null,null,null,null,null,0,0,null,null,0,0,null,null,null,0,0,null,null,null,null,null,null,null,null,null,null,null,0,0,0,0,0,0,0,null,0,null,null,0,0]
[351,null,null,null,null,null,null,0,null,null,null,null,null,null,0,0,null,null,0,0,null,null,null,0,0,null,null,null,null,null,null,null,null,null,null,null,0,0,0,0,0,0,0,null,0,null,null,0,0]
[352,null,null,null,null,null,null,0,null,null,null,null,null,null,0,0,null,null,0,0,null,null,null,0,0,null,null,null,null,null,null,null,null,null,null,null,0,0,0,0,0,0,0,null,0,null,null,0,0]
[353,null,null,null,null,null,null,0,null,null,null,null,null,null,0,0,null,null,0,0,null,null,null,0,0,null,null,null,null,null,null,null,null,null,null,null,0,0,0,0,0,0,0,null,0,null,null,0,0]
[354,null,null,null,null,null,null,0,null,null,null,null,null,null,0,0,null,null,0,0,null,null,null,0,0,null,null,null,null,null,null,null,null,null,null,null,0,0,0,0,0,0,0,null,0,null,null,0,0]
[355,null,null,null,null,null,null,0,null,null,null,null,null,null,0,0,null,null,0,0,null,null,null,0,0,null,null,null,null,null,null,null,null,null,null,null,0,0,0,0,0,0,0,null,0,null,null,0,0]
[356,null,null,null,null,null,null,0,null,null,null,null,null,null,0,0,null,null,0,0,null,null,null,0,0,null,null,null,null,null,null,null,null,null,null,null,0,0,0,0,0,0,0,null,0,null,null,0,0]
[357,null,null,null,null,null,null,0,null,null,null,null,null,null,0,0,null,null,0,0,null,null,null,0,0,null,null,null,null,null,null,null,null,null,null,null,0,0,0,0,0,0,0,null,0,null,null,0,0]
[358,null,null,null,null,null,null,0,null,null,null,null,null,null,0,0,null,null,0,0,null,null,null,0,0,null,null,null,null,null,null,null,null,null,null,null,0,0,0,0,0,0,0,null,0,null,null,0,0]
[359,null,null,null,null,null,null,0,null,null,null,null,null,null,0,0,null,null,0,0,null,null,null,0,0,null,null,null,null,null,null,null,null,null,null,null,0,0,0,0,0,0,0,null,0,null,null,0,0]
[360,null,null,null,null,null,null,0,null,null,null,null,null,null,0,0,null,null,0,0,null,null,null,0,0,null,null,null,null,null,null,null,null,null,null,null,0,0,0,0,0,0,0,null,0,null,null,0,0]
[361,null,null,null,null,null,null,0,null,null,null,null,null,null,0,0,null,null,0,0,null,null,null,0,0,null,null,null,null,null,null,null,null,null,null,null,0,0,0,0,0,0,0,null,0,null,null,0,0]
[362,null,null,null,null,null,null,0,null,null,null,null,null,null,0,0,null,null,0,0,null,null,null,0,0,null,null,null,null,null,null,null,null,null,null,null,0,0,0,0,0,0,0,null,0,null,null,0,0]
[363,null,null,null,null,null,null,0,null,null,null,null,null,null,0,0,null,null,0,0,null,null,null,0,0,null,null,null,null,null,null,null,null,null,null,null,0,0,0,0,0,0,0,null,0,null,null,0,0]
[364,null,null,null,null,null,null,0,null,null,null,null,null,null,0,0,null,null,0,0,null,null,null,0,0,null,null,null,null,null,null,null,null,null,null,null,0,0,0,0,0,0,0,null,0,null,null,0,0]
[365,null,null,null,null,null,null,0,null,null,null,null,null,null,0,0,null,null,0,0,null,null,null,0,0,null,null,null,null,null,null,null,null,null,null,null,0,0,0,0,0,0,0,null,0,null,null,0,0]
[366,null,null,null,null,null,null,0,null,null,null,null,null,null,0,0,null,null,0,0,null,null,null,0,0,null,null,null,null,null,null,null,null,null,null,null,0,0,0,0,0,0,0,null,0,null,null,0,0]
[367,null,null,null,null,null,null,0,null,null,null,null,null,null,0,0,null,null,0,0,null,null,null,0,0,null,null,null,null,null,null,null,null,null,null,null,0,0,0,0,0,0,0,null,0,null,null,0,0]
[368,null,null,null,null,null,null,0,null,null,null,null,null,null,0,0,null,null,0,0,null,null,null,0,0,null,null,null,null,null,null,null,null,null,null,null,0,0,0,0,0,0,0,null,0,null,null,0,0]
[369,null,null,null,null,null,null,0,null,null,null,null,null,null,0,0,null,null,0,0,null,null,null,0,0,null,null,null,null,null,null,null,null,null,null,null,0,0,0,0,0,0,0,null,0,null,null,0,0]
[370,null,null,null,null,null,null,0,null,null,null,null,null,null,0,0,null,null,0,0,null,null,null,0,0,null,null,null,null,null,null,null,null,null,null,null,0,0,0,0,0,0,0,null,0,null,null,0,0]
[371,null,null,null,null,null,null,0,null,null,null,null,null,null,0,0,null,null,0,0,null,null,null,0,0,null,null,null,null,null,null,null,null,null,null,null,0,0,0,0,0,0,0,null,0,null,null,0,0]
[372,null,null,null,null,null,null,0,null,null,null,null,null,null,0,0,null,null,0,0,null,null,null,0,0,null,null,null,null,null,null,null,null,null,null,null,0,0,0,0,0,0,0,null,0,null,null,0,0]
[373,null,null,null,null,null,null,0,null,null,null,null,null,null,0,0,null,null,0,0,null,null,null,0,0,null,null,null,null,null,null,null,null,null,null,null,0,0,0,0,0,0,0,null,0,null,null,0,0]
[374,null,null,null,null,null,null,0,null,null,null,null,null,null,0,0,null,null,0,0,null,null,null,0,0,null,null,null,null,null,null,null,null,null,null,null,0,0,0,0,0,0,0,null,0,null,null,0,0]
[375,null,null,null,null,null,null,0,null,null,null,null,null,null,0,0,null,null,0,0,null,null,null,0,0,null,null,null,null,null,null,null,null,null,null,null,0,0,0,0,0,0,0,null,0,null,null,0,0]
[376,null,null,null,null,null,null,0,null,null,null,null,null,null,0,0,null,null,0,0,null,null,null,0,0,null,null,null,null,null,null,null,null,null,null,null,0,0,0,0,0,0,0,null,0,null,null,0,0]
[377,null,null,null,null,null,null,0,null,null,null,null,null,null,0,0,null,null,0,0,null,null,null,0,0,null,null,null,null,null,null,null,null,null,null,null,0,0,0,0,0,0,0,null,0,null,null,0,0]
[378,null,null,null,null,null,null,0,null,null,null,null,null,null,0,0,null,null,0,0,null,null,null,0,0,null,null,null,null,null,null,null,null,null,null,null,0,0,0,0,0,0,0,null,0,null,null,0,0]
[379,null,null,null,null,null,null,0,null,null,null,null,null,null,0,0,null,null,0,0,null,null,null,0,0,null,null,null,null,null,null,null,null,null,null,null,0,0,0,0,0,0,0,null,0,null,null,0,0]
[380,null,null,null,null,null,null,0,null,null,null,null,null,null,0,0,null,null,0,0,null,null,null,0,0,null,null,null,null,null,null,null,null,null,null,null,0,0,0,0,0,0,0,null,0,null,null,0,0]
[381,null,null,null,null,null,null,0,null,null,null,null,null,null,0,0,null,null,0,0,null,null,null,0,0,null,null,null,null,null,null,null,null,null,null,null,0,0,0,0,0,0,0,null,0,null,null,0,0]
[382,null,null,null,null,null,null,0,null,null,null,null,null,null,0,0,null,null,0,0,null,null,null,0,0,null,null,null,null,null,null,null,null,null,null,null,0,0,0,0,0,0,0,null,0,null,null,0,0]
[383,null,null,null,null,null,null,0,null,null,null,null,null,null,0,0,null,null,0,0,null,null,null,0,0,null,null,null,null,null,null,null,null,null,null,null,0,0,0,0,0,0,0,null,0,null,null,0,0]
[384,null,null,null,null,null,null,0,null,null,null,null,null,null,0,0,null,null,0,0,null,null,null,0,0,null,null,null,null,null,null,null,null,null,null,null,0,0,0,0,0,0,0,null,0,null,null,0,0]
[385,null,null,null,null,null,null,0,null,null,null,null,null,null,0,0,null,null,0,0,null,null,null,0,0,null,null,null,null,null,null,null,null,null,null,null,0,0,0,0,0,0,0,null,0,null,null,0,0]
[386,null,null,null,null,null,null,{"$f":"SUM(E389:G389)","v":0},null,null,null,null,null,null,{"$f":"SUM(I389:N389)","v":0},{"$f":"H389-O389","v":0},null,null,{"$f":"SUM(Q389:R389)","v":0},{"$f":"P389-S389","v":0},null,null,null,{"$f":"SUM(U389:W389)","v":0},{"$f":"T389+X389","v":0},null,null,null,null,null,null,null,null,null,null,null,{"$f":"SUM(AA389:AJ389)","v":0},{"$f":"Y389-AK389","v":0},{"$f":"IF(AL389>1000000,(125000+(AL389-1000000)*30%),IF(AL389>500000,(25000+(AL389-500000)*20%),IF(AL389>250000,((AL389-250000)*10%),0)))","v":0},{"$f":"IF(AL389<500001,(MIN(AM389,5000)),0)","v":0},{"$f":"+AM389-AN389","v":0},{"$f":"+AO389*3%","v":0},{"$f":"+AO389+AP389","v":0},null,{"$f":"AQ389-AR389","v":0},null,null,{"$f":"SUM(AT389:AU389)","v":0},{"$f":"AS389-AV389","v":0}]
[387,null,null,null,null,null,null,0,null,null,null,null,null,null,0,0,null,null,0,0,null,null,null,0,0,null,null,null,null,null,null,null,null,null,null,null,0,0,0,0,0,0,0,null,0,null,null,0,0]
[388,null,null,null,null,null,null,0,null,null,null,null,null,null,0,0,null,null,0,0,null,null,null,0,0,null,null,null,null,null,null,null,null,null,null,null,0,0,0,0,0,0,0,null,0,null,null,0,0]
[389,null,null,null,null,null,null,0,null,null,null,null,null,null,0,0,null,null,0,0,null,null,null,0,0,null,null,null,null,null,null,null,null,null,null,null,0,0,0,0,0,0,0,null,0,null,null,0,0]
[390,null,null,null,null,null,null,0,null,null,null,null,null,null,0,0,null,null,0,0,null,null,null,0,0,null,null,null,null,null,null,null,null,null,null,null,0,0,0,0,0,0,0,null,0,null,null,0,0]
[391,null,null,null,null,null,null,0,null,null,null,null,null,null,0,0,null,null,0,0,null,null,null,0,0,null,null,null,null,null,null,null,null,null,null,null,0,0,0,0,0,0,0,null,0,null,null,0,0]
[392,null,null,null,null,null,null,0,null,null,null,null,null,null,0,0,null,null,0,0,null,null,null,0,0,null,null,null,null,null,null,null,null,null,null,null,0,0,0,0,0,0,0,null,0,null,null,0,0]
[393,null,null,null,null,null,null,0,null,null,null,null,null,null,0,0,null,null,0,0,null,null,null,0,0,null,null,null,null,null,null,null,null,null,null,null,0,0,0,0,0,0,0,null,0,null,null,0,0]
[394,null,null,null,null,null,null,0,null,null,null,null,null,null,0,0,null,null,0,0,null,null,null,0,0,null,null,null,null,null,null,null,null,null,null,null,0,0,0,0,0,0,0,null,0,null,null,0,0]
[395,null,null,null,null,null,null,0,null,null,null,null,null,null,0,0,null,null,0,0,null,null,null,0,0,null,null,null,null,null,null,null,null,null,null,null,0,0,0,0,0,0,0,null,0,null,null,0,0]
[396,null,null,null,null,null,null,0,null,null,null,null,null,null,0,0,null,null,0,0,null,null,null,0,0,null,null,null,null,null,null,null,null,null,null,null,0,0,0,0,0,0,0,null,0,null,null,0,0]
[397,null,null,null,null,null,null,0,null,null,null,null,null,null,0,0,null,null,0,0,null,null,null,0,0,null,null,null,null,null,null,null,null,null,null,null,0,0,0,0,0,0,0,null,0,null,null,0,0]
[398,null,null,null,null,null,null,0,null,null,null,null,null,null,0,0,null,null,0,0,null,null,null,0,0,null,null,null,null,null,null,null,null,null,null,null,0,0,0,0,0,0,0,null,0,null,null,0,0]
[399,null,null,null,null,null,null,0,null,null,null,null,null,null,0,0,null,null,0,0,null,null,null,0,0,null,null,null,null,null,null,null,null,null,null,null,0,0,0,0,0,0,0,null,0,null,null,0,0]
[400,null,null,null,null,null,null,0,null,null,null,null,null,null,0,0,null,null,0,0,null,null,null,0,0,null,null,null,null,null,null,null,null,null,null,null,0,0,0,0,0,0,0,null,0,null,null,0,0]
[401,null,null,null,null,null,null,0,null,null,null,null,null,null,0,0,null,null,0,0,null,null,null,0,0,null,null,null,null,null,null,null,null,null,null,null,0,0,0,0,0,0,0,null,0,null,null,0,0]
[402,null,null,null,null,null,null,0,null,null,null,null,null,null,0,0,null,null,0,0,null,null,null,0,0,null,null,null,null,null,null,null,null,null,null,null,0,0,0,0,0,0,0,null,0,null,null,0,0]
[403,null,null,null,null,null,null,0,null,null,null,null,null,null,0,0,null,null,0,0,null,null,null,0,0,null,null,null,null,null,null,null,null,null,null,null,0,0,0,0,0,0,0,null,0,null,null,0,0]
[404,null,null,null,null,null,null,0,null,null,null,null,null,null,0,0,null,null,0,0,null,null,null,0,0,null,null,null,null,null,null,null,null,null,null,null,0,0,0,0,0,0,0,null,0,null,null,0,0]
[405,null,null,null,null,null,null,0,null,null,null,null,null,null,0,0,null,null,0,0,null,null,null,0,0,null,null,null,null,null,null,null,null,null,null,null,0,0,0,0,0,0,0,null,0,null,null,0,0]
[406,null,null,null,null,null,null,0,null,null,null,null,null,null,0,0,null,null,0,0,null,null,null,0,0,null,null,null,null,null,null,null,null,null,null,null,0,0,0,0,0,0,0,null,0,null,null,0,0]
[407,null,null,null,null,null,null,0,null,null,null,null,null,null,0,0,null,null,0,0,null,null,null,0,0,null,null,null,null,null,null,null,null,null,null,null,0,0,0,0,0,0,0,null,0,null,null,0,0]
[408,null,null,null,null,null,null,0,null,null,null,null,null,null,0,0,null,null,0,0,null,null,null,0,0,null,null,null,null,null,null,null,null,null,null,null,0,0,0,0,0,0,0,null,0,null,null,0,0]
[409,null,null,null,null,null,null,0,null,null,null,null,null,null,0,0,null,null,0,0,null,null,null,0,0,null,null,null,null,null,null,null,null,null,null,null,0,0,0,0,0,0,0,null,0,null,null,0,0]
[410,null,null,null,null,null,null,0,null,null,null,null,null,null,0,0,null,null,0,0,null,null,null,0,0,null,null,null,null,null,null,null,null,null,null,null,0,0,0,0,0,0,0,null,0,null,null,0,0]
[411,null,null,null,null,null,null,0,null,null,null,null,null,null,0,0,null,null,0,0,null,null,null,0,0,null,null,null,null,null,null,null,null,null,null,null,0,0,0,0,0,0,0,null,0,null,null,0,0]
[412,null,null,null,null,null,null,0,null,null,null,null,null,null,0,0,null,null,0,0,null,null,null,0,0,null,null,null,null,null,null,null,null,null,null,null,0,0,0,0,0,0,0,null,0,null,null,0,0]
[413,null,null,null,null,null,null,0,null,null,null,null,null,null,0,0,null,null,0,0,null,null,null,0,0,null,null,null,null,null,null,null,null,null,null,null,0,0,0,0,0,0,0,null,0,null,null,0,0]
[414,null,null,null,null,null,null,0,null,null,null,null,null,null,0,0,null,null,0,0,null,null,null,0,0,null,null,null,null,null,null,null,null,null,null,null,0,0,0,0,0,0,0,null,0,null,null,0,0]
[415,null,null,null,null,null,null,0,null,null,null,null,null,null,0,0,null,null,0,0,null,null,null,0,0,null,null,null,null,null,null,null,null,null,null,null,0,0,0,0,0,0,0,null,0,null,null,0,0]
[416,null,null,null,null,null,null,0,null,null,null,null,null,null,0,0,null,null,0,0,null,null,null,0,0,null,null,null,null,null,null,null,null,null,null,null,0,0,0,0,0,0,0,null,0,null,null,0,0]
[417,null,null,null,null,null,null,0,null,null,null,null,null,null,0,0,null,null,0,0,null,null,null,0,0,null,null,null,null,null,null,null,null,null,null,null,0,0,0,0,0,0,0,null,0,null,null,0,0]
[418,null,null,null,null,null,null,0,null,null,null,null,null,null,0,0,null,null,0,0,null,null,null,0,0,null,null,null,null,null,null,null,null,null,null,null,0,0,0,0,0,0,0,null,0,null,null,0,0]
[419,null,null,null,null,null,null,0,null,null,null,null,null,null,0,0,null,null,0,0,null,null,null,0,0,null,null,null,null,null,null,null,null,null,null,null,0,0,0,0,0,0,0,null,0,null,null,0,0]
[420,null,null,null,null,null,null,0,null,null,null,null,null,null,0,0,null,null,0,0,null,null,null,0,0,null,null,null,null,null,null,null,null,null,null,null,0,0,0,0,0,0,0,null,0,null,null,0,0]
[421,null,null,null,null,null,null,0,null,null,null,null,null,null,0,0,null,null,0,0,null,null,null,0,0,null,null,null,null,null,null,null,null,null,null,null,0,0,0,0,0,0,0,null,0,null,null,0,0]
[422,null,null,null,null,null,null,0,null,null,null,null,null,null,0,0,null,null,0,0,null,null,null,0,0,null,null,null,null,null,null,null,null,null,null,null,0,0,0,0,0,0,0,null,0,null,null,0,0]
[423,null,null,null,null,null,null,0,null,null,null,null,null,null,0,0,null,null,0,0,null,null,null,0,0,null,null,null,null,null,null,null,null,null,null,null,0,0,0,0,0,0,0,null,0,null,null,0,0]
[424,null,null,null,null,null,null,0,null,null,null,null,null,null,0,0,null,null,0,0,null,null,null,0,0,null,null,null,null,null,null,null,null,null,null,null,0,0,0,0,0,0,0,null,0,null,null,0,0]
[425,null,null,null,null,null,null,0,null,null,null,null,null,null,0,0,null,null,0,0,null,null,null,0,0,null,null,null,null,null,null,null,null,null,null,null,0,0,0,0,0,0,0,null,0,null,null,0,0]
[426,null,null,null,null,null,null,0,null,null,null,null,null,null,0,0,null,null,0,0,null,null,null,0,0,null,null,null,null,null,null,null,null,null,null,null,0,0,0,0,0,0,0,null,0,null,null,0,0]
[427,null,null,null,null,null,null,0,null,null,null,null,null,null,0,0,null,null,0,0,null,null,null,0,0,null,null,null,null,null,null,null,null,null,null,null,0,0,0,0,0,0,0,null,0,null,null,0,0]
[428,null,null,null,null,null,null,0,null,null,null,null,null,null,0,0,null,null,0,0,null,null,null,0,0,null,null,null,null,null,null,null,null,null,null,null,0,0,0,0,0,0,0,null,0,null,null,0,0]
[429,null,null,null,null,null,null,0,null,null,null,null,null,null,0,0,null,null,0,0,null,null,null,0,0,null,null,null,null,null,null,null,null,null,null,null,0,0,0,0,0,0,0,null,0,null,null,0,0]
[430,null,null,null,null,null,null,0,null,null,null,null,null,null,0,0,null,null,0,0,null,null,null,0,0,null,null,null,null,null,null,null,null,null,null,null,0,0,0,0,0,0,0,null,0,null,null,0,0]
[431,null,null,null,null,null,null,0,null,null,null,null,null,null,0,0,null,null,0,0,null,null,null,0,0,null,null,null,null,null,null,null,null,null,null,null,0,0,0,0,0,0,0,null,0,null,null,0,0]
[432,null,null,null,null,null,null,0,null,null,null,null,null,null,0,0,null,null,0,0,null,null,null,0,0,null,null,null,null,null,null,null,null,null,null,null,0,0,0,0,0,0,0,null,0,null,null,0,0]
[433,null,null,null,null,null,null,0,null,null,null,null,null,null,0,0,null,null,0,0,null,null,null,0,0,null,null,null,null,null,null,null,null,null,null,null,0,0,0,0,0,0,0,null,0,null,null,0,0]
[434,null,null,null,null,null,null,0,null,null,null,null,null,null,0,0,null,null,0,0,null,null,null,0,0,null,null,null,null,null,null,null,null,null,null,null,0,0,0,0,0,0,0,null,0,null,null,0,0]
[435,null,null,null,null,null,null,0,null,null,null,null,null,null,0,0,null,null,0,0,null,null,null,0,0,null,null,null,null,null,null,null,null,null,null,null,0,0,0,0,0,0,0,null,0,null,null,0,0]
[436,null,null,null,null,null,null,0,null,null,null,null,null,null,0,0,null,null,0,0,null,null,null,0,0,null,null,null,null,null,null,null,null,null,null,null,0,0,0,0,0,0,0,null,0,null,null,0,0]
[437,null,null,null,null,null,null,0,null,null,null,null,null,null,0,0,null,null,0,0,null,null,null,0,0,null,null,null,null,null,null,null,null,null,null,null,0,0,0,0,0,0,0,null,0,null,null,0,0]
[438,null,null,null,null,null,null,0,null,null,null,null,null,null,0,0,null,null,0,0,null,null,null,0,0,null,null,null,null,null,null,null,null,null,null,null,0,0,0,0,0,0,0,null,0,null,null,0,0]
[439,null,null,null,null,null,null,0,null,null,null,null,null,null,0,0,null,null,0,0,null,null,null,0,0,null,null,null,null,null,null,null,null,null,null,null,0,0,0,0,0,0,0,null,0,null,null,0,0]
[440,null,null,null,null,null,null,0,null,null,null,null,null,null,0,0,null,null,0,0,null,null,null,0,0,null,null,null,null,null,null,null,null,null,null,null,0,0,0,0,0,0,0,null,0,null,null,0,0]
[441,null,null,null,null,null,null,0,null,null,null,null,null,null,0,0,null,null,0,0,null,null,null,0,0,null,null,null,null,null,null,null,null,null,null,null,0,0,0,0,0,0,0,null,0,null,null,0,0]
[442,null,null,null,null,null,null,0,null,null,null,null,null,null,0,0,null,null,0,0,null,null,null,0,0,null,null,null,null,null,null,null,null,null,null,null,0,0,0,0,0,0,0,null,0,null,null,0,0]
[443,null,null,null,null,null,null,0,null,null,null,null,null,null,0,0,null,null,0,0,null,null,null,0,0,null,null,null,null,null,null,null,null,null,null,null,0,0,0,0,0,0,0,null,0,null,null,0,0]
[444,null,null,null,null,null,null,0,null,null,null,null,null,null,0,0,null,null,0,0,null,null,null,0,0,null,null,null,null,null,null,null,null,null,null,null,0,0,0,0,0,0,0,null,0,null,null,0,0]
[445,null,null,null,null,null,null,0,null,null,null,null,null,null,0,0,null,null,0,0,null,null,null,0,0,null,null,null,null,null,null,null,null,null,null,null,0,0,0,0,0,0,0,null,0,null,null,0,0]
[446,null,null,null,null,null,null,0,null,null,null,null,null,null,0,0,null,null,0,0,null,null,null,0,0,null,null,null,null,null,null,null,null,null,null,null,0,0,0,0,0,0,0,null,0,null,null,0,0]
[447,null,null,null,null,null,null,0,null,null,null,null,null,null,0,0,null,null,0,0,null,null,null,0,0,null,null,null,null,null,null,null,null,null,null,null,0,0,0,0,0,0,0,null,0,null,null,0,0]
[448,null,null,null,null,null,null,0,null,null,null,null,null,null,0,0,null,null,0,0,null,null,null,0,0,null,null,null,null,null,null,null,null,null,null,null,0,0,0,0,0,0,0,null,0,null,null,0,0]
[449,null,null,null,null,null,null,0,null,null,null,null,null,null,0,0,null,null,0,0,null,null,null,0,0,null,null,null,null,null,null,null,null,null,null,null,0,0,0,0,0,0,0,null,0,null,null,0,0]
[450,null,null,null,null,null,null,{"$f":"SUM(E453:G453)","v":0},null,null,null,null,null,null,{"$f":"SUM(I453:N453)","v":0},{"$f":"H453-O453","v":0},null,null,{"$f":"SUM(Q453:R453)","v":0},{"$f":"P453-S453","v":0},null,null,null,{"$f":"SUM(U453:W453)","v":0},{"$f":"T453+X453","v":0},null,null,null,null,null,null,null,null,null,null,null,{"$f":"SUM(AA453:AJ453)","v":0},{"$f":"Y453-AK453","v":0},{"$f":"IF(AL453>1000000,(125000+(AL453-1000000)*30%),IF(AL453>500000,(25000+(AL453-500000)*20%),IF(AL453>250000,((AL453-250000)*10%),0)))","v":0},{"$f":"IF(AL453<500001,(MIN(AM453,5000)),0)","v":0},{"$f":"+AM453-AN453","v":0},{"$f":"+AO453*3%","v":0},{"$f":"+AO453+AP453","v":0},null,{"$f":"AQ453-AR453","v":0},null,null,{"$f":"SUM(AT453:AU453)","v":0},{"$f":"AS453-AV453","v":0}]
[451,null,null,null,null,null,null,0,null,null,null,null,null,null,0,0,null,null,0,0,null,null,null,0,0,null,null,null,null,null,null,null,null,null,null,null,0,0,0,0,0,0,0,null,0,null,null,0,0]
[452,null,null,null,null,null,null,0,null,null,null,null,null,null,0,0,null,null,0,0,null,null,null,0,0,null,null,null,null,null,null,null,null,null,null,null,0,0,0,0,0,0,0,null,0,null,null,0,0]
[453,null,null,null,null,null,null,0,null,null,null,null,null,null,0,0,null,null,0,0,null,null,null,0,0,null,null,null,null,null,null,null,null,null,null,null,0,0,0,0,0,0,0,null,0,null,null,0,0]
[454,null,null,null,null,null,null,0,null,null,null,null,null,null,0,0,null,null,0,0,null,null,null,0,0,null,null,null,null,null,null,null,null,null,null,null,0,0,0,0,0,0,0,null,0,null,null,0,0]
[455,null,null,null,null,null,null,0,null,null,null,null,null,null,0,0,null,null,0,0,null,null,null,0,0,null,null,null,null,null,null,null,null,null,null,null,0,0,0,0,0,0,0,null,0,null,null,0,0]
[456,null,null,null,null,null,null,0,null,null,null,null,null,null,0,0,null,null,0,0,null,null,null,0,0,null,null,null,null,null,null,null,null,null,null,null,0,0,0,0,0,0,0,null,0,null,null,0,0]
[457,null,null,null,null,null,null,0,null,null,null,null,null,null,0,0,null,null,0,0,null,null,null,0,0,null,null,null,null,null,null,null,null,null,null,null,0,0,0,0,0,0,0,null,0,null,null,0,0]
[458,null,null,null,null,null,null,0,null,null,null,null,null,null,0,0,null,null,0,0,null,null,null,0,0,null,null,null,null,null,null,null,null,null,null,null,0,0,0,0,0,0,0,null,0,null,null,0,0]
[459,null,null,null,null,null,null,0,null,null,null,null,null,null,0,0,null,null,0,0,null,null,null,0,0,null,null,null,null,null,null,null,null,null,null,null,0,0,0,0,0,0,0,null,0,null,null,0,0]
[460,null,null,null,null,null,null,0,null,null,null,null,null,null,0,0,null,null,0,0,null,null,null,0,0,null,null,null,null,null,null,null,null,null,null,null,0,0,0,0,0,0,0,null,0,null,null,0,0]
[461,null,null,null,null,null,null,0,null,null,null,null,null,null,0,0,null,null,0,0,null,null,null,0,0,null,null,null,null,null,null,null,null,null,null,null,0,0,0,0,0,0,0,null,0,null,null,0,0]
[462,null,null,null,null,null,null,0,null,null,null,null,null,null,0,0,null,null,0,0,null,null,null,0,0,null,null,null,null,null,null,null,null,null,null,null,0,0,0,0,0,0,0,null,0,null,null,0,0]
[463,null,null,null,null,null,null,0,null,null,null,null,null,null,0,0,null,null,0,0,null,null,null,0,0,null,null,null,null,null,null,null,null,null,null,null,0,0,0,0,0,0,0,null,0,null,null,0,0]
[464,null,null,null,null,null,null,0,null,null,null,null,null,null,0,0,null,null,0,0,null,null,null,0,0,null,null,null,null,null,null,null,null,null,null,null,0,0,0,0,0,0,0,null,0,null,null,0,0]
[465,null,null,null,null,null,null,0,null,null,null,null,null,null,0,0,null,null,0,0,null,null,null,0,0,null,null,null,null,null,null,null,null,null,null,null,0,0,0,0,0,0,0,null,0,null,null,0,0]
[466,null,null,null,null,null,null,0,null,null,null,null,null,null,0,0,null,null,0,0,null,null,null,0,0,null,null,null,null,null,null,null,null,null,null,null,0,0,0,0,0,0,0,null,0,null,null,0,0]
[467,null,null,null,null,null,null,0,null,null,null,null,null,null,0,0,null,null,0,0,null,null,null,0,0,null,null,null,null,null,null,null,null,null,null,null,0,0,0,0,0,0,0,null,0,null,null,0,0]
[468,null,null,null,null,null,null,0,null,null,null,null,null,null,0,0,null,null,0,0,null,null,null,0,0,null,null,null,null,null,null,null,null,null,null,null,0,0,0,0,0,0,0,null,0,null,null,0,0]
[469,null,null,null,null,null,null,0,null,null,null,null,null,null,0,0,null,null,0,0,null,null,null,0,0,null,null,null,null,null,null,null,null,null,null,null,0,0,0,0,0,0,0,null,0,null,null,0,0]
[470,null,null,null,null,null,null,0,null,null,null,null,null,null,0,0,null,null,0,0,null,null,null,0,0,null,null,null,null,null,null,null,null,null,null,null,0,0,0,0,0,0,0,null,0,null,null,0,0]
[471,null,null,null,null,null,null,0,null,null,null,null,null,null,0,0,null,null,0,0,null,null,null,0,0,null,null,null,null,null,null,null,null,null,null,null,0,0,0,0,0,0,0,null,0,null,null,0,0]
[472,null,null,null,null,null,null,0,null,null,null,null,null,null,0,0,null,null,0,0,null,null,null,0,0,null,null,null,null,null,null,null,null,null,null,null,0,0,0,0,0,0,0,null,0,null,null,0,0]
[473,null,null,null,null,null,null,0,null,null,null,null,null,null,0,0,null,null,0,0,null,null,null,0,0,null,null,null,null,null,null,null,null,null,null,null,0,0,0,0,0,0,0,null,0,null,null,0,0]
[474,null,null,null,null,null,null,0,null,null,null,null,null,null,0,0,null,null,0,0,null,null,null,0,0,null,null,null,null,null,null,null,null,null,null,null,0,0,0,0,0,0,0,null,0,null,null,0,0]
[475,null,null,null,null,null,null,0,null,null,null,null,null,null,0,0,null,null,0,0,null,null,null,0,0,null,null,null,null,null,null,null,null,null,null,null,0,0,0,0,0,0,0,null,0,null,null,0,0]
[476,null,null,null,null,null,null,0,null,null,null,null,null,null,0,0,null,null,0,0,null,null,null,0,0,null,null,null,null,null,null,null,null,null,null,null,0,0,0,0,0,0,0,null,0,null,null,0,0]
[477,null,null,null,null,null,null,0,null,null,null,null,null,null,0,0,null,null,0,0,null,null,null,0,0,null,null,null,null,null,null,null,null,null,null,null,0,0,0,0,0,0,0,null,0,null,null,0,0]
[478,null,null,null,null,null,null,0,null,null,null,null,null,null,0,0,null,null,0,0,null,null,null,0,0,null,null,null,null,null,null,null,null,null,null,null,0,0,0,0,0,0,0,null,0,null,null,0,0]
[479,null,null,null,null,null,null,0,null,null,null,null,null,null,0,0,null,null,0,0,null,null,null,0,0,null,null,null,null,null,null,null,null,null,null,null,0,0,0,0,0,0,0,null,0,null,null,0,0]
[480,null,null,null,null,null,null,0,null,null,null,null,null,null,0,0,null,null,0,0,null,null,null,0,0,null,null,null,null,null,null,null,null,null,null,null,0,0,0,0,0,0,0,null,0,null,null,0,0]
[481,null,null,null,null,null,null,0,null,null,null,null,null,null,0,0,null,null,0,0,null,null,null,0,0,null,null,null,null,null,null,null,null,null,null,null,0,0,0,0,0,0,0,null,0,null,null,0,0]
[482,null,null,null,null,null,null,0,null,null,null,null,null,null,0,0,null,null,0,0,null,null,null,0,0,null,null,null,null,null,null,null,null,null,null,null,0,0,0,0,0,0,0,null,0,null,null,0,0]
[483,null,null,null,null,null,null,0,null,null,null,null,null,null,0,0,null,null,0,0,null,null,null,0,0,null,null,null,null,null,null,null,null,null,null,null,0,0,0,0,0,0,0,null,0,null,null,0,0]
[484,null,null,null,null,null,null,0,null,null,null,null,null,null,0,0,null,null,0,0,null,null,null,0,0,null,null,null,null,null,null,null,null,null,null,null,0,0,0,0,0,0,0,null,0,null,null,0,0]
[485,null,null,null,null,null,null,0,null,null,null,null,null,null,0,0,null,null,0,0,null,null,null,0,0,null,null,null,null,null,null,null,null,null,null,null,0,0,0,0,0,0,0,null,0,null,null,0,0]
[486,null,null,null,null,null,null,0,null,null,null,null,null,null,0,0,null,null,0,0,null,null,null,0,0,null,null,null,null,null,null,null,null,null,null,null,0,0,0,0,0,0,0,null,0,null,null,0,0]
[487,null,null,null,null,null,null,0,null,null,null,null,null,null,0,0,null,null,0,0,null,null,null,0,0,null,null,null,null,null,null,null,null,null,null,null,0,0,0,0,0,0,0,null,0,null,null,0,0]
[488,null,null,null,null,null,null,0,null,null,null,null,null,null,0,0,null,null,0,0,null,null,null,0,0,null,null,null,null,null,null,null,null,null,null,null,0,0,0,0,0,0,0,null,0,null,null,0,0]
[489,null,null,null,null,null,null,0,null,null,null,null,null,null,0,0,null,null,0,0,null,null,null,0,0,null,null,null,null,null,null,null,null,null,null,null,0,0,0,0,0,0,0,null,0,null,null,0,0]
[490,null,null,null,null,null,null,0,null,null,null,null,null,null,0,0,null,null,0,0,null,null,null,0,0,null,null,null,null,null,null,null,null,null,null,null,0,0,0,0,0,0,0,null,0,null,null,0,0]
[491,null,null,null,null,null,null,0,null,null,null,null,null,null,0,0,null,null,0,0,null,null,null,0,0,null,null,null,null,null,null,null,null,null,null,null,0,0,0,0,0,0,0,null,0,null,null,0,0]
[492,null,null,null,null,null,null,0,null,null,null,null,null,null,0,0,null,null,0,0,null,null,null,0,0,null,null,null,null,null,null,null,null,null,null,null,0,0,0,0,0,0,0,null,0,null,null,0,0]
[493,null,null,null,null,null,null,0,null,null,null,null,null,null,0,0,null,null,0,0,null,null,null,0,0,null,null,null,null,null,null,null,null,null,null,null,0,0,0,0,0,0,0,null,0,null,null,0,0]
[494,null,null,null,null,null,null,0,null,null,null,null,null,null,0,0,null,null,0,0,null,null,null,0,0,null,null,null,null,null,null,null,null,null,null,null,0,0,0,0,0,0,0,null,0,null,null,0,0]
[495,null,null,null,null,null,null,0,null,null,null,null,null,null,0,0,null,null,0,0,null,null,null,0,0,null,null,null,null,null,null,null,null,null,null,null,0,0,0,0,0,0,0,null,0,null,null,0,0]
[496,null,null,null,null,null,null,0,null,null,null,null,null,null,0,0,null,null,0,0,null,null,null,0,0,null,null,null,null,null,null,null,null,null,null,null,0,0,0,0,0,0,0,null,0,null,null,0,0]
[497,null,null,null,null,null,null,0,null,null,null,null,null,null,0,0,null,null,0,0,null,null,null,0,0,null,null,null,null,null,null,null,null,null,null,null,0,0,0,0,0,0,0,null,0,null,null,0,0]
[498,null,null,null,null,null,null,0,null,null,null,null,null,null,0,0,null,null,0,0,null,null,null,0,0,null,null,null,null,null,null,null,null,null,null,null,0,0,0,0,0,0,0,null,0,null,null,0,0]
[499,null,null,null,null,null,null,0,null,null,null,null,null,null,0,0,null,null,0,0,null,null,null,0,0,null,null,null,null,null,null,null,null,null,null,null,0,0,0,0,0,0,0,null,0,null,null,0,0]
[500,null,null,null,null,null,null,0,null,null,null,null,null,null,0,0,null,null,0,0,null,null,null,0,0,null,null,null,null,null,null,null,null,null,null,null,0,0,0,0,0,0,0,null,0,null,null,0,0]

{"sheet":"Form 16 part B","index":3,"n_rows":89,"n_cols":18,"rows_kept":89,"cut":false,"hidden":false,"merged":[[85,14,85,15],[86,14,86,15],[87,14,87,15],[88,14,88,15],[65,1,65,2],[65,3,65,5],[67,1,67,5],[83,7,83,13],[83,14,83,15],[84,14,84,15],[64,3,64,5],[6,1,6,5],[7,1,7,5],[9,1,9,2],[10,1,10,2],[11,1,11,2],[12,1,12,2],[13,1,13,2],[14,1,14,2],[58,1,58,5],[59,1,61,5],[62,3,63,5]]}
[]
[null,"Select Sl No.",1]
[null,"From:",1]
[null,"To:",2]
[]
[null,{"$f":"VLOOKUP($C$2,'Data Sheet for Part B'!$A:$AW,3,0)","v":"Mr. A"},{"$f":"VLOOKUP($C$2,'Data Sheet for Part B'!$A:$AW,2,0)","v":2225},{"$f":"VLOOKUP($C$2,'Data Sheet for Part B'!$A:$AW,4,0)","v":"asdafq5345"},null,{"$f":"\"AY \"&'Company Master'!C14","v":"AY 2017-18"}]
[null,"PART B (Annexure)"]
[null,"Details of Salary Paid and any other income and tax deducted"]
[null,null,null,"Rs.","Rs.","Rs."]
[null,"1.  Gross Salary"]
[null,"(a) Salary as per provisions contained in sec. 17(1)",null,{"$f":"VLOOKUP($C$2,'Data Sheet for Part B'!$A:$AW,H11,0)","v":1233440},null,null,null,5]
[null,"(b) Value of perquisites u/s 17(2)",null,{"$f":"VLOOKUP($C$2,'Data Sheet for Part B'!$A:$AW,H12,0)","v":1212},null,null,null,6]
[null,"(c) Profits in lieu of salary under section 17(3)",null,{"$f":"VLOOKUP($C$2,'Data Sheet for Part B'!$A:$AW,H13,0)","v":111},null,null,null,7]
[null,"(d) Total",null,null,{"$f":"SUM(D11:D13)","v":1234763}]
[]
[null,"2. Less: Allowance to the extent exempt U/s 10"]
[null,"a) Conveyance Allowance",null,{"$f":"VLOOKUP($C$2,'Data Sheet for Part B'!$A:$AW,H17,0)","v":11},null,null,null,9]
[null,"b) HRA Exemption",null,{"$f":"VLOOKUP($C$2,'Data Sheet for Part B'!$A:$AW,H18,0)","v":22},null,null,null,10]
[null,"c) Children Education",null,{"$f":"VLOOKUP($C$2,'Data Sheet for Part B'!$A:$AW,H19,0)","v":33},null,null,null,11]
[null,"d) Children Hostel",null,{"$f":"VLOOKUP($C$2,'Data Sheet for Part B'!$A:$AW,H20,0)","v":44},null,null,null,12]
[null,"e) Medical Reimbursement",null,{"$f":"VLOOKUP($C$2,'Data Sheet for Part B'!$A:$AW,H21,0)","v":55},null,null,null,13]
[null,"f) Leave travel allowance",null,{"$f":"VLOOKUP($C$2,'Data Sheet for Part B'!$A:$AW,H22,0)","v":66},null,null,null,14]
[null,"g) Total",null,null,{"$f":"SUM(D17:D22)","v":231}]
[null,"3. Balance (1-2)",null,null,{"$f":"+E14-E23","v":1234532}]
[null,"4. Deductions :"]
[null,"     (a) Entertainment allowance",null,{"$f":"VLOOKUP($C$2,'Data Sheet for Part B'!$A:$AW,H26,0)","v":20},null,null,null,17]
[null,"     (b) Tax on employment",null,{"$f":"VLOOKUP($C$2,'Data Sheet for Part B'!$A:$AW,H27,0)","v":30},null,null,null,18]
[null,"5. Aggregate of 4(a) and (b)",null,null,{"$f":"SUM(D26:D27)","v":50}]
[null,"6. Income chargebale under the head 'Salaries' (3-5)",null,null,null,{"$f":"+E24-E28","v":1234482}]
[null,"7. Add: Any other income reported by the employee"]
[null,"a) Income from Previous Employeement",null,{"$f":"VLOOKUP($C$2,'Data Sheet for Part B'!$A:$AW,H31,0)","v":1111},null,null,null,21]
[null,"b) Income from House Property",null,{"$f":"VLOOKUP($C$2,'Data Sheet for Part B'!$A:$AW,H32,0)","v":22221},null,null,null,22]
[null,"c) Income from Other Sources",null,{"$f":"VLOOKUP($C$2,'Data Sheet for Part B'!$A:$AW,H33,0)","v":31313},null,null,null,23]
[null,"d)Total",null,null,{"$f":"SUM(D31:D33)","v":54645}]
[null,"8. Gross Total income (6+7)",null,null,null,{"$f":"+F29+E34","v":1289127}]
[null,"9. Deductions under Chapter VI A "]
[null,null,null,null,"Gross Amount","Deductible Amount"]
[null,"     (A) sections 80C, 80CCC and 80CCD"]
[null,"i) PF Contribution (80C)",null,null,{"$f":"VLOOKUP($C$2,'Data Sheet for Part B'!$A:$AW,H39,0)","v":1},null,null,27]
[null,"ii) Other Deductions under 80C, 80CCC& 80CCD",null,null,{"$f":"VLOOKUP($C$2,'Data Sheet for Part B'!$A:$AW,H40,0)","v":2},{"$f":"SUM(E39:E40)","v":3},null,28]
[null,"    (B) other sections under Chapter VI-A"]
[null,"80CCD (1b) (Contribution to NPS)",null,null,{"$f":"VLOOKUP($C$2,'Data Sheet for Part B'!$A:$AW,H42,0)","v":3},{"$f":"+E42","v":3},null,29]
[null,"80CCG (RGESS)",null,null,{"$f":"VLOOKUP($C$2,'Data Sheet for Part B'!$A:$AW,H43,0)","v":4},4,null,30]
[null,"80D (Medical Insurance)",null,null,{"$f":"VLOOKUP($C$2,'Data Sheet for Part B'!$A:$AW,H44,0)","v":5},5,null,31]
[null,"80DD (Rehabilitation of Handicapped Dependent)",null,null,{"$f":"VLOOKUP($C$2,'Data Sheet for Part B'!$A:$AW,H45,0)","v":6},6,null,32]
[null,"80DDB (Medical Expenditure on Self or Dependent)",null,null,{"$f":"VLOOKUP($C$2,'Data Sheet for Part B'!$A:$AW,H46,0)","v":7},7,null,33]
[null,"80E (Interest on Loan for Higher Studies)",null,null,{"$f":"VLOOKUP($C$2,'Data Sheet for Part B'!$A:$AW,H47,0)","v":8},8,null,34]
[null,"80TTA (Interest on Savings account)",null,null,{"$f":"VLOOKUP($C$2,'Data Sheet for Part B'!$A:$AW,H48,0)","v":9},{"$f":"+E48","v":9},null,35]
[null,"80U (Physical Disability)",null,null,{"$f":"VLOOKUP($C$2,'Data Sheet for Part B'!$A:$AW,H49,0)","v":10},10,null,36]
[null,"10. Aggregate of deductible amount under Chapter VI A",null,null,null,{"$f":"SUM(F40:F49)","v":55}]
[null,"11. Total Income (8-10)",null,null,null,{"$f":"MAX((F35-F50),0)","v":1289072}]
[null,"12. Tax on total income",null,null,null,{"$f":"VLOOKUP($C$2,'Data Sheet for Part B'!$A:$AW,H52,0)","v":211721.59999999998},null,39]
[null,"13. Rebate U/S 87A",null,null,null,{"$f":"VLOOKUP($C$2,'Data Sheet for Part B'!$A:$AW,H53,0)","v":0},null,40]
[null,"14. Tax Payable after rebate",null,null,null,{"$f":"VLOOKUP($C$2,'Data Sheet for Part B'!$A:$AW,H54,0)","v":211721.59999999998},null,41]
[null,"15. Education cess @ 3% ",null,null,null,{"$f":"VLOOKUP($C$2,'Data Sheet for Part B'!$A:$AW,H55,0)","v":6351.6479999999992},null,42]
[null,"16. Tax Payable ",null,null,null,{"$f":"VLOOKUP($C$2,'Data Sheet for Part B'!$A:$AW,H56,0)","v":218073.24799999996},null,43]
[null,"17. Less: Relief under section 89 (attach details)",null,null,null,{"$f":"VLOOKUP($C$2,'Data Sheet for Part B'!$A:$AW,H57,0)","v":0},null,44]
[null,"18. Tax Payable (15-16)",null,null,null,{"$f":"VLOOKUP($C$2,'Data Sheet for Part B'!$A:$AW,H58,0)","v":218073.24799999996},null,45]
[null,"Verification"]
[null,{"$f":"CONCATENATE(\"I, \"&'Company Master'!C17& \" son of \"&'Company Master'!C18&\" working in the capacity of \"&'Company Master'!C19&\" do hereby certify that the information given above is true, complete and correct and is based on the books of account, documents,TDS statements, and other available records.\")","v":"I, My Name son of Father Name working in the capacity of Director do hereby certify that the information given above is true, complete and correct and is based on the books of account, documents,TDS statements, and other available records."}]
[]
[]
[null,"Place:",{"$f":"'Company Master'!C20","v":"Bangalore"}]
[null,"Date:",{"$f":"'Company Master'!C21","v":"2017-05-30"}]
[null,null,null,"Signature of person responsible for deduction of tax"]
[null,{"$f":"\"Designation: \"&'Company Master'!C19","v":"Designation: Director"},null,{"$f":"\"Full Name: \"&'Company Master'!C17","v":"Full Name: My Name"}]
[]
[null,"Tax Deducted Summary"]
[]
[]
[]
[]
[]
[]
[]
[]
[]
[]
[]
[]
[]
[]
[]
[null,null,null,null,null,null,"Sl No.","Particulars",null,null,null,null,null,null,"Amount in Rs."]
[null,null,null,null,null,null,1,"Tax Payable as per Part -B",null,null,null,null,null,null,{"$f":"F58","v":218073.24799999996}]
[null,null,null,null,null,null,2,"Tax deducted at current employeement",null,null,null,null,null,null,{"$f":"VLOOKUP($C$2,'Data Sheet for Part B'!$A:$AW,R86,0)","v":0},null,null,46]
[null,null,null,null,null,null,3,"Tax deducted by others",null,null,null,null,null,null,{"$f":"VLOOKUP($C$2,'Data Sheet for Part B'!$A:$AW,R87,0)","v":0},null,null,47]
[null,null,null,null,null,null,4,"Total tax deducted",null,null,null,null,null,null,{"$f":"O86+O87","v":0},{"$error":"#N/A"}]
[null,null,null,null,null,null,5,"Net tax payable /(Refundable)",null,null,null,null,null,null,{"$f":"O85-O88","v":218073.24799999996},{"$error":"#N/A"}]

{"sheet":"Form 12BA","index":4,"n_rows":70,"n_cols":26,"rows_kept":70,"cut":false,"hidden":false,"merged":[[67,0,68,2],[67,3,68,9],[67,10,68,24],[69,0,69,2],[69,3,69,9],[69,13,69,24],[55,0,55,1],[55,2,55,20],[55,21,55,24],[57,0,57,24],[59,0,62,24],[64,0,66,2],[64,3,66,9],[64,10,66,24],[53,0,53,1],[53,2,53,20],[53,21,53,24],[54,0,54,1],[54,2,54,20],[54,21,54,24],[51,0,51,1],[51,2,51,20],[51,21,51,24],[52,0,52,1],[52,2,52,20],[52,21,52,24],[49,0,49,1],[49,2,49,12],[49,13,49,16],[49,17,49,20],[49,21,49,24],[50,0,50,24],[47,0,47,1],[47,2,47,12],[47,13,47,16],[47,17,47,20],[47,21,47,24],[48,0,48,1],[48,2,48,12],[48,13,48,16],[48,17,48,20],[48,21,48,24],[45,0,45,1],[45,2,45,12],[45,13,45,16],[45,17,45,20],[45,21,45,24],[46,0,46,1],[46,2,46,12],[46,13,46,16],[46,17,46,20],[46,21,46,24],[43,0,43,1],[43,2,43,12],[43,13,43,16],[43,17,43,20],[43,21,43,24],[44,0,44,1],[44,2,44,12],[44,13,44,16],[44,17,44,20],[44,21,44,24],[41,0,41,1],[41,2,41,12],[41,13,41,16],[41,17,41,20],[41,21,41,24],[42,0,42,1],[42,2,42,12],[42,13,42,16],[42,17,42,20],[42,21,42,24],[39,0,39,1],[39,2,39,12],[39,13,39,16],[39,17,39,20],[39,21,39,24],[40,0,40,1],[40,2,40,12],[40,13,40,16],[40,17,40,20],[40,21,40,24],[37,0,37,1],[37,2,37,12],[37,13,37,16],[37,17,37,20],[37,21,37,24],[38,0,38,1],[38,2,38,12],[38,13,38,16],[38,17,38,20],[38,21,38,24],[35,0,35,1],[35,2,35,12],[35,13,35,16],[35,17,35,20],[35,21,35,24],[36,0,36,1],[36,2,36,12],[36,13,36,16],[36,17,36,20],[36,21,36,24],[33,0,33,1],[33,2,33,12],[33,13,33,16],[33,17,33,20],[33,21,33,24],[34,0,34,1],[34,2,34,12],[34,13,34,16],[34,17,34,20],[34,21,34,24],[31,0,31,1],[31,2,31,12],[31,13,31,16],[31,17,31,20],[31,21,31,24],[32,0,32,1],[32,2,32,12],[32,13,32,16],[32,17,32,20],[32,21,32,24],[28,2,28,12],[29,2,29,12],[30,2,30,12],[30,13,30,16],[30,17,30,20],[30,21,30,24],[24,1,24,10],[25,1,25,10],[26,1,26,24],[27,0,30,1],[27,2,27,12],[27,13,29,16],[27,17,29,20],[27,21,29,24],[25,11,25,24],[24,11,24,14],[22,1,22,10],[22,11,22,24],[23,1,23,10],[23,11,23,24],[18,1,18,10],[18,11,18,24],[19,1,19,10],[20,1,20,10],[20,11,20,24],[19,11,19,24],[15,1,15,10],[16,1,16,10],[17,1,17,10],[13,11,13,24],[14,11,14,24],[15,11,15,24],[16,11,16,24],[21,1,21,10],[21,11,21,24],[5,6,5,24],[8,0,8,24],[9,0,9,24],[10,0,10,24],[11,0,11,24],[12,0,12,10],[12,11,12,24],[13,1,13,10],[14,1,14,10]]}
[]
[null,"Select Sl. No.",null,null,null,1]
[]
[]
[]
["Original",null,null,null,24]
[]
[]
["FORM No. 12 BA"]
["[See rule 26A(2) (b)]"]
["Statement showing particulars of perquisites, other fringe benefits or"]
["amenities and profits in lieu of salary with value thereof"]
[]
[1," Name and address of employer:",null,null,null,null,null,null,null,null,null,{"$f":"'Company Master'!C7","v":"Excelhub.org"}]
[null,null,null,null,null,null,null,null,null,null,null,{"$f":"'Company Master'!C8","v":"No. 1, New address"}]
[null,null,null,null,null,null,null,null,null,null,null,{"$f":"'Company Master'!C9","v":"New road,"}]
[null,null,null,null,null,null,null,null,null,null,null,{"$f":"'Company Master'!C10","v":"New town- 560001"}]
[]
[2,"TAN:",null,null,null,null,null,null,null,null,null,{"$f":"'Company Master'!C12","v":"BBBBB1234G"}]
[3,"TDS Assessment Range of the employer:",null,null,null,null,null,null,null,null,null,{"$f":"'Company Master'!C11","v":"BLR, 17 D"}]
[4,"Name, designation and PAN of employee:",null,null,null,null,null,null,null,null,null,{"$f":"VLOOKUP($F$2,'Data Sheet for Part B'!$A:$O,3,0)&\" - \"&VLOOKUP($F$2,'Data Sheet for Part B'!$A:$O,4,0)","v":"Mr. A - asdafq5345"},null,null,null,null,null,null,null,null,null,null,null,null,null," , "]
[5,"Is the employee a director or a person with "]
[null,"substantial interest in the Company",null,null,null,null,null,null,null,null,null,"No"]
[6,"Income under the head “Salaries” of the "]
[null,"employee ( other than from perquisites):",null,null,null,null,null,null,null,null,null,{"$f":"VLOOKUP($F$2,'Data Sheet for Part B'!$A:$O,5,0)","v":1233440}]
[7,"Financial Year:",null,null,null,null,null,null,null,null,null,{"$f":"'Company Master'!C13","v":"2016-17"}]
[8,"Valuation of Perquisites:"]
["Sl. No.",null,"Nature of perquisite",null,null,null,null,null,null,null,null,null,null,"Value of perquisite as per rules",null,null,null," Amount, if any recovered from the employee",null,null,null,"Amount perquisite chargeable to tax Col.(3) – Col.(4)"]
[null,null," (See rule 3)"]
[]
[null,null,null,null,null,null,null,null,null,null,null,null,null,"Rs.",null,null,null,"Rs.",null,null,null,"Rs."]
[1,null,"Accommodation",null,null,null,null,null,null,null,null,null,null,null,null,null,null,null,null,null,null,{"$f":"N32-R32","v":0}]
[2,null,"Cars/Other automotive",null,null,null,null,null,null,null,null,null,null,null,null,null,null,null,null,null,null,{"$f":"N33-R33","v":0}]
[3,null,"Sweeper, gardener, watchman or personal attendant",null,null,null,null,null,null,null,null,null,null,null,null,null,null,null,null,null,null,0]
[4,null,"Gas, electricity, water",null,null,null,null,null,null,null,null,null,null,null,null,null,null,null,null,null,null,0]
[5,null,"Interest free or concessional loans",null,null,null,null,null,null,null,null,null,null,null,null,null,null,null,null,null,null,0]
[6,null,"Holiday expenses",null,null,null,null,null,null,null,null,null,null,null,null,null,null,null,null,null,null,0]
[7,null,"Free or concessional travel",null,null,null,null,null,null,null,null,null,null,null,null,null,null,null,null,null,null,0]
[8,null,"Free meals",null,null,null,null,null,null,null,null,null,null,null,null,null,null,null,null,null,null,0]
[9,null,"Free education",null,null,null,null,null,null,null,null,null,null,null,null,null,null,null,null,null,null,0]
[10,null,"Gifts, vouchers, etc.",null,null,null,null,null,null,null,null,null,null,null,null,null,null,null,null,null,null,0]
[11,null,"Credit card expenses",null,null,null,null,null,null,null,null,null,null,null,null,null,null,null,null,null,null,0]
[12,null,"Club expenses",null,null,null,null,null,null,null,null,null,null,null,null,null,null,null,null,null,null,0]
[13,null,"Use of movable assets by employees",null,null,null,null,null,null,null,null,null,null,null,null,null,null,null,null,null,null,0]
[14,null,"Transfer of assets to employees",null,null,null,null,null,null,null,null,null,null,null,null,null,null,null,null,null,null,0]
[15,null,"Value of any other benefit / amenity / service / privilege",null,null,null,null,null,null,null,null,null,null,null,null,null,null,null,null,null,null,0]
[16,null,"Stock options ( non-qualified options)",null,null,null,null,null,null,null,null,null,null,null,null,null,null,null,null,null,null,0]
[17,null,"Other benefits or amenities",null,null,null,null,null,null,null,null,null,null,null,null,null,null,null,null,null,null,0]
[18,null,"Total value of perquisites",null,null,null,null,null,null,null,null,null,null,null,null,null,null,null,null,null,null,0]
[19,null,"Total value of Profits in lieu of salary as per section 17(3)"]
[]
[9,null,"Details of tax,-"]
["(a)",null,"Tax deducted from salary of the employee under section 192 (1)",null,null,null,null,null,null,null,null,null,null,null,null,null,null,null,null,null,null,{"$f":"VLOOKUP($F$2,'Data Sheet for Part B'!$A:$AW,46,0)","v":0}]
["(b)",null,"Tax paid by employer on behalf of the employee under section 192(1A)",null,null,null,null,null,null,null,null,null,null,null,null,null,null,null,null,null,null,0]
["(c)",null,"Total tax paid",null,null,null,null,null,null,null,null,null,null,null,null,null,null,null,null,null,null,{"$f":"+V53","v":0}]
["(d)",null,"Date of payment into Government treasury"]
[]
["Declaration by Employer"]
[]
[{"$f":"CONCATENATE(\"I, \"&'Company Master'!C17&\", son of \"&'Company Master'!C18&\" working in the Capacity of \"&'Company Master'!C19&\" do hereby declare on behalf of \"&'Company Master'!C7&\" that the information given above is based on the books of account, documents and other relevant records,\"&\" or information available with us and the details of value of each such perquisite are in accordance with section 17 and rules framed there under and that such information is true and correct.\")","v":"I, My Name, son of Father Name working in the Capacity of Director do hereby declare on behalf of Excelhub.org that the information given above is based on the books of account, documents and other relevant records, or information available with us and the details of value of each such perquisite are in accordance with section 17 and rules framed there under and that such information is true and correct."}]
[]
[]
[]
[]
["Place:",null,null,{"$f":"'Company Master'!C20","v":"Bangalore"}]
[]
[]
["Date:",null,null,{"$f":"'Company Master'!C21","v":"2017-05-30"},null,null,null,null,null,null,"Signature of person responsible for deduction of tax"]
[]
["Designation:",null,null,{"$f":"'Company Master'!C19","v":"Director"},null,null,null,null,null,null,"Full Name:",null,null,{"$f":"'Company Master'!C17","v":"My Name"}]